Body,Body Name,Transaction No  ,Invoice Ref.,Supplier Name,Expense Code,Expense Type,Date,      Amount
http://statistics.data.gov.uk/id/local-authority-district/23UB,Cheltenham Borough Council,446297,IN2752,ACCESS INTELLIGENT MEDIA  AND COMMS LTD,C-D11900-3623,Communic.Mgmt-Cmpter-sftwre lic purch,06/04/2011,"3,650.00"
http://statistics.data.gov.uk/id/local-authority-district/23UB,Cheltenham Borough Council,447335,18600792-15,ADT FIRE AND SECURITY,C-D13100-1114,Muni Off Blgs-Security systems,20/04/2011,229.56
http://statistics.data.gov.uk/id/local-authority-district/23UB,Cheltenham Borough Council,447334,18722348-15,ADT FIRE AND SECURITY,C-D13100-1114,Muni Off Blgs-Security systems,20/04/2011,449.00
http://statistics.data.gov.uk/id/local-authority-district/23UB,Cheltenham Borough Council,447435,18638875-15,ADT FIRE & SECURITY PLC,C-L11500-3167,Rec Facilities-Maintenance Agreements,20/04/2011,197.95
http://statistics.data.gov.uk/id/local-authority-district/23UB,Cheltenham Borough Council,447435,18638875-15,ADT FIRE & SECURITY PLC,C-L11500-3167,Rec Facilities-Maintenance Agreements,20/04/2011,426.08
http://statistics.data.gov.uk/id/local-authority-district/23UB,Cheltenham Borough Council,447473,18701823-15,ADT FIRE & SECURITY PLC,C-L21100-1115,Town Hall-Fire prevention,20/04/2011,515.89
http://statistics.data.gov.uk/id/local-authority-district/23UB,Cheltenham Borough Council,447473,18701823-15,ADT FIRE & SECURITY PLC,C-L21100-1115,Town Hall-Fire prevention,20/04/2011,540.57
http://statistics.data.gov.uk/id/local-authority-district/23UB,Cheltenham Borough Council,446149,138287,A&E FIRE EQUIPMENT LTD,C-H46200-1104,Fire. Syst.Serv-Council House repairs,06/04/2011,130.17
http://statistics.data.gov.uk/id/local-authority-district/23UB,Cheltenham Borough Council,446151,138563,A&E FIRE EQUIPMENT LTD,C-H46200-1104,Fire. Syst.Serv-Council House repairs,06/04/2011,199.84
http://statistics.data.gov.uk/id/local-authority-district/23UB,Cheltenham Borough Council,446150,138552,A&E FIRE EQUIPMENT LTD,C-H46200-1104,Fire. Syst.Serv-Council House repairs,06/04/2011,99.92
http://statistics.data.gov.uk/id/local-authority-district/23UB,Cheltenham Borough Council,446148,39187,A&E FIRE EQUIPMENT LTD,C-H4204G-1104,Gen Wks 2204-Council House repairs,06/04/2011,89.00
http://statistics.data.gov.uk/id/local-authority-district/23UB,Cheltenham Borough Council,446148,39187,A&E FIRE EQUIPMENT LTD,C-H46200-1104,Fire. Syst.Serv-Council House repairs,06/04/2011,309.96
http://statistics.data.gov.uk/id/local-authority-district/23UB,Cheltenham Borough Council,446153,139674,A&E FIRE EQUIPMENT LTD,C-H46200-1104,Fire. Syst.Serv-Council House repairs,06/04/2011,108.29
http://statistics.data.gov.uk/id/local-authority-district/23UB,Cheltenham Borough Council,445882,140018,A&E FIRE EQUIPMENT LTD,C-L21200-1808,Pump Room-RM-Routine works,06/04/2011,80.46
http://statistics.data.gov.uk/id/local-authority-district/23UB,Cheltenham Borough Council,445883,140019,A&E FIRE EQUIPMENT LTD,C-L21100-1808,Town Hall-RM-Routine works,06/04/2011,244.94
http://statistics.data.gov.uk/id/local-authority-district/23UB,Cheltenham Borough Council,445881,140064,A&E FIRE EQUIPMENT LTD,C-C22120-1808,Sports & Open S-RM-Routine works,06/04/2011,10.34
http://statistics.data.gov.uk/id/local-authority-district/23UB,Cheltenham Borough Council,445880,140065,A&E FIRE EQUIPMENT LTD,C-C22120-1808,Sports & Open S-RM-Routine works,06/04/2011,44.74
http://statistics.data.gov.uk/id/local-authority-district/23UB,Cheltenham Borough Council,445878,140067,A&E FIRE EQUIPMENT LTD,C-C22120-1808,Sports & Open S-RM-Routine works,06/04/2011,51.32
http://statistics.data.gov.uk/id/local-authority-district/23UB,Cheltenham Borough Council,445877,140068,A&E FIRE EQUIPMENT LTD,C-C22120-1808,Sports & Open S-RM-Routine works,06/04/2011,43.80
http://statistics.data.gov.uk/id/local-authority-district/23UB,Cheltenham Borough Council,445876,140069,A&E FIRE EQUIPMENT LTD,C-C22120-1808,Sports & Open S-RM-Routine works,06/04/2011,2.82
http://statistics.data.gov.uk/id/local-authority-district/23UB,Cheltenham Borough Council,445875,140070,A&E FIRE EQUIPMENT LTD,C-C22120-1808,Sports & Open S-RM-Routine works,06/04/2011,64.77
http://statistics.data.gov.uk/id/local-authority-district/23UB,Cheltenham Borough Council,445869,140077,A&E FIRE EQUIPMENT LTD,C-C23140-1808,Public Convnces-RM-Routine works,06/04/2011,2.82
http://statistics.data.gov.uk/id/local-authority-district/23UB,Cheltenham Borough Council,445879,140066,A&E FIRE EQUIPMENT LTD,C-C23140-1808,Public Convnces-RM-Routine works,06/04/2011,50.38
http://statistics.data.gov.uk/id/local-authority-district/23UB,Cheltenham Borough Council,445874,140071,A&E FIRE EQUIPMENT LTD,C-C22120-1808,Sports & Open S-RM-Routine works,06/04/2011,42.36
http://statistics.data.gov.uk/id/local-authority-district/23UB,Cheltenham Borough Council,445873,140072,A&E FIRE EQUIPMENT LTD,C-C23140-1808,Public Convnces-RM-Routine works,06/04/2011,3.76
http://statistics.data.gov.uk/id/local-authority-district/23UB,Cheltenham Borough Council,445872,140073,A&E FIRE EQUIPMENT LTD,C-C22120-1808,Sports & Open S-RM-Routine works,06/04/2011,43.80
http://statistics.data.gov.uk/id/local-authority-district/23UB,Cheltenham Borough Council,445871,140074,A&E FIRE EQUIPMENT LTD,C-C22120-1808,Sports & Open S-RM-Routine works,06/04/2011,9.40
http://statistics.data.gov.uk/id/local-authority-district/23UB,Cheltenham Borough Council,445870,140075,A&E FIRE EQUIPMENT LTD,C-C22120-1808,Sports & Open S-RM-Routine works,06/04/2011,1.88
http://statistics.data.gov.uk/id/local-authority-district/23UB,Cheltenham Borough Council,445920,140076,A&E FIRE EQUIPMENT LTD,C-C22120-1808,Sports & Open S-RM-Routine works,06/04/2011,6.58
http://statistics.data.gov.uk/id/local-authority-district/23UB,Cheltenham Borough Council,445868,140083,A&E FIRE EQUIPMENT LTD,C-C22140-1808,Nursery-RM-Routine works,06/04/2011,88.56
http://statistics.data.gov.uk/id/local-authority-district/23UB,Cheltenham Borough Council,445867,140084,A&E FIRE EQUIPMENT LTD,C-D33950-1808,Resource Centre-RM-Routine works,06/04/2011,46.62
http://statistics.data.gov.uk/id/local-authority-district/23UB,Cheltenham Borough Council,445884,140110,A&E FIRE EQUIPMENT LTD,C-L21200-1808,Pump Room-RM-Routine works,06/04/2011,181.42
http://statistics.data.gov.uk/id/local-authority-district/23UB,Cheltenham Borough Council,445865,140126,A&E FIRE EQUIPMENT LTD,C-E21100-1808,Car Prks-Off St-RM-Routine works,06/04/2011,81.78
http://statistics.data.gov.uk/id/local-authority-district/23UB,Cheltenham Borough Council,445864,140128,A&E FIRE EQUIPMENT LTD,C-E21100-1808,Car Prks-Off St-RM-Routine works,06/04/2011,195.92
http://statistics.data.gov.uk/id/local-authority-district/23UB,Cheltenham Borough Council,445885,140199,A&E FIRE EQUIPMENT LTD,C-L11500-1808,Rec Facilities-RM-Routine works,06/04/2011,27.26
http://statistics.data.gov.uk/id/local-authority-district/23UB,Cheltenham Borough Council,445886,140200,A&E FIRE EQUIPMENT LTD,C-L11500-1808,Rec Facilities-RM-Routine works,06/04/2011,512.38
http://statistics.data.gov.uk/id/local-authority-district/23UB,Cheltenham Borough Council,445887,140201,A&E FIRE EQUIPMENT LTD,C-L11500-1808,Rec Facilities-RM-Routine works,06/04/2011,98.57
http://statistics.data.gov.uk/id/local-authority-district/23UB,Cheltenham Borough Council,445863,140298,A&E FIRE EQUIPMENT LTD,C-E21100-1808,Car Prks-Off St-RM-Routine works,06/04/2011,84.54
http://statistics.data.gov.uk/id/local-authority-district/23UB,Cheltenham Borough Council,446152,140327,A&E FIRE EQUIPMENT LTD,C-H46200-1104,Fire. Syst.Serv-Council House repairs,06/04/2011,89.50
http://statistics.data.gov.uk/id/local-authority-district/23UB,Cheltenham Borough Council,445862,140491,A&E FIRE EQUIPMENT LTD,C-D13100-1808,Muni Off Blgs-RM-Routine works,06/04/2011,487.62
http://statistics.data.gov.uk/id/local-authority-district/23UB,Cheltenham Borough Council,445888,140410,A&E FIRE EQUIPMENT LTD,C-L41100-1808,AG & M-RM-Routine works,06/04/2011,14.10
http://statistics.data.gov.uk/id/local-authority-district/23UB,Cheltenham Borough Council,445889,140411,A&E FIRE EQUIPMENT LTD,C-L41100-1808,AG & M-RM-Routine works,06/04/2011,80.84
http://statistics.data.gov.uk/id/local-authority-district/23UB,Cheltenham Borough Council,445866,140085,A&E FIRE EQUIPMENT LTD,C-D30200-1124,Misc Props & Ld-Berkeley Mews  Repairs,06/04/2011,6.58
http://statistics.data.gov.uk/id/local-authority-district/23UB,Cheltenham Borough Council,447326,140555,A&E FIRE EQUIPMENT LTD,C-D14100-1808,Depot Building-RM-Routine works,20/04/2011,129.84
http://statistics.data.gov.uk/id/local-authority-district/23UB,Cheltenham Borough Council,447298,140558,A&E FIRE EQUIPMENT LTD,C-D33950-1808,Resource Centre-RM-Routine works,20/04/2011,40.64
http://statistics.data.gov.uk/id/local-authority-district/23UB,Cheltenham Borough Council,447325,140559,A&E FIRE EQUIPMENT LTD,C-D30200-1124,Misc Props & Ld-Berkeley Mews  Repairs,20/04/2011,8.46
http://statistics.data.gov.uk/id/local-authority-district/23UB,Cheltenham Borough Council,447296,140590,A&E FIRE EQUIPMENT LTD,C-L21200-1808,Pump Room-RM-Routine works,20/04/2011,56.77
http://statistics.data.gov.uk/id/local-authority-district/23UB,Cheltenham Borough Council,447297,140591,A&E FIRE EQUIPMENT LTD,C-L21100-1808,Town Hall-RM-Routine works,20/04/2011,188.00
http://statistics.data.gov.uk/id/local-authority-district/23UB,Cheltenham Borough Council,447324,140762,A&E FIRE EQUIPMENT LTD,C-C22120-1808,Sports & Open S-RM-Routine works,20/04/2011,1.88
http://statistics.data.gov.uk/id/local-authority-district/23UB,Cheltenham Borough Council,447323,140763,A&E FIRE EQUIPMENT LTD,C-C22120-1808,Sports & Open S-RM-Routine works,20/04/2011,43.80
http://statistics.data.gov.uk/id/local-authority-district/23UB,Cheltenham Borough Council,447322,140764,A&E FIRE EQUIPMENT LTD,C-C22120-1808,Sports & Open S-RM-Routine works,20/04/2011,9.40
http://statistics.data.gov.uk/id/local-authority-district/23UB,Cheltenham Borough Council,447227,140765,A&E FIRE EQUIPMENT LTD,C-C22120-1808,Sports & Open S-RM-Routine works,20/04/2011,6.58
http://statistics.data.gov.uk/id/local-authority-district/23UB,Cheltenham Borough Council,447321,140766,A&E FIRE EQUIPMENT LTD,C-C23140-1808,Public Convnces-RM-Routine works,20/04/2011,3.76
http://statistics.data.gov.uk/id/local-authority-district/23UB,Cheltenham Borough Council,447320,140767,A&E FIRE EQUIPMENT LTD,C-C22120-1808,Sports & Open S-RM-Routine works,20/04/2011,1.88
http://statistics.data.gov.uk/id/local-authority-district/23UB,Cheltenham Borough Council,447319,140768,A&E FIRE EQUIPMENT LTD,C-C22120-1808,Sports & Open S-RM-Routine works,20/04/2011,6.58
http://statistics.data.gov.uk/id/local-authority-district/23UB,Cheltenham Borough Council,447236,140769,A&E FIRE EQUIPMENT LTD,C-C22120-1808,Sports & Open S-RM-Routine works,20/04/2011,2.82
http://statistics.data.gov.uk/id/local-authority-district/23UB,Cheltenham Borough Council,447318,140770,A&E FIRE EQUIPMENT LTD,C-C23140-1808,Public Convnces-RM-Routine works,20/04/2011,2.82
http://statistics.data.gov.uk/id/local-authority-district/23UB,Cheltenham Borough Council,447317,140771,A&E FIRE EQUIPMENT LTD,C-C22120-1808,Sports & Open S-RM-Routine works,20/04/2011,10.34
http://statistics.data.gov.uk/id/local-authority-district/23UB,Cheltenham Borough Council,447316,140772,A&E FIRE EQUIPMENT LTD,C-C23140-1808,Public Convnces-RM-Routine works,20/04/2011,9.40
http://statistics.data.gov.uk/id/local-authority-district/23UB,Cheltenham Borough Council,447315,140773,A&E FIRE EQUIPMENT LTD,C-C22120-1808,Sports & Open S-RM-Routine works,20/04/2011,44.74
http://statistics.data.gov.uk/id/local-authority-district/23UB,Cheltenham Borough Council,447314,140774,A&E FIRE EQUIPMENT LTD,C-C22120-1808,Sports & Open S-RM-Routine works,20/04/2011,2.82
http://statistics.data.gov.uk/id/local-authority-district/23UB,Cheltenham Borough Council,447313,140775,A&E FIRE EQUIPMENT LTD,C-C22120-1808,Sports & Open S-RM-Routine works,20/04/2011,10.34
http://statistics.data.gov.uk/id/local-authority-district/23UB,Cheltenham Borough Council,447312,140776,A&E FIRE EQUIPMENT LTD,C-C23140-1808,Public Convnces-RM-Routine works,20/04/2011,2.82
http://statistics.data.gov.uk/id/local-authority-district/23UB,Cheltenham Borough Council,447299,140787,A&E FIRE EQUIPMENT LTD,C-L11500-1808,Rec Facilities-RM-Routine works,20/04/2011,30.00
http://statistics.data.gov.uk/id/local-authority-district/23UB,Cheltenham Borough Council,447300,140789,A&E FIRE EQUIPMENT LTD,C-L41100-1808,AG & M-RM-Routine works,20/04/2011,86.69
http://statistics.data.gov.uk/id/local-authority-district/23UB,Cheltenham Borough Council,447301,140939,A&E FIRE EQUIPMENT LTD,C-L11500-1808,Rec Facilities-RM-Routine works,20/04/2011,419.00
http://statistics.data.gov.uk/id/local-authority-district/23UB,Cheltenham Borough Council,447302,140940,A&E FIRE EQUIPMENT LTD,C-L11500-1808,Rec Facilities-RM-Routine works,20/04/2011,68.24
http://statistics.data.gov.uk/id/local-authority-district/23UB,Cheltenham Borough Council,447303,140941,A&E FIRE EQUIPMENT LTD,C-L11500-1808,Rec Facilities-RM-Routine works,20/04/2011,27.26
http://statistics.data.gov.uk/id/local-authority-district/23UB,Cheltenham Borough Council,447311,140981,A&E FIRE EQUIPMENT LTD,C-E21100-1808,Car Prks-Off St-RM-Routine works,20/04/2011,128.15
http://statistics.data.gov.uk/id/local-authority-district/23UB,Cheltenham Borough Council,447310,140990,A&E FIRE EQUIPMENT LTD,C-E21100-1808,Car Prks-Off St-RM-Routine works,20/04/2011,81.78
http://statistics.data.gov.uk/id/local-authority-district/23UB,Cheltenham Borough Council,447309,140991,A&E FIRE EQUIPMENT LTD,C-E21100-1808,Car Prks-Off St-RM-Routine works,20/04/2011,113.96
http://statistics.data.gov.uk/id/local-authority-district/23UB,Cheltenham Borough Council,447304,141063,A&E FIRE EQUIPMENT LTD,C-L41100-1808,AG & M-RM-Routine works,20/04/2011,14.10
http://statistics.data.gov.uk/id/local-authority-district/23UB,Cheltenham Borough Council,447305,141064,A&E FIRE EQUIPMENT LTD,C-L41100-1808,AG & M-RM-Routine works,20/04/2011,80.84
http://statistics.data.gov.uk/id/local-authority-district/23UB,Cheltenham Borough Council,447308,141065,A&E FIRE EQUIPMENT LTD,C-D13100-1808,Muni Off Blgs-RM-Routine works,20/04/2011,241.74
http://statistics.data.gov.uk/id/local-authority-district/23UB,Cheltenham Borough Council,447306,141096,A&E FIRE EQUIPMENT LTD,C-D13550-1115,Area Off -E.Hse-Fire prevention,20/04/2011,175.44
http://statistics.data.gov.uk/id/local-authority-district/23UB,Cheltenham Borough Council,447307,141124,A&E FIRE EQUIPMENT LTD,C-D13100-1808,Muni Off Blgs-RM-Routine works,20/04/2011,33.25
http://statistics.data.gov.uk/id/local-authority-district/23UB,Cheltenham Borough Council,448003,140087,A&E FIRE EQUIPMENT LTD,C-L21100-1808,Town Hall-RM-Routine works,28/04/2011,49.96
http://statistics.data.gov.uk/id/local-authority-district/23UB,Cheltenham Borough Council,447805,140426,A&E FIRE EQUIPMENT LTD,C-H46200-1104,Fire. Syst.Serv-Council House repairs,28/04/2011,7.52
http://statistics.data.gov.uk/id/local-authority-district/23UB,Cheltenham Borough Council,447807,140492,A&E FIRE EQUIPMENT LTD,C-H46200-1104,Fire. Syst.Serv-Council House repairs,28/04/2011,5.64
http://statistics.data.gov.uk/id/local-authority-district/23UB,Cheltenham Borough Council,447806,140493,A&E FIRE EQUIPMENT LTD,C-H46200-1104,Fire. Syst.Serv-Council House repairs,28/04/2011,5.64
http://statistics.data.gov.uk/id/local-authority-district/23UB,Cheltenham Borough Council,447838,140494,A&E FIRE EQUIPMENT LTD,C-H46200-1104,Fire. Syst.Serv-Council House repairs,28/04/2011,46.62
http://statistics.data.gov.uk/id/local-authority-district/23UB,Cheltenham Borough Council,447837,140495,A&E FIRE EQUIPMENT LTD,C-H46200-1104,Fire. Syst.Serv-Council House repairs,28/04/2011,46.62
http://statistics.data.gov.uk/id/local-authority-district/23UB,Cheltenham Borough Council,447840,140514,A&E FIRE EQUIPMENT LTD,C-H44600-1104,J D Court-Council House repairs,28/04/2011,176.52
http://statistics.data.gov.uk/id/local-authority-district/23UB,Cheltenham Borough Council,447842,140521,A&E FIRE EQUIPMENT LTD,C-H46200-1104,Fire. Syst.Serv-Council House repairs,28/04/2011,66.72
http://statistics.data.gov.uk/id/local-authority-district/23UB,Cheltenham Borough Council,447841,140522,A&E FIRE EQUIPMENT LTD,C-H46200-1104,Fire. Syst.Serv-Council House repairs,28/04/2011,98.88
http://statistics.data.gov.uk/id/local-authority-district/23UB,Cheltenham Borough Council,447847,140553,A&E FIRE EQUIPMENT LTD,C-H46200-1104,Fire. Syst.Serv-Council House repairs,28/04/2011,31.96
http://statistics.data.gov.uk/id/local-authority-district/23UB,Cheltenham Borough Council,447846,140554,A&E FIRE EQUIPMENT LTD,C-H46200-1104,Fire. Syst.Serv-Council House repairs,28/04/2011,58.86
http://statistics.data.gov.uk/id/local-authority-district/23UB,Cheltenham Borough Council,447804,140592,A&E FIRE EQUIPMENT LTD,C-H46200-1104,Fire. Syst.Serv-Council House repairs,28/04/2011,40.42
http://statistics.data.gov.uk/id/local-authority-district/23UB,Cheltenham Borough Council,447839,140608,A&E FIRE EQUIPMENT LTD,C-H46200-1104,Fire. Syst.Serv-Council House repairs,28/04/2011,71.04
http://statistics.data.gov.uk/id/local-authority-district/23UB,Cheltenham Borough Council,447803,140649,A&E FIRE EQUIPMENT LTD,C-H46200-1104,Fire. Syst.Serv-Council House repairs,28/04/2011,1.88
http://statistics.data.gov.uk/id/local-authority-district/23UB,Cheltenham Borough Council,447802,140654,A&E FIRE EQUIPMENT LTD,C-H44600-1104,J D Court-Council House repairs,28/04/2011,103.58
http://statistics.data.gov.uk/id/local-authority-district/23UB,Cheltenham Borough Council,447849,140659,A&E FIRE EQUIPMENT LTD,C-H46200-1104,Fire. Syst.Serv-Council House repairs,28/04/2011,15.04
http://statistics.data.gov.uk/id/local-authority-district/23UB,Cheltenham Borough Council,447850,140660,A&E FIRE EQUIPMENT LTD,C-H46200-1104,Fire. Syst.Serv-Council House repairs,28/04/2011,15.04
http://statistics.data.gov.uk/id/local-authority-district/23UB,Cheltenham Borough Council,447851,140661,A&E FIRE EQUIPMENT LTD,C-H46200-1104,Fire. Syst.Serv-Council House repairs,28/04/2011,1.88
http://statistics.data.gov.uk/id/local-authority-district/23UB,Cheltenham Borough Council,447852,140662,A&E FIRE EQUIPMENT LTD,C-H46200-1104,Fire. Syst.Serv-Council House repairs,28/04/2011,2.82
http://statistics.data.gov.uk/id/local-authority-district/23UB,Cheltenham Borough Council,447843,140663,A&E FIRE EQUIPMENT LTD,C-H46200-1104,Fire. Syst.Serv-Council House repairs,28/04/2011,106.70
http://statistics.data.gov.uk/id/local-authority-district/23UB,Cheltenham Borough Council,447801,140664,A&E FIRE EQUIPMENT LTD,C-H46200-1104,Fire. Syst.Serv-Council House repairs,28/04/2011,9.40
http://statistics.data.gov.uk/id/local-authority-district/23UB,Cheltenham Borough Council,447848,140667,A&E FIRE EQUIPMENT LTD,C-H46200-1104,Fire. Syst.Serv-Council House repairs,28/04/2011,15.04
http://statistics.data.gov.uk/id/local-authority-district/23UB,Cheltenham Borough Council,447844,140716,A&E FIRE EQUIPMENT LTD,C-H46200-1104,Fire. Syst.Serv-Council House repairs,28/04/2011,319.57
http://statistics.data.gov.uk/id/local-authority-district/23UB,Cheltenham Borough Council,447845,140719,A&E FIRE EQUIPMENT LTD,C-H46200-1104,Fire. Syst.Serv-Council House repairs,28/04/2011,49.96
http://statistics.data.gov.uk/id/local-authority-district/23UB,Cheltenham Borough Council,445954,1906,AGRIPA SOLUTIONS LIMITED,C-C23180-3920,Rcycl Cltn Schm-Advertising,06/04/2011,200.00
http://statistics.data.gov.uk/id/local-authority-district/23UB,Cheltenham Borough Council,445954,1906,AGRIPA SOLUTIONS LIMITED,C-C23180-3920,Rcycl Cltn Schm-Advertising,06/04/2011,"2,175.00"
http://statistics.data.gov.uk/id/local-authority-district/23UB,Cheltenham Borough Council,445832,50516,ALPHA COLOUR PRINTERS LTD,C-D12430-3401,Housing & CT Be-Printing - general,06/04/2011,737.00
http://statistics.data.gov.uk/id/local-authority-district/23UB,Cheltenham Borough Council,446798,50246,ALPHA COLOUR PRINTERS LTD,C-E36200-3401,On-St Car Prkng-Printing - general,13/04/2011,99.00
http://statistics.data.gov.uk/id/local-authority-district/23UB,Cheltenham Borough Council,446754,50510,ALPHA COLOUR PRINTERS LTD,C-L16100-3406,Holiday Rec-Printing-Promotion/Mkting,13/04/2011,"1,286.00"
http://statistics.data.gov.uk/id/local-authority-district/23UB,Cheltenham Borough Council,446754,50510,ALPHA COLOUR PRINTERS LTD,C-L17300-3406,Sports Dev-Printing-Promotion/Mktin,13/04/2011,736.00
http://statistics.data.gov.uk/id/local-authority-district/23UB,Cheltenham Borough Council,446829,50590,ALPHA COLOUR PRINTERS LTD,C-D12480-3401,Business Revenu-Printing - general,13/04/2011,355.00
http://statistics.data.gov.uk/id/local-authority-district/23UB,Cheltenham Borough Council,446828,50591,ALPHA COLOUR PRINTERS LTD,C-D12440-3401,Coun Tax overhe-Printing - general,13/04/2011,261.00
http://statistics.data.gov.uk/id/local-authority-district/23UB,Cheltenham Borough Council,446520,50593,ALPHA COLOUR PRINTERS LTD,C-L17200-3401,Sport/Play Div-Printing - general,13/04/2011,219.00
http://statistics.data.gov.uk/id/local-authority-district/23UB,Cheltenham Borough Council,446455,50594,ALPHA COLOUR PRINTERS LTD,C-0T30M1-3528,Philharmonia-Programme costs,13/04/2011,132.00
http://statistics.data.gov.uk/id/local-authority-district/23UB,Cheltenham Borough Council,446736,50595,ALPHA COLOUR PRINTERS LTD,C-H22400-3501,Homelessness-Hire of outside services,13/04/2011,142.00
http://statistics.data.gov.uk/id/local-authority-district/23UB,Cheltenham Borough Council,446908,50597,ALPHA COLOUR PRINTERS LTD,C-D21190-3403,O&S Committees-Printing-Committee Papers,13/04/2011,254.00
http://statistics.data.gov.uk/id/local-authority-district/23UB,Cheltenham Borough Council,446908,50597,ALPHA COLOUR PRINTERS LTD,C-D21190-3412,O&S Committees-Printing - Cabinet Papers,13/04/2011,143.00
http://statistics.data.gov.uk/id/local-authority-district/23UB,Cheltenham Borough Council,446909,50598,ALPHA COLOUR PRINTERS LTD,C-D21190-3403,O&S Committees-Printing-Committee Papers,13/04/2011,259.00
http://statistics.data.gov.uk/id/local-authority-district/23UB,Cheltenham Borough Council,446865,50610,ALPHA COLOUR PRINTERS LTD,C-D12300-3401,Personnel and P-Printing - general,13/04/2011,20.00
http://statistics.data.gov.uk/id/local-authority-district/23UB,Cheltenham Borough Council,446781,INV130870,AMENITY LAND SERVICES LIMITED,C-C22110-3122,Parks & Gardens-Materials-Extra Works,13/04/2011,747.00
http://statistics.data.gov.uk/id/local-authority-district/23UB,Cheltenham Borough Council,447290,733,ANDERSON CIVIL ENGINEERING UK LIMITED,C-E22100-1129,Chel River&W/C-CBC Riparian Ownership,20/04/2011,"7,654.00"
http://statistics.data.gov.uk/id/local-authority-district/23UB,Cheltenham Borough Council,447290,733,ANDERSON CIVIL ENGINEERING UK LIMITED,C-N11250-9227,Excluded,20/04/2011,-160.00
http://statistics.data.gov.uk/id/local-authority-district/23UB,Cheltenham Borough Council,446373,DECLARATION F,AON UK,C-P12270-9101,Tenants Ins-Payments,07/04/2011,"6,487.14"
http://statistics.data.gov.uk/id/local-authority-district/23UB,Cheltenham Borough Council,445962,25033,ARKELL AND HURCOMBE BRONZE WORK LTD,C-E63100-3111,Cemetery & Crem-Goods purch for resale,06/04/2011,54.00
http://statistics.data.gov.uk/id/local-authority-district/23UB,Cheltenham Borough Council,445961,25034,ARKELL AND HURCOMBE BRONZE WORK LTD,C-E63100-3111,Cemetery & Crem-Goods purch for resale,06/04/2011,396.00
http://statistics.data.gov.uk/id/local-authority-district/23UB,Cheltenham Borough Council,445961,25034,ARKELL AND HURCOMBE BRONZE WORK LTD,C-E63100-3111,Cemetery & Crem-Goods purch for resale,06/04/2011,82.00
http://statistics.data.gov.uk/id/local-authority-district/23UB,Cheltenham Borough Council,445961,25034,ARKELL AND HURCOMBE BRONZE WORK LTD,C-E63100-3111,Cemetery & Crem-Goods purch for resale,06/04/2011,4.00
http://statistics.data.gov.uk/id/local-authority-district/23UB,Cheltenham Borough Council,445961,25034,ARKELL AND HURCOMBE BRONZE WORK LTD,C-E63100-3111,Cemetery & Crem-Goods purch for resale,06/04/2011,45.00
http://statistics.data.gov.uk/id/local-authority-district/23UB,Cheltenham Borough Council,445966,25035,ARKELL AND HURCOMBE BRONZE WORK LTD,C-E63100-3111,Cemetery & Crem-Goods purch for resale,06/04/2011,36.00
http://statistics.data.gov.uk/id/local-authority-district/23UB,Cheltenham Borough Council,446602,ACF506,ARLINGCLOSE LIMITED,C-D32700-3501,Debt Mgt-Hire of outside services,13/04/2011,"16,000.00"
http://statistics.data.gov.uk/id/local-authority-district/23UB,Cheltenham Borough Council,447345,52005153,ARQIVA LIMITED,C-C23160-3635,Env Maint Div-Radio network recharges,20/04/2011,"2,418.00"
http://statistics.data.gov.uk/id/local-authority-district/23UB,Cheltenham Borough Council,446459,13021,ARTFUL LIMITED,C-Z13300-3501,LAA - BSC Rev-Hire of outside services,13/04/2011,175.00
http://statistics.data.gov.uk/id/local-authority-district/23UB,Cheltenham Borough Council,446760,10438,ARTFUL LIMITED,C-B51120-3920,Develt Con-Advertising,13/04/2011,"2,127.84"
http://statistics.data.gov.uk/id/local-authority-district/23UB,Cheltenham Borough Council,447976,SETTLEMENT,ARTSHAPE,C-Z12210-9138,Box Off A/C-TH Hirers Tkt Pd out,28/04/2011,582.00
http://statistics.data.gov.uk/id/local-authority-district/23UB,Cheltenham Borough Council,445930,S0006646,ARTS COUNCIL COLLECTION,C-Z12440-AG91,AGM Exhibitions-Horse in Art,06/04/2011,"1,000.00"
http://statistics.data.gov.uk/id/local-authority-district/23UB,Cheltenham Borough Council,445927,S0006647,ARTS COUNCIL COLLECTION,C-Z12440-AG91,AGM Exhibitions-Horse in Art,06/04/2011,325.00
http://statistics.data.gov.uk/id/local-authority-district/23UB,Cheltenham Borough Council,446748,12000,ASKAS,C-C23100-3301,Refuse Collctn-Clothing & uniforms,13/04/2011,26.84
http://statistics.data.gov.uk/id/local-authority-district/23UB,Cheltenham Borough Council,446748,12000,ASKAS,C-C23180-3301,Rcycl Coltn Schms-Clothing & uniforms,13/04/2011,26.84
http://statistics.data.gov.uk/id/local-authority-district/23UB,Cheltenham Borough Council,446748,12000,ASKAS,C-C23180-3301,Rcycl Coltn Schms-Clothing & uniforms,13/04/2011,39.62
http://statistics.data.gov.uk/id/local-authority-district/23UB,Cheltenham Borough Council,446491,12120,ASKAS,C-C23190-3301,Garden Collectn-Clothing & uniforms,13/04/2011,43.60
http://statistics.data.gov.uk/id/local-authority-district/23UB,Cheltenham Borough Council,446820,12221,ASKAS,C-C23100-3301,Refuse Collctn-Clothing & uniforms,13/04/2011,80.52
http://statistics.data.gov.uk/id/local-authority-district/23UB,Cheltenham Borough Council,446820,12221,ASKAS,C-C23100-3301,Refuse Collctn-Clothing & uniforms,13/04/2011,53.68
http://statistics.data.gov.uk/id/local-authority-district/23UB,Cheltenham Borough Council,446820,12221,ASKAS,C-C23100-3301,Refuse Collctn-Clothing & uniforms,13/04/2011,53.68
http://statistics.data.gov.uk/id/local-authority-district/23UB,Cheltenham Borough Council,446820,12221,ASKAS,C-C23100-3301,Refuse Collctn-Clothing & uniforms,13/04/2011,53.68
http://statistics.data.gov.uk/id/local-authority-district/23UB,Cheltenham Borough Council,446823,12308,ASKAS,C-C23100-3301,Refuse Collctn-Clothing & uniforms,13/04/2011,53.68
http://statistics.data.gov.uk/id/local-authority-district/23UB,Cheltenham Borough Council,446823,12308,ASKAS,C-C23100-3301,Refuse Collctn-Clothing & uniforms,13/04/2011,53.68
http://statistics.data.gov.uk/id/local-authority-district/23UB,Cheltenham Borough Council,446823,12308,ASKAS,C-C23100-3301,Refuse Collctn-Clothing & uniforms,13/04/2011,26.84
http://statistics.data.gov.uk/id/local-authority-district/23UB,Cheltenham Borough Council,446823,12308,ASKAS,C-C23100-3301,Refuse Collctn-Clothing & uniforms,13/04/2011,80.52
http://statistics.data.gov.uk/id/local-authority-district/23UB,Cheltenham Borough Council,446572,73385,ATS EUROMASTER LTD,C-C24100-3501,Fleet Maint-Hire of outside services,13/04/2011,"6,263.43"
http://statistics.data.gov.uk/id/local-authority-district/23UB,Cheltenham Borough Council,447956,5617,B AND G COMEDY LIMITED,C-1T07A1-3568,Tim Vine-Artist Fees         ,28/04/2011,"10,036.68"
http://statistics.data.gov.uk/id/local-authority-district/23UB,Cheltenham Borough Council,446803,94283568,BALL COLEGRAVE SEEDS LTD,C-C22140-3127,Nursery-Materials-Bedding,13/04/2011,514.00
http://statistics.data.gov.uk/id/local-authority-district/23UB,Cheltenham Borough Council,446804,94254323,BALL COLEGRAVE SEEDS LTD,C-C22140-3127,Nursery-Materials-Bedding,13/04/2011,206.88
http://statistics.data.gov.uk/id/local-authority-district/23UB,Cheltenham Borough Council,446805,94267129,BALL COLEGRAVE SEEDS LTD,C-C22140-3127,Nursery-Materials-Bedding,13/04/2011,41.74
http://statistics.data.gov.uk/id/local-authority-district/23UB,Cheltenham Borough Council,446807,94267130,BALL COLEGRAVE SEEDS LTD,C-C22140-3127,Nursery-Materials-Bedding,13/04/2011,106.68
http://statistics.data.gov.uk/id/local-authority-district/23UB,Cheltenham Borough Council,446808,94271668,BALL COLEGRAVE SEEDS LTD,C-C22140-3127,Nursery-Materials-Bedding,13/04/2011,41.01
http://statistics.data.gov.uk/id/local-authority-district/23UB,Cheltenham Borough Council,448041,94298279,BALL COLEGRAVE SEEDS LTD,C-C22140-3127,Nursery-Materials-Bedding,28/04/2011,42.18
http://statistics.data.gov.uk/id/local-authority-district/23UB,Cheltenham Borough Council,448031,94298280,BALL COLEGRAVE SEEDS LTD,C-C22140-3127,Nursery-Materials-Bedding,28/04/2011,21.09
http://statistics.data.gov.uk/id/local-authority-district/23UB,Cheltenham Borough Council,448070,94298281,BALL COLEGRAVE SEEDS LTD,C-C22140-3127,Nursery-Materials-Bedding,28/04/2011,891.25
http://statistics.data.gov.uk/id/local-authority-district/23UB,Cheltenham Borough Council,448081,94298284,BALL COLEGRAVE SEEDS LTD,C-C22140-3127,Nursery-Materials-Bedding,28/04/2011,40.19
http://statistics.data.gov.uk/id/local-authority-district/23UB,Cheltenham Borough Council,448037,94310893,BALL COLEGRAVE SEEDS LTD,C-C22140-3127,Nursery-Materials-Bedding,28/04/2011,503.30
http://statistics.data.gov.uk/id/local-authority-district/23UB,Cheltenham Borough Council,448038,94322396,BALL COLEGRAVE SEEDS LTD,C-C22140-3127,Nursery-Materials-Bedding,28/04/2011,370.84
http://statistics.data.gov.uk/id/local-authority-district/23UB,Cheltenham Borough Council,448042,94322397,BALL COLEGRAVE SEEDS LTD,C-C22140-3127,Nursery-Materials-Bedding,28/04/2011,26.75
http://statistics.data.gov.uk/id/local-authority-district/23UB,Cheltenham Borough Council,448032,94322399,BALL COLEGRAVE SEEDS LTD,C-C22140-3127,Nursery-Materials-Bedding,28/04/2011,215.06
http://statistics.data.gov.uk/id/local-authority-district/23UB,Cheltenham Borough Council,448069,94322401,BALL COLEGRAVE SEEDS LTD,C-C22140-3127,Nursery-Materials-Bedding,28/04/2011,42.07
http://statistics.data.gov.uk/id/local-authority-district/23UB,Cheltenham Borough Council,448068,94322402,BALL COLEGRAVE SEEDS LTD,C-C22140-3127,Nursery-Materials-Bedding,28/04/2011,80.00
http://statistics.data.gov.uk/id/local-authority-district/23UB,Cheltenham Borough Council,448082,94322404,BALL COLEGRAVE SEEDS LTD,C-C22140-3127,Nursery-Materials-Bedding,28/04/2011,47.37
http://statistics.data.gov.uk/id/local-authority-district/23UB,Cheltenham Borough Council,448083,94322405,BALL COLEGRAVE SEEDS LTD,C-C22140-3127,Nursery-Materials-Bedding,28/04/2011,386.16
http://statistics.data.gov.uk/id/local-authority-district/23UB,Cheltenham Borough Council,448080,97322403,BALL COLEGRAVE SEEDS LTD,C-C22140-3127,Nursery-Materials-Bedding,28/04/2011,25.84
http://statistics.data.gov.uk/id/local-authority-district/23UB,Cheltenham Borough Council,447448,5964/10,BATRICAR INDEPENDANT MOBILITY,C-E21400-3101,Shopmobility-Equipment purchases,20/04/2011,"2,700.00"
http://statistics.data.gov.uk/id/local-authority-district/23UB,Cheltenham Borough Council,445971,658,JASON R C BAYLISS,C-LC6006-C401,Play Area Maint-Civil Engineering Cntrct,06/04/2011,300.00
http://statistics.data.gov.uk/id/local-authority-district/23UB,Cheltenham Borough Council,445971,658,JASON R C BAYLISS,C-LC6006-C401,Play Area Maint-Civil Engineering Cntrct,06/04/2011,750.00
http://statistics.data.gov.uk/id/local-authority-district/23UB,Cheltenham Borough Council,445971,658,JASON R C BAYLISS,C-LC6006-C401,Play Area Maint-Civil Engineering Cntrct,06/04/2011,"1,100.00"
http://statistics.data.gov.uk/id/local-authority-district/23UB,Cheltenham Borough Council,445971,658,JASON R C BAYLISS,C-LC6006-C401,Play Area Maint-Civil Engineering Cntrct,06/04/2011,750.00
http://statistics.data.gov.uk/id/local-authority-district/23UB,Cheltenham Borough Council,445971,658,JASON R C BAYLISS,C-LC6006-C401,Play Area Maint-Civil Engineering Cntrct,06/04/2011,630.00
http://statistics.data.gov.uk/id/local-authority-district/23UB,Cheltenham Borough Council,445971,658,JASON R C BAYLISS,C-LC6006-C401,Play Area Maint-Civil Engineering Cntrct,06/04/2011,"1,200.00"
http://statistics.data.gov.uk/id/local-authority-district/23UB,Cheltenham Borough Council,445971,658,JASON R C BAYLISS,C-N11250-9227,Excluded,06/04/2011,-791.60
http://statistics.data.gov.uk/id/local-authority-district/23UB,Cheltenham Borough Council,445974,659,JASON R C BAYLISS,C-LC6006-C401,Play Area Maint-Civil Engineering Cntrct,06/04/2011,994.00
http://statistics.data.gov.uk/id/local-authority-district/23UB,Cheltenham Borough Council,445974,659,JASON R C BAYLISS,C-LC6006-C401,Play Area Maint-Civil Engineering Cntrct,06/04/2011,271.00
http://statistics.data.gov.uk/id/local-authority-district/23UB,Cheltenham Borough Council,445974,659,JASON R C BAYLISS,C-N11250-9227,Excluded,06/04/2011,-198.80
http://statistics.data.gov.uk/id/local-authority-district/23UB,Cheltenham Borough Council,445972,660,JASON R C BAYLISS,C-C22120-1119,Spts/Open Space-Playground Maint,06/04/2011,147.00
http://statistics.data.gov.uk/id/local-authority-district/23UB,Cheltenham Borough Council,445972,660,JASON R C BAYLISS,C-C22120-1119,Spts/Open Space-Playground Maint,06/04/2011,553.00
http://statistics.data.gov.uk/id/local-authority-district/23UB,Cheltenham Borough Council,445972,660,JASON R C BAYLISS,C-N11250-9227,Excluded,06/04/2011,-110.60
http://statistics.data.gov.uk/id/local-authority-district/23UB,Cheltenham Borough Council,445973,661,JASON R C BAYLISS,C-LC6006-C401,Play Area Maint-Civil Engineering Cntrct,06/04/2011,275.00
http://statistics.data.gov.uk/id/local-authority-district/23UB,Cheltenham Borough Council,445973,661,JASON R C BAYLISS,C-LC6006-C401,Play Area Maint-Civil Engineering Cntrct,06/04/2011,"1,175.00"
http://statistics.data.gov.uk/id/local-authority-district/23UB,Cheltenham Borough Council,445973,661,JASON R C BAYLISS,C-N11250-9227,Excluded,06/04/2011,-235.00
http://statistics.data.gov.uk/id/local-authority-district/23UB,Cheltenham Borough Council,447874,662,JASON R C BAYLISS,C-C22120-1119,Spts/Open Space-Playground Maint,28/04/2011,360.00
http://statistics.data.gov.uk/id/local-authority-district/23UB,Cheltenham Borough Council,447874,662,JASON R C BAYLISS,C-N11250-9227,Excluded,28/04/2011,-47.00
http://statistics.data.gov.uk/id/local-authority-district/23UB,Cheltenham Borough Council,447877,663,JASON R C BAYLISS,C-C22120-1119,Spts/Open Space-Playground Maint,28/04/2011,750.00
http://statistics.data.gov.uk/id/local-authority-district/23UB,Cheltenham Borough Council,447877,663,JASON R C BAYLISS,C-C22120-1119,Spts/Open Space-Playground Maint,28/04/2011,300.00
http://statistics.data.gov.uk/id/local-authority-district/23UB,Cheltenham Borough Council,447877,663,JASON R C BAYLISS,C-C22120-1119,Spts/Open Space-Playground Maint,28/04/2011,300.00
http://statistics.data.gov.uk/id/local-authority-district/23UB,Cheltenham Borough Council,447877,663,JASON R C BAYLISS,C-N11250-9227,Excluded,28/04/2011,-205.00
http://statistics.data.gov.uk/id/local-authority-district/23UB,Cheltenham Borough Council,447878,664,JASON R C BAYLISS,C-C22120-1119,Spts/Open Space-Playground Maint,28/04/2011,"1,434.00"
http://statistics.data.gov.uk/id/local-authority-district/23UB,Cheltenham Borough Council,447878,664,JASON R C BAYLISS,C-N11250-9227,Excluded,28/04/2011,-196.80
http://statistics.data.gov.uk/id/local-authority-district/23UB,Cheltenham Borough Council,447885,665,JASON R C BAYLISS,C-LC6006-C401,Play Area Maint-Civil Engineering Cntrct,28/04/2011,160.00
http://statistics.data.gov.uk/id/local-authority-district/23UB,Cheltenham Borough Council,447885,665,JASON R C BAYLISS,C-LC6006-C401,Play Area Maint-Civil Engineering Cntrct,28/04/2011,350.00
http://statistics.data.gov.uk/id/local-authority-district/23UB,Cheltenham Borough Council,447885,665,JASON R C BAYLISS,C-N11250-9227,Excluded,28/04/2011,-78.00
http://statistics.data.gov.uk/id/local-authority-district/23UB,Cheltenham Borough Council,447880,666,JASON R C BAYLISS,C-C22110-1301,Parks & Gardens-Routine grounds maint,28/04/2011,300.00
http://statistics.data.gov.uk/id/local-authority-district/23UB,Cheltenham Borough Council,447880,666,JASON R C BAYLISS,C-N11250-9227,Excluded,28/04/2011,-35.00
http://statistics.data.gov.uk/id/local-authority-district/23UB,Cheltenham Borough Council,447886,667,JASON R C BAYLISS,C-C22110-1301,Parks & Gardens-Routine grounds maint,28/04/2011,150.00
http://statistics.data.gov.uk/id/local-authority-district/23UB,Cheltenham Borough Council,447886,667,JASON R C BAYLISS,C-N11250-9227,Excluded,28/04/2011,-19.00
http://statistics.data.gov.uk/id/local-authority-district/23UB,Cheltenham Borough Council,447879,669,JASON R C BAYLISS,C-C22120-1301,Spts/Open Space-Routine grounds maint,28/04/2011,350.00
http://statistics.data.gov.uk/id/local-authority-district/23UB,Cheltenham Borough Council,447879,669,JASON R C BAYLISS,C-N11250-9227,Excluded,28/04/2011,-25.00
http://statistics.data.gov.uk/id/local-authority-district/23UB,Cheltenham Borough Council,447873,670,JASON R C BAYLISS,C-LC6006-C401,Play Area Maint-Civil Engineering Cntrct,28/04/2011,"2,700.00"
http://statistics.data.gov.uk/id/local-authority-district/23UB,Cheltenham Borough Council,447873,670,JASON R C BAYLISS,C-N11250-9227,Excluded,28/04/2011,-300.00
http://statistics.data.gov.uk/id/local-authority-district/23UB,Cheltenham Borough Council,447875,671,JASON R C BAYLISS,C-C22120-1119,Spts/Open Space-Playground Maint,28/04/2011,180.00
http://statistics.data.gov.uk/id/local-authority-district/23UB,Cheltenham Borough Council,447875,671,JASON R C BAYLISS,C-N11250-9227,Excluded,28/04/2011,-23.00
http://statistics.data.gov.uk/id/local-authority-district/23UB,Cheltenham Borough Council,448021,78179,BERMAN GUEDES STRETTON,C-L41100-3816,AG & M-RIBA -  Fees,28/04/2011,"3,000.00"
http://statistics.data.gov.uk/id/local-authority-district/23UB,Cheltenham Borough Council,447215,78202,BERMAN GUEDES STRETTON,C-L41100-3816,AG & M-RIBA -  Fees,20/04/2011,"3,000.00"
http://statistics.data.gov.uk/id/local-authority-district/23UB,Cheltenham Borough Council,447253,1334721,BEVAN BRITTAN,C-B51160-350A,Civic Pride- Fees,20/04/2011,"7,822.61"
http://statistics.data.gov.uk/id/local-authority-district/23UB,Cheltenham Borough Council,446496,22681,BPF INSTRUMENTS LTD,C-C23100-3501,Refuse Collctn-Hire of outside services,13/04/2011,38.60
http://statistics.data.gov.uk/id/local-authority-district/23UB,Cheltenham Borough Council,446496,22681,BPF INSTRUMENTS LTD,C-C23100-3501,Refuse Collctn-Hire of outside services,13/04/2011,9.50
http://statistics.data.gov.uk/id/local-authority-district/23UB,Cheltenham Borough Council,446787,22682,BPF INSTRUMENTS LTD,C-D13100-1109,Muni Off Blgs-Storage Relocation Costs,13/04/2011,176.45
http://statistics.data.gov.uk/id/local-authority-district/23UB,Cheltenham Borough Council,446521,22683,BPF INSTRUMENTS LTD,C-D13120-3636,Mail Room-Area Offs Courier Service,13/04/2011,357.50
http://statistics.data.gov.uk/id/local-authority-district/23UB,Cheltenham Borough Council,446521,22683,BPF INSTRUMENTS LTD,C-H22300-3877,Housing Grants-Grants - One-Stop-Shop,13/04/2011,36.40
http://statistics.data.gov.uk/id/local-authority-district/23UB,Cheltenham Borough Council,448077,213934,BHGS LTD,C-C22140-3127,Nursery-Materials-Bedding,28/04/2011,"4,617.33"
http://statistics.data.gov.uk/id/local-authority-district/23UB,Cheltenham Borough Council,448074,214316,BHGS LTD,C-C22140-3127,Nursery-Materials-Bedding,28/04/2011,220.00
http://statistics.data.gov.uk/id/local-authority-district/23UB,Cheltenham Borough Council,446639,CHEL055M01,BJK INSURANCE BROKERS LIMITED,C-NBS000-BI70,B/S-GRF Payments in Advance Insurance,12/04/2011,"2,842.23"
http://statistics.data.gov.uk/id/local-authority-district/23UB,Cheltenham Borough Council,446783,326318 BAL,BONINGALE NURSERIES,C-C22140-3123,Nursery-Materials-Int Landscaping,13/04/2011,150.80
http://statistics.data.gov.uk/id/local-authority-district/23UB,Cheltenham Borough Council,446780,326318 PART,BONINGALE NURSERIES,C-C22110-3110,Parks & Gardens-Materials,13/04/2011,140.00
http://statistics.data.gov.uk/id/local-authority-district/23UB,Cheltenham Borough Council,446780,326318 PART,BONINGALE NURSERIES,C-C22110-3110,Parks & Gardens-Materials,13/04/2011,140.00
http://statistics.data.gov.uk/id/local-authority-district/23UB,Cheltenham Borough Council,446780,326318 PART,BONINGALE NURSERIES,C-C22110-3110,Parks & Gardens-Materials,13/04/2011,54.70
http://statistics.data.gov.uk/id/local-authority-district/23UB,Cheltenham Borough Council,446782,326318 PART,BONINGALE NURSERIES,C-C22110-3122,Parks & Gardens-Materials-Extra Works,13/04/2011,330.00
http://statistics.data.gov.uk/id/local-authority-district/23UB,Cheltenham Borough Council,447460,326318,BONINGALE NURSERIES,C-C22110-1301,Parks & Gardens-Routine grounds maint,20/04/2011,553.50
http://statistics.data.gov.uk/id/local-authority-district/23UB,Cheltenham Borough Council,446366,5598,B AND G COMEDY LIMITED,C-0T19M1-3568,Stephen K Amos-Artist Fees,07/04/2011,"5,953.70"
http://statistics.data.gov.uk/id/local-authority-district/23UB,Cheltenham Borough Council,447291,SIN003628,BOURNEMOUTH SYMPHONY ORCHESTRA,C-0T10M1-3568,BSO 2-Artist Fees,20/04/2011,"7,320.73"
http://statistics.data.gov.uk/id/local-authority-district/23UB,Cheltenham Borough Council,447291,SIN003628,BOURNEMOUTH SYMPHONY ORCHESTRA,C-0T10M1-8303,BSO 2-Programme Sales,20/04/2011,299.20
http://statistics.data.gov.uk/id/local-authority-district/23UB,Cheltenham Borough Council,447015,16,SARAH BOWDEN,C-L41100-3252,AG & M-Off the wall grant exp       ,15/04/2011,"1,000.00"
http://statistics.data.gov.uk/id/local-authority-district/23UB,Cheltenham Borough Council,445895,47SI 620227,BRENNTAG UK,C-L11500-1714,Rec Facilities-Chemicals,06/04/2011,732.90
http://statistics.data.gov.uk/id/local-authority-district/23UB,Cheltenham Borough Council,445895,47SI 620227,BRENNTAG UK,C-L11500-1714,Rec Facilities-Chemicals,06/04/2011,40.00
http://statistics.data.gov.uk/id/local-authority-district/23UB,Cheltenham Borough Council,445895,47SI 620227,BRENNTAG UK,C-L11500-1714,Rec Facilities-Chemicals,06/04/2011,11.00
http://statistics.data.gov.uk/id/local-authority-district/23UB,Cheltenham Borough Council,445502,8515/3004,BRITANNIA CONSTRUCTION LIMITED,C-PM0150-R145,Bridges-Malvern Road Bridge,11/04/2011,"20,579.53"
http://statistics.data.gov.uk/id/local-authority-district/23UB,Cheltenham Borough Council,447411,387G4999,BRITISH TELECOM,C-E21100-3652,Car Prks-Off St-Telephone CCTV line rent,20/04/2011,110.92
http://statistics.data.gov.uk/id/local-authority-district/23UB,Cheltenham Borough Council,447059,8500 0357 5862,BRITISH GAS TRADING LIMITED,C-H33700-1401,Estate Services-Gas,20/04/2011,196.06
http://statistics.data.gov.uk/id/local-authority-district/23UB,Cheltenham Borough Council,446809,1045,D W BROOKES,C-C22110-1301,Parks & Gardens-Routine grounds maint,13/04/2011,160.00
http://statistics.data.gov.uk/id/local-authority-district/23UB,Cheltenham Borough Council,446809,1045,D W BROOKES,C-C22110-1301,Parks & Gardens-Routine grounds maint,13/04/2011,180.00
http://statistics.data.gov.uk/id/local-authority-district/23UB,Cheltenham Borough Council,446809,1045,D W BROOKES,C-C22110-1301,Parks & Gardens-Routine grounds maint,13/04/2011,485.00
http://statistics.data.gov.uk/id/local-authority-district/23UB,Cheltenham Borough Council,446793,1046,D W BROOKES,C-E21100-1101,Car Prks-Off St-General building repairs,13/04/2011,"1,998.00"
http://statistics.data.gov.uk/id/local-authority-district/23UB,Cheltenham Borough Council,447453,93359894/3000,BSI,C-B52300-3890,Bldg Control-Subscriptions - general,20/04/2011,655.00
http://statistics.data.gov.uk/id/local-authority-district/23UB,Cheltenham Borough Council,446758,BR00213,COLIN BUCHANAN AND PARTNERS LIMITED,C-B51160-3501,Civic Pride-Hire of outside services,13/04/2011,"1,000.00"
http://statistics.data.gov.uk/id/local-authority-district/23UB,Cheltenham Borough Council,448075,133026,BULRUSH PEAT COMPANY LTD,C-C22140-3127,Nursery-Materials-Bedding,28/04/2011,"2,607.30"
http://statistics.data.gov.uk/id/local-authority-district/23UB,Cheltenham Borough Council,446235,339,M J BURKE,C-H22400-5204,Homelessness-Provision of accommo(B&B),06/04/2011,160.30
http://statistics.data.gov.uk/id/local-authority-district/23UB,Cheltenham Borough Council,446237,340,M J BURKE,C-H22400-5204,Homelessness-Provision of accommo(B&B),06/04/2011,400.75
http://statistics.data.gov.uk/id/local-authority-district/23UB,Cheltenham Borough Council,446236,341,M J BURKE,C-H22400-5204,Homelessness-Provision of accommo(B&B),06/04/2011,11.45
http://statistics.data.gov.uk/id/local-authority-district/23UB,Cheltenham Borough Council,447004,7030422,BURO HAPPOLD LIMITED,C-L41100-3816,AG & M-RIBA -  Fees,15/04/2011,"15,310.00"
http://statistics.data.gov.uk/id/local-authority-district/23UB,Cheltenham Borough Council,446137,4341,C AND R DECORATORS,C-H4209V-1104,Voids 2209-Council House repairs,06/04/2011,545.84
http://statistics.data.gov.uk/id/local-authority-district/23UB,Cheltenham Borough Council,446136,4342,C AND R DECORATORS,C-H4209V-1104,Voids 2209-Council House repairs,06/04/2011,614.19
http://statistics.data.gov.uk/id/local-authority-district/23UB,Cheltenham Borough Council,446138,4344,C AND R DECORATORS,C-H4208V-1104,Voids 2208-Council House repairs,06/04/2011,410.75
http://statistics.data.gov.uk/id/local-authority-district/23UB,Cheltenham Borough Council,446134,4351,C AND R DECORATORS,C-H4208V-1104,Voids 2208-Council House repairs,06/04/2011,236.25
http://statistics.data.gov.uk/id/local-authority-district/23UB,Cheltenham Borough Council,446132,4352,C AND R DECORATORS,C-H4208V-1104,Voids 2208-Council House repairs,06/04/2011,459.20
http://statistics.data.gov.uk/id/local-authority-district/23UB,Cheltenham Borough Council,446131,4354,C AND R DECORATORS,C-H4211V-1104,Voids 2211-Council House repairs,06/04/2011,378.00
http://statistics.data.gov.uk/id/local-authority-district/23UB,Cheltenham Borough Council,446147,4355,C AND R DECORATORS,C-H44752-1104,Dis Adapts-Tech-Council House repairs,06/04/2011,415.00
http://statistics.data.gov.uk/id/local-authority-district/23UB,Cheltenham Borough Council,446129,4356,C AND R DECORATORS,C-H44752-1104,Dis Adapts-Tech-Council House repairs,06/04/2011,680.00
http://statistics.data.gov.uk/id/local-authority-district/23UB,Cheltenham Borough Council,446140,4358,C AND R DECORATORS,C-H4204V-1104,Voids 2204-Council House repairs,06/04/2011,129.20
http://statistics.data.gov.uk/id/local-authority-district/23UB,Cheltenham Borough Council,446133,4359,C AND R DECORATORS,C-H4213V-1104,Voids 2213-Council House repairs,06/04/2011,381.53
http://statistics.data.gov.uk/id/local-authority-district/23UB,Cheltenham Borough Council,446139,4360,C AND R DECORATORS,C-H4209V-1104,Voids 2209-Council House repairs,06/04/2011,52.20
http://statistics.data.gov.uk/id/local-authority-district/23UB,Cheltenham Borough Council,446135,4361,C AND R DECORATORS,C-H4214V-1104,Voids 2214-Council House repairs,06/04/2011,588.17
http://statistics.data.gov.uk/id/local-authority-district/23UB,Cheltenham Borough Council,446141,4362,C AND R DECORATORS,C-H4214V-1104,Voids 2214-Council House repairs,06/04/2011,178.66
http://statistics.data.gov.uk/id/local-authority-district/23UB,Cheltenham Borough Council,446130,4367,C AND R DECORATORS,C-HC4068-C302,Sheltered Hsg-Building Contractor,06/04/2011,"9,256.50"
http://statistics.data.gov.uk/id/local-authority-district/23UB,Cheltenham Borough Council,445861,4368,C AND R DECORATORS,C-HC4068-C302,Sheltered Hsg-Building Contractor,06/04/2011,"3,932.25"
http://statistics.data.gov.uk/id/local-authority-district/23UB,Cheltenham Borough Council,445860,4377,C AND R DECORATORS,C-H4204G-1104,Gen Wks 2204-Council House repairs,06/04/2011,380.00
http://statistics.data.gov.uk/id/local-authority-district/23UB,Cheltenham Borough Council,446586,4374,C AND R DECORATORS,C-H43228-1104,3 New Barn Cl-Council House repairs     ,13/04/2011,520.00
http://statistics.data.gov.uk/id/local-authority-district/23UB,Cheltenham Borough Council,446585,4375,C AND R DECORATORS,C-H43228-1104,3 New Barn Cl-Council House repairs     ,13/04/2011,"1,512.00"
http://statistics.data.gov.uk/id/local-authority-district/23UB,Cheltenham Borough Council,446567,4383,C AND R DECORATORS,C-H4208G-1104,Gen Wks 2208-Council House repairs,13/04/2011,156.60
http://statistics.data.gov.uk/id/local-authority-district/23UB,Cheltenham Borough Council,446568,4386,C AND R DECORATORS,C-H4214G-1104,Gen Wks 2214-Council House repairs,13/04/2011,435.00
http://statistics.data.gov.uk/id/local-authority-district/23UB,Cheltenham Borough Council,447094,4372,C AND R DECORATORS,C-H4206V-1104,Voids 2206-Council House repairs,20/04/2011,567.00
http://statistics.data.gov.uk/id/local-authority-district/23UB,Cheltenham Borough Council,447093,4384,C AND R DECORATORS,C-H4214V-1104,Voids 2214-Council House repairs,20/04/2011,869.12
http://statistics.data.gov.uk/id/local-authority-district/23UB,Cheltenham Borough Council,447090,4385,C AND R DECORATORS,C-H4207V-1104,Voids 2207-Council House repairs,20/04/2011,189.00
http://statistics.data.gov.uk/id/local-authority-district/23UB,Cheltenham Borough Council,447091,4387,C AND R DECORATORS,C-H4207V-1104,Voids 2207-Council House repairs,20/04/2011,117.45
http://statistics.data.gov.uk/id/local-authority-district/23UB,Cheltenham Borough Council,447092,4388,C AND R DECORATORS,C-H4213V-1104,Voids 2213-Council House repairs,20/04/2011,52.20
http://statistics.data.gov.uk/id/local-authority-district/23UB,Cheltenham Borough Council,447095,4389,C AND R DECORATORS,C-H4209V-1104,Voids 2209-Council House repairs,20/04/2011,130.50
http://statistics.data.gov.uk/id/local-authority-district/23UB,Cheltenham Borough Council,447280,4393,C AND R DECORATORS,C-H44752-1104,Dis Adapts-Tech-Council House repairs,20/04/2011,"1,340.00"
http://statistics.data.gov.uk/id/local-authority-district/23UB,Cheltenham Borough Council,447278,4394,C AND R DECORATORS,C-H44752-1104,Dis Adapts-Tech-Council House repairs,20/04/2011,690.00
http://statistics.data.gov.uk/id/local-authority-district/23UB,Cheltenham Borough Council,447279,4395,C AND R DECORATORS,C-H44752-1104,Dis Adapts-Tech-Council House repairs,20/04/2011,729.29
http://statistics.data.gov.uk/id/local-authority-district/23UB,Cheltenham Borough Council,447254,4396,C AND R DECORATORS,C-C23140-1805,Public Convnces-RM-Int. fixtures/fitting,20/04/2011,46.75
http://statistics.data.gov.uk/id/local-authority-district/23UB,Cheltenham Borough Council,447828,4348,C AND R DECORATORS,C-H4209V-1104,Voids 2209-Council House repairs,28/04/2011,381.46
http://statistics.data.gov.uk/id/local-authority-district/23UB,Cheltenham Borough Council,447961,4349,C AND R DECORATORS,C-H4209V-1104,Voids 2209-Council House repairs,28/04/2011,34.80
http://statistics.data.gov.uk/id/local-authority-district/23UB,Cheltenham Borough Council,448099,4357,C AND R DECORATORS,C-HC4751-C302,Little Herberts-Building Contractor,28/04/2011,"4,603.11"
http://statistics.data.gov.uk/id/local-authority-district/23UB,Cheltenham Borough Council,447743,4392,C AND R DECORATORS,C-H22400-1125,Homelessness-Refurbishments,28/04/2011,"1,696.80"
http://statistics.data.gov.uk/id/local-authority-district/23UB,Cheltenham Borough Council,446930,TRANSFER OF EN,CARVER KNOWLES,C-C22110-1301,Parks & Gardens-Routine grounds maint,15/04/2011,"1,500.00"
http://statistics.data.gov.uk/id/local-authority-district/23UB,Cheltenham Borough Council,446761,282122,CASELLA CEL LTD,C-E71150-3103,Public Pro Div-Equipment repairs & maint,13/04/2011,50.00
http://statistics.data.gov.uk/id/local-authority-district/23UB,Cheltenham Borough Council,446761,282122,CASELLA CEL LTD,C-E71150-3103,Public Pro Div-Equipment repairs & maint,13/04/2011,205.00
http://statistics.data.gov.uk/id/local-authority-district/23UB,Cheltenham Borough Council,446761,282122,CASELLA CEL LTD,C-E71150-3103,Public Pro Div-Equipment repairs & maint,13/04/2011,15.00
http://statistics.data.gov.uk/id/local-authority-district/23UB,Cheltenham Borough Council,448110,Redacted,CAUDLE ROOFING,C-H4213G-1104,Gen Wks 2213-Council House repairs,28/04/2011,100.00
http://statistics.data.gov.uk/id/local-authority-district/23UB,Cheltenham Borough Council,448110,Redacted,CAUDLE ROOFING,C-N11250-9227,Excluded,28/04/2011,-20.00
http://statistics.data.gov.uk/id/local-authority-district/23UB,Cheltenham Borough Council,448112,Redacted,CAUDLE ROOFING,C-H4214G-1104,Gen Wks 2214-Council House repairs,28/04/2011,"1,000.00"
http://statistics.data.gov.uk/id/local-authority-district/23UB,Cheltenham Borough Council,448112,Redacted,CAUDLE ROOFING,C-N11250-9227,Excluded,28/04/2011,-80.00
http://statistics.data.gov.uk/id/local-authority-district/23UB,Cheltenham Borough Council,448111,Redacted,CAUDLE ROOFING,C-H4214G-1104,Gen Wks 2214-Council House repairs,28/04/2011,"1,800.00"
http://statistics.data.gov.uk/id/local-authority-district/23UB,Cheltenham Borough Council,448111,Redacted,CAUDLE ROOFING,C-N11250-9227,Excluded,28/04/2011,-120.00
http://statistics.data.gov.uk/id/local-authority-district/23UB,Cheltenham Borough Council,447011,3002,CDS PUBLICATIONS LTD,C-L41100-3920,AG & M-Advertising,15/04/2011,500.00
http://statistics.data.gov.uk/id/local-authority-district/23UB,Cheltenham Borough Council,446369,Redacted,CGT LETTINGS,C-H22400-3244,Homelessness-Supporting People,07/04/2011,550.00
http://statistics.data.gov.uk/id/local-authority-district/23UB,Cheltenham Borough Council,447045,Redacted,CGT TEWKESBURY,C-H22400-3828,Homelessness-Prevention Fund,15/04/2011,600.00
http://statistics.data.gov.uk/id/local-authority-district/23UB,Cheltenham Borough Council,446246,12797,CHARTERHOUSE SECURITY MANAGEMENT,C-H46400-1104,Door Entry-Council House repairs,06/04/2011,394.94
http://statistics.data.gov.uk/id/local-authority-district/23UB,Cheltenham Borough Council,446247,31128,CHARTERHOUSE SECURITY MANAGEMENT,C-H46400-1104,Door Entry-Council House repairs,06/04/2011,509.46
http://statistics.data.gov.uk/id/local-authority-district/23UB,Cheltenham Borough Council,446562,31148,CHARTERHOUSE SECURITY MANAGEMENT,C-HC4068-C302,Sheltered Hsg-Building Contractor,13/04/2011,98.00
http://statistics.data.gov.uk/id/local-authority-district/23UB,Cheltenham Borough Council,446903,31166,CHARTERHOUSE SECURITY MANAGEMENT,C-HC4067-C302,Ele Scooter hsg-Building Contractor,13/04/2011,75.00
http://statistics.data.gov.uk/id/local-authority-district/23UB,Cheltenham Borough Council,446901,31167,CHARTERHOUSE SECURITY MANAGEMENT,C-HC4067-C302,Ele Scooter hsg-Building Contractor,13/04/2011,75.00
http://statistics.data.gov.uk/id/local-authority-district/23UB,Cheltenham Borough Council,446902,31168,CHARTERHOUSE SECURITY MANAGEMENT,C-HC4067-C302,Ele Scooter hsg-Building Contractor,13/04/2011,75.00
http://statistics.data.gov.uk/id/local-authority-district/23UB,Cheltenham Borough Council,446905,31169,CHARTERHOUSE SECURITY MANAGEMENT,C-HC4067-C302,Ele Scooter hsg-Building Contractor,13/04/2011,75.00
http://statistics.data.gov.uk/id/local-authority-district/23UB,Cheltenham Borough Council,446904,31170,CHARTERHOUSE SECURITY MANAGEMENT,C-HC4067-C302,Ele Scooter hsg-Building Contractor,13/04/2011,75.00
http://statistics.data.gov.uk/id/local-authority-district/23UB,Cheltenham Borough Council,446898,31171,CHARTERHOUSE SECURITY MANAGEMENT,C-HC4067-C302,Ele Scooter hsg-Building Contractor,13/04/2011,75.00
http://statistics.data.gov.uk/id/local-authority-district/23UB,Cheltenham Borough Council,446900,31172,CHARTERHOUSE SECURITY MANAGEMENT,C-HC4067-C302,Ele Scooter hsg-Building Contractor,13/04/2011,75.00
http://statistics.data.gov.uk/id/local-authority-district/23UB,Cheltenham Borough Council,446899,31173,CHARTERHOUSE SECURITY MANAGEMENT,C-HC4067-C302,Ele Scooter hsg-Building Contractor,13/04/2011,75.00
http://statistics.data.gov.uk/id/local-authority-district/23UB,Cheltenham Borough Council,446906,31174,CHARTERHOUSE SECURITY MANAGEMENT,C-HC4067-C302,Ele Scooter hsg-Building Contractor,13/04/2011,75.00
http://statistics.data.gov.uk/id/local-authority-district/23UB,Cheltenham Borough Council,447825,31124,CHARTERHOUSE SECURITY MANAGEMENT,C-H46400-1104,Door Entry-Council House repairs,28/04/2011,235.00
http://statistics.data.gov.uk/id/local-authority-district/23UB,Cheltenham Borough Council,447989,31175,CHARTERHOUSE SECURITY MANAGEMENT,C-HC4067-C302,Ele Scooter hsg-Building Contractor,28/04/2011,75.00
http://statistics.data.gov.uk/id/local-authority-district/23UB,Cheltenham Borough Council,447827,31214,CHARTERHOUSE SECURITY MANAGEMENT,C-H46400-1104,Door Entry-Council House repairs,28/04/2011,"4,673.91"
http://statistics.data.gov.uk/id/local-authority-district/23UB,Cheltenham Borough Council,447824,31215,CHARTERHOUSE SECURITY MANAGEMENT,C-H46400-1130,Door Entry-Keys,28/04/2011,"2,599.60"
http://statistics.data.gov.uk/id/local-authority-district/23UB,Cheltenham Borough Council,447826,31235,CHARTERHOUSE SECURITY MANAGEMENT,C-H46400-1104,Door Entry-Council House repairs,28/04/2011,249.50
http://statistics.data.gov.uk/id/local-authority-district/23UB,Cheltenham Borough Council,446734,2165,CHARLTON KINGS PARISH COUNCIL,C-D21950-3501,Community Plan-Hire of outside services,13/04/2011,"2,000.00"
http://statistics.data.gov.uk/id/local-authority-district/23UB,Cheltenham Borough Council,446555,HOMELESSNESS ,CHELTENHAM HOUSING AID CENTRE,C-H22400-3241,Homelessness-Homeless Forum,13/04/2011,"2,500.00"
http://statistics.data.gov.uk/id/local-authority-district/23UB,Cheltenham Borough Council,446991,47523,CHELTENHAM GARDEN MACHINERY,C-C22120-3101,Spts/Open Space-Equipment purchases,15/04/2011,328.33
http://statistics.data.gov.uk/id/local-authority-district/23UB,Cheltenham Borough Council,446991,47523,CHELTENHAM GARDEN MACHINERY,C-C22120-3101,Spts/Open Space-Equipment purchases,15/04/2011,386.67
http://statistics.data.gov.uk/id/local-authority-district/23UB,Cheltenham Borough Council,446294,GRANT PAYMEN,CHELTENHAM ARTS COUNCIL,C-L23500-3806,Arts Grant/Enab-Grant-Chelt Arts Cncl,06/04/2011,"6,000.00"
http://statistics.data.gov.uk/id/local-authority-district/23UB,Cheltenham Borough Council,447749,CHELT DW/3/201,CHELTENHAM ANIMAL SHELTER,C-E61300-3501,Animal Welfare-Hire of outside services,28/04/2011,961.00
http://statistics.data.gov.uk/id/local-authority-district/23UB,Cheltenham Borough Council,447748,CHELTDW/3/2011,CHELTENHAM ANIMAL SHELTER,C-E61300-3501,Animal Welfare-Hire of outside services,28/04/2011,"1,913.25"
http://statistics.data.gov.uk/id/local-authority-district/23UB,Cheltenham Borough Council,446040,29-Oct,CHELTENHAM WEST END PARTNERSHIP LTD,C-D21950-3501,Community Plan-Hire of outside services,06/04/2011,"6,750.00"
http://statistics.data.gov.uk/id/local-authority-district/23UB,Cheltenham Borough Council,445993,30-Oct,CHELTENHAM WEST END PARTNERSHIP LTD,C-D21950-3501,Community Plan-Hire of outside services,06/04/2011,"2,500.00"
http://statistics.data.gov.uk/id/local-authority-district/23UB,Cheltenham Borough Council,446041,32/10,CHELTENHAM WEST END PARTNERSHIP LTD,C-D21800-3501,Chelt.Strat P/S-Hire of outside services,06/04/2011,"2,880.00"
http://statistics.data.gov.uk/id/local-authority-district/23UB,Cheltenham Borough Council,446719,31-Oct,CHELTENHAM WEST END PARTNERSHIP LTD,C-D21800-3501,Chelt.Strat P/S-Hire of outside services,13/04/2011,"1,500.00"
http://statistics.data.gov.uk/id/local-authority-district/23UB,Cheltenham Borough Council,447977,SETTLEMENT,CHELTENHAM BACH CHOIR,C-N13125-9205,ASH Ledger-Town Hall Invoices Paid,28/04/2011,"-1,825.73"
http://statistics.data.gov.uk/id/local-authority-district/23UB,Cheltenham Borough Council,447977,SETTLEMENT,CHELTENHAM BACH CHOIR,C-Z12210-9138,Box Off A/C-TH Hirers Tkt Pd out,28/04/2011,"2,988.50"
http://statistics.data.gov.uk/id/local-authority-district/23UB,Cheltenham Borough Council,447977,SETTLEMENT,CHELTENHAM BACH CHOIR,C-Z12210-9276,Box Off A/C-Hirers Invoices Pd,28/04/2011,-495.00
http://statistics.data.gov.uk/id/local-authority-district/23UB,Cheltenham Borough Council,447719,APP/INV,CHELTENHAM TREE SERVICES,C-C22120-1301,Spts/Open Space-Routine grounds maint,28/04/2011,650.00
http://statistics.data.gov.uk/id/local-authority-district/23UB,Cheltenham Borough Council,448088,APP/INV,CHELTENHAM TREE SERVICES,C-C22120-1301,Spts/Open Space-Routine grounds maint,28/04/2011,550.00
http://statistics.data.gov.uk/id/local-authority-district/23UB,Cheltenham Borough Council,446859,SETTLEMENT,MARIA JAGUSZ,C-N13125-9205,ASH Ledger-Town Hall Invoices Paid,13/04/2011,-767.26
http://statistics.data.gov.uk/id/local-authority-district/23UB,Cheltenham Borough Council,446859,SETTLEMENT,MARIA JAGUSZ,C-Z12210-9138,Box Off A/C-TH Hirers Tkt Pd out,13/04/2011,"1,182.00"
http://statistics.data.gov.uk/id/local-authority-district/23UB,Cheltenham Borough Council,445942,GOTTINGEN PEA,CHELTENHAM TWINNING ASSOCIATION,C-D24220-3501,Gottingen Visit-Hire of outside services,06/04/2011,"1,048.95"
http://statistics.data.gov.uk/id/local-authority-district/23UB,Cheltenham Borough Council,446335,3673,CHELTENHAM CREATIVE,C-L11500-3510,Rec Facilities-Promotion & Marketing,06/04/2011,"9,000.00"
http://statistics.data.gov.uk/id/local-authority-district/23UB,Cheltenham Borough Council,446336,3674,CHELTENHAM CREATIVE,C-L11500-3510,Rec Facilities-Promotion & Marketing,06/04/2011,"4,500.00"
http://statistics.data.gov.uk/id/local-authority-district/23UB,Cheltenham Borough Council,446337,3675,CHELTENHAM CREATIVE,C-L11500-3510,Rec Facilities-Promotion & Marketing,06/04/2011,"5,000.00"
http://statistics.data.gov.uk/id/local-authority-district/23UB,Cheltenham Borough Council,445994,29/03/2011,CHELTENHAM SARACENS RFC,C-Z13300-3501,LAA - BSC Rev-Hire of outside services,06/04/2011,500.00
http://statistics.data.gov.uk/id/local-authority-district/23UB,Cheltenham Borough Council,446932,SETTLEMENT,CHELTENHAM POETRY FESTIVAL CIC,C-N13125-9205,ASH Ledger-Town Hall Invoices Paid,15/04/2011,-326.22
http://statistics.data.gov.uk/id/local-authority-district/23UB,Cheltenham Borough Council,446932,SETTLEMENT,CHELTENHAM POETRY FESTIVAL CIC,C-Z12210-9128,Box Off A/C-Agent tickets paid out,15/04/2011,"2,352.00"
http://statistics.data.gov.uk/id/local-authority-district/23UB,Cheltenham Borough Council,446932,SETTLEMENT,CHELTENHAM POETRY FESTIVAL CIC,C-Z12210-9271,Box Off A/C-CBC Invoices Paid,15/04/2011,-601.00
http://statistics.data.gov.uk/id/local-authority-district/23UB,Cheltenham Borough Council,447488,SETTLEMENT,CHELTENHAM POETRY FESTIVAL CIC,C-N13125-9205,ASH Ledger-Town Hall Invoices Paid,20/04/2011,"-1,121.03"
http://statistics.data.gov.uk/id/local-authority-district/23UB,Cheltenham Borough Council,447488,SETTLEMENT,CHELTENHAM POETRY FESTIVAL CIC,C-Z12210-9138,Box Off A/C-TH Hirers Tkt Pd out,20/04/2011,"3,491.00"
http://statistics.data.gov.uk/id/local-authority-district/23UB,Cheltenham Borough Council,447488,SETTLEMENT,CHELTENHAM POETRY FESTIVAL CIC,C-Z12210-9276,Box Off A/C-Hirers Invoices Pd,20/04/2011,-120.00
http://statistics.data.gov.uk/id/local-authority-district/23UB,Cheltenham Borough Council,446334,3046489,CIPFA BUSINESS LTD,C-D11400-3701,Audit & Assrnce-Conference fees & expens,06/04/2011,720.00
http://statistics.data.gov.uk/id/local-authority-district/23UB,Cheltenham Borough Council,446825,C/RB102737,CIVICA UK LIMITED,C-D12446-3623,Cmpter-sftwre lic purch,13/04/2011,"6,450.00"
http://statistics.data.gov.uk/id/local-authority-district/23UB,Cheltenham Borough Council,445997,4956,CLARKE NICHOLLS AND MARCEL,C-PM0030-R060,Pitt.Pump Room-Stage Repairs,06/04/2011,750.00
http://statistics.data.gov.uk/id/local-authority-district/23UB,Cheltenham Borough Council,447060,401623,CLEARWATER TECHNOLOGY LTD,C-H46450-1104,Legionella T&M-Council House repairs,20/04/2011,"1,500.00"
http://statistics.data.gov.uk/id/local-authority-district/23UB,Cheltenham Borough Council,446360,99858,JAMES COLES AND SONS,C-C22105-3121,Hsg Forecourts-Materials-Contract,07/04/2011,112.00
http://statistics.data.gov.uk/id/local-authority-district/23UB,Cheltenham Borough Council,446360,99858,JAMES COLES AND SONS,C-C22105-3121,Hsg Forecourts-Materials-Contract,07/04/2011,26.00
http://statistics.data.gov.uk/id/local-authority-district/23UB,Cheltenham Borough Council,446360,99858,JAMES COLES AND SONS,C-C22105-3121,Hsg Forecourts-Materials-Contract,07/04/2011,22.00
http://statistics.data.gov.uk/id/local-authority-district/23UB,Cheltenham Borough Council,446360,99858,JAMES COLES AND SONS,C-C22105-3121,Hsg Forecourts-Materials-Contract,07/04/2011,144.00
http://statistics.data.gov.uk/id/local-authority-district/23UB,Cheltenham Borough Council,446362,99858,JAMES COLES AND SONS,C-C22140-3123,Nursery-Materials-Int Landscaping,07/04/2011,140.00
http://statistics.data.gov.uk/id/local-authority-district/23UB,Cheltenham Borough Council,446362,99858,JAMES COLES AND SONS,C-C22140-3123,Nursery-Materials-Int Landscaping,07/04/2011,84.00
http://statistics.data.gov.uk/id/local-authority-district/23UB,Cheltenham Borough Council,446362,99858,JAMES COLES AND SONS,C-C22140-3123,Nursery-Materials-Int Landscaping,07/04/2011,53.00
http://statistics.data.gov.uk/id/local-authority-district/23UB,Cheltenham Borough Council,446362,99858,JAMES COLES AND SONS,C-C22140-3123,Nursery-Materials-Int Landscaping,07/04/2011,20.00
http://statistics.data.gov.uk/id/local-authority-district/23UB,Cheltenham Borough Council,446362,99858,JAMES COLES AND SONS,C-C22140-3123,Nursery-Materials-Int Landscaping,07/04/2011,44.00
http://statistics.data.gov.uk/id/local-authority-district/23UB,Cheltenham Borough Council,446362,99858,JAMES COLES AND SONS,C-C22140-3123,Nursery-Materials-Int Landscaping,07/04/2011,22.00
http://statistics.data.gov.uk/id/local-authority-district/23UB,Cheltenham Borough Council,446362,99858,JAMES COLES AND SONS,C-C22140-3123,Nursery-Materials-Int Landscaping,07/04/2011,132.00
http://statistics.data.gov.uk/id/local-authority-district/23UB,Cheltenham Borough Council,446362,99858,JAMES COLES AND SONS,C-C22140-3123,Nursery-Materials-Int Landscaping,07/04/2011,48.00
http://statistics.data.gov.uk/id/local-authority-district/23UB,Cheltenham Borough Council,446362,99858,JAMES COLES AND SONS,C-C22140-3123,Nursery-Materials-Int Landscaping,07/04/2011,48.00
http://statistics.data.gov.uk/id/local-authority-district/23UB,Cheltenham Borough Council,446362,99858,JAMES COLES AND SONS,C-C22140-3123,Nursery-Materials-Int Landscaping,07/04/2011,336.00
http://statistics.data.gov.uk/id/local-authority-district/23UB,Cheltenham Borough Council,446362,99858,JAMES COLES AND SONS,C-C22140-3123,Nursery-Materials-Int Landscaping,07/04/2011,42.50
http://statistics.data.gov.uk/id/local-authority-district/23UB,Cheltenham Borough Council,446362,99858,JAMES COLES AND SONS,C-C22140-3123,Nursery-Materials-Int Landscaping,07/04/2011,80.00
http://statistics.data.gov.uk/id/local-authority-district/23UB,Cheltenham Borough Council,446362,99858,JAMES COLES AND SONS,C-C22140-3123,Nursery-Materials-Int Landscaping,07/04/2011,180.00
http://statistics.data.gov.uk/id/local-authority-district/23UB,Cheltenham Borough Council,446362,99858,JAMES COLES AND SONS,C-C22140-3123,Nursery-Materials-Int Landscaping,07/04/2011,308.00
http://statistics.data.gov.uk/id/local-authority-district/23UB,Cheltenham Borough Council,446362,99858,JAMES COLES AND SONS,C-C22140-3123,Nursery-Materials-Int Landscaping,07/04/2011,351.00
http://statistics.data.gov.uk/id/local-authority-district/23UB,Cheltenham Borough Council,446362,99858,JAMES COLES AND SONS,C-C22140-3123,Nursery-Materials-Int Landscaping,07/04/2011,44.00
http://statistics.data.gov.uk/id/local-authority-district/23UB,Cheltenham Borough Council,446362,99858,JAMES COLES AND SONS,C-C22140-3123,Nursery-Materials-Int Landscaping,07/04/2011,44.00
http://statistics.data.gov.uk/id/local-authority-district/23UB,Cheltenham Borough Council,446362,99858,JAMES COLES AND SONS,C-C22140-3123,Nursery-Materials-Int Landscaping,07/04/2011,84.00
http://statistics.data.gov.uk/id/local-authority-district/23UB,Cheltenham Borough Council,446362,99858,JAMES COLES AND SONS,C-C22140-3123,Nursery-Materials-Int Landscaping,07/04/2011,140.00
http://statistics.data.gov.uk/id/local-authority-district/23UB,Cheltenham Borough Council,446362,99858,JAMES COLES AND SONS,C-C22140-3123,Nursery-Materials-Int Landscaping,07/04/2011,120.00
http://statistics.data.gov.uk/id/local-authority-district/23UB,Cheltenham Borough Council,446362,99858,JAMES COLES AND SONS,C-C22140-3123,Nursery-Materials-Int Landscaping,07/04/2011,28.00
http://statistics.data.gov.uk/id/local-authority-district/23UB,Cheltenham Borough Council,446362,99858,JAMES COLES AND SONS,C-C22140-3123,Nursery-Materials-Int Landscaping,07/04/2011,130.00
http://statistics.data.gov.uk/id/local-authority-district/23UB,Cheltenham Borough Council,446362,99858,JAMES COLES AND SONS,C-C22140-3123,Nursery-Materials-Int Landscaping,07/04/2011,45.00
http://statistics.data.gov.uk/id/local-authority-district/23UB,Cheltenham Borough Council,446362,99858,JAMES COLES AND SONS,C-C22140-3123,Nursery-Materials-Int Landscaping,07/04/2011,14.00
http://statistics.data.gov.uk/id/local-authority-district/23UB,Cheltenham Borough Council,446362,99858,JAMES COLES AND SONS,C-C22140-3123,Nursery-Materials-Int Landscaping,07/04/2011,44.00
http://statistics.data.gov.uk/id/local-authority-district/23UB,Cheltenham Borough Council,446362,99858,JAMES COLES AND SONS,C-C22140-3123,Nursery-Materials-Int Landscaping,07/04/2011,100.00
http://statistics.data.gov.uk/id/local-authority-district/23UB,Cheltenham Borough Council,446362,99858,JAMES COLES AND SONS,C-C22140-3123,Nursery-Materials-Int Landscaping,07/04/2011,42.00
http://statistics.data.gov.uk/id/local-authority-district/23UB,Cheltenham Borough Council,446362,99858,JAMES COLES AND SONS,C-C22140-3123,Nursery-Materials-Int Landscaping,07/04/2011,14.00
http://statistics.data.gov.uk/id/local-authority-district/23UB,Cheltenham Borough Council,446362,99858,JAMES COLES AND SONS,C-C22140-3123,Nursery-Materials-Int Landscaping,07/04/2011,25.00
http://statistics.data.gov.uk/id/local-authority-district/23UB,Cheltenham Borough Council,446524,7399779,COMPUTACENTER UK LIMITED,C-L41100-3538,AG & M-Educ-community outreach,13/04/2011,721.93
http://statistics.data.gov.uk/id/local-authority-district/23UB,Cheltenham Borough Council,446523,7400208,COMPUTACENTER UK LIMITED,C-L21100-3101,Town Hall-Equipment purchases,13/04/2011,436.17
http://statistics.data.gov.uk/id/local-authority-district/23UB,Cheltenham Borough Council,446851,7402585,COMPUTACENTER UK LIMITED,C-GOERP-3623,GO ERP System-Cmpter-sftwre lic purch,13/04/2011,168.24
http://statistics.data.gov.uk/id/local-authority-district/23UB,Cheltenham Borough Council,446850,7408741,COMPUTACENTER UK LIMITED,C-D11820-3660,IT Infrastructu-Hardware PC & Servers,13/04/2011,89.13
http://statistics.data.gov.uk/id/local-authority-district/23UB,Cheltenham Borough Council,446849,7408747,COMPUTACENTER UK LIMITED,C-D11820-3660,IT Infrastructu-Hardware PC & Servers,13/04/2011,141.43
http://statistics.data.gov.uk/id/local-authority-district/23UB,Cheltenham Borough Council,446847,7408820,COMPUTACENTER UK LIMITED,C-D11820-3660,IT Infrastructu-Hardware PC & Servers,13/04/2011,"1,889.81"
http://statistics.data.gov.uk/id/local-authority-district/23UB,Cheltenham Borough Council,446848,7417214,COMPUTACENTER UK LIMITED,C-D11820-3660,IT Infrastructu-Hardware PC & Servers,13/04/2011,60.80
http://statistics.data.gov.uk/id/local-authority-district/23UB,Cheltenham Borough Council,446765,10282,COMPLETE CLIMATE SOLUTIONS,C-L41100-3816,AG & M-RIBA -  Fees,13/04/2011,"3,517.00"
http://statistics.data.gov.uk/id/local-authority-district/23UB,Cheltenham Borough Council,446765,10282,COMPLETE CLIMATE SOLUTIONS,C-N11250-9227,Excluded,13/04/2011,-120.00
http://statistics.data.gov.uk/id/local-authority-district/23UB,Cheltenham Borough Council,446029,10275,COMPLETE CLIMATE SOLUTIONS LIMITED,C-N11250-9227,Excluded,06/04/2011,-300.00
http://statistics.data.gov.uk/id/local-authority-district/23UB,Cheltenham Borough Council,446029,10275,COMPLETE CLIMATE SOLUTIONS LIMITED,C-PM0042-R021,Pavillions-Boiler Repairs & replacements,06/04/2011,"6,495.00"
http://statistics.data.gov.uk/id/local-authority-district/23UB,Cheltenham Borough Council,446028,10274,COMPLETE CLIMATE SOLUTIONS LIMITED,C-PM0042-R021,Pavillions-Boiler Repairs & replacements,06/04/2011,-300.00
http://statistics.data.gov.uk/id/local-authority-district/23UB,Cheltenham Borough Council,446028,10274,COMPLETE CLIMATE SOLUTIONS LIMITED,C-PM0042-R021,Pavillions-Boiler Repairs & replacements,06/04/2011,"6,495.00"
http://statistics.data.gov.uk/id/local-authority-district/23UB,Cheltenham Borough Council,446074,10186,COMPLETE CLIMATE SOLUTIONS LIMITED,C-D13100-1805,Muni Off Blgs-RM-Int. fixtures/fittings,06/04/2011,470.00
http://statistics.data.gov.uk/id/local-authority-district/23UB,Cheltenham Borough Council,446074,10186,COMPLETE CLIMATE SOLUTIONS LIMITED,C-D13100-1805,Muni Off Blgs-RM-Int. fixtures/fittings,06/04/2011,-15.60
http://statistics.data.gov.uk/id/local-authority-district/23UB,Cheltenham Borough Council,446260,10229,COMPLETE CLIMATE SOLUTIONS LIMITED,C-L11500-1811,Rec Facilities-RM-Plan.& Prev.Mech.Ctrct,06/04/2011,81.63
http://statistics.data.gov.uk/id/local-authority-district/23UB,Cheltenham Borough Council,446260,10229,COMPLETE CLIMATE SOLUTIONS LIMITED,C-N11250-9227,Excluded,06/04/2011,-5.85
http://statistics.data.gov.uk/id/local-authority-district/23UB,Cheltenham Borough Council,446259,10230,COMPLETE CLIMATE SOLUTIONS LIMITED,C-D13100-1811,Muni Off Blgs-RM-Plan.& Prev.Mech.Ctrct,06/04/2011,236.12
http://statistics.data.gov.uk/id/local-authority-district/23UB,Cheltenham Borough Council,446259,10230,COMPLETE CLIMATE SOLUTIONS LIMITED,C-N11250-9227,Excluded,06/04/2011,-25.35
http://statistics.data.gov.uk/id/local-authority-district/23UB,Cheltenham Borough Council,446261,10231,COMPLETE CLIMATE SOLUTIONS LIMITED,C-L11500-1811,Rec Facilities-RM-Plan.& Prev.Mech.Ctrct,06/04/2011,"2,567.16"
http://statistics.data.gov.uk/id/local-authority-district/23UB,Cheltenham Borough Council,446261,10231,COMPLETE CLIMATE SOLUTIONS LIMITED,C-N11250-9227,Excluded,06/04/2011,-169.90
http://statistics.data.gov.uk/id/local-authority-district/23UB,Cheltenham Borough Council,446073,10232,COMPLETE CLIMATE SOLUTIONS LIMITED,C-D14100-1811,Depot Building-RM-Plan.& Prev.Mech.Ctrct,06/04/2011,47.54
http://statistics.data.gov.uk/id/local-authority-district/23UB,Cheltenham Borough Council,446073,10232,COMPLETE CLIMATE SOLUTIONS LIMITED,C-N11250-9227,Excluded,06/04/2011,-7.50
http://statistics.data.gov.uk/id/local-authority-district/23UB,Cheltenham Borough Council,445855,10277,COMPLETE CLIMATE SOLUTIONS LIMITED,C-N11250-9227,Excluded,06/04/2011,-200.00
http://statistics.data.gov.uk/id/local-authority-district/23UB,Cheltenham Borough Council,445855,10277,COMPLETE CLIMATE SOLUTIONS LIMITED,C-PM0020-R026,Town Hall-Ventilation Improvement,06/04/2011,"7,400.00"
http://statistics.data.gov.uk/id/local-authority-district/23UB,Cheltenham Borough Council,445856,10280,COMPLETE CLIMATE SOLUTIONS LIMITED,C-N11250-9227,Excluded,06/04/2011,-60.00
http://statistics.data.gov.uk/id/local-authority-district/23UB,Cheltenham Borough Council,445856,10280,COMPLETE CLIMATE SOLUTIONS LIMITED,C-PM0020-R026,Town Hall-Ventilation Improvement,06/04/2011,"1,509.80"
http://statistics.data.gov.uk/id/local-authority-district/23UB,Cheltenham Borough Council,446075,10285,COMPLETE CLIMATE SOLUTIONS LIMITED,C-D11820-3665,IT Infrastructu-Maintenance/Repairs,06/04/2011,"3,885.00"
http://statistics.data.gov.uk/id/local-authority-district/23UB,Cheltenham Borough Council,446075,10285,COMPLETE CLIMATE SOLUTIONS LIMITED,C-N11250-9227,Excluded,06/04/2011,-300.00
http://statistics.data.gov.uk/id/local-authority-district/23UB,Cheltenham Borough Council,446076,10287,COMPLETE CLIMATE SOLUTIONS LIMITED,C-L41100-3599,AG & M-Special Project,06/04/2011,350.00
http://statistics.data.gov.uk/id/local-authority-district/23UB,Cheltenham Borough Council,446076,10287,COMPLETE CLIMATE SOLUTIONS LIMITED,C-N11250-9227,Excluded,06/04/2011,-50.00
http://statistics.data.gov.uk/id/local-authority-district/23UB,Cheltenham Borough Council,445857,10288,COMPLETE CLIMATE SOLUTIONS LIMITED,C-N11250-9227,Excluded,06/04/2011,-50.00
http://statistics.data.gov.uk/id/local-authority-district/23UB,Cheltenham Borough Council,445857,10288,COMPLETE CLIMATE SOLUTIONS LIMITED,C-PM0020-R046,Town Hall-Kitchen Refurbishments,06/04/2011,"1,135.00"
http://statistics.data.gov.uk/id/local-authority-district/23UB,Cheltenham Borough Council,446026,10289,COMPLETE CLIMATE SOLUTIONS LIMITED,C-D14100-1101,Depot Building-General building repairs,06/04/2011,"2,875.00"
http://statistics.data.gov.uk/id/local-authority-district/23UB,Cheltenham Borough Council,446026,10289,COMPLETE CLIMATE SOLUTIONS LIMITED,C-N11250-9227,Excluded,06/04/2011,-110.00
http://statistics.data.gov.uk/id/local-authority-district/23UB,Cheltenham Borough Council,445858,10290,COMPLETE CLIMATE SOLUTIONS LIMITED,C-N11250-9227,Excluded,06/04/2011,-100.00
http://statistics.data.gov.uk/id/local-authority-district/23UB,Cheltenham Borough Council,445858,10290,COMPLETE CLIMATE SOLUTIONS LIMITED,C-PM0030-R046,Pitt.Pump Room-Kitchen Refurbishments,06/04/2011,"2,216.00"
http://statistics.data.gov.uk/id/local-authority-district/23UB,Cheltenham Borough Council,446024,102963,COMPLETE CLIMATE SOLUTIONS LIMITED,C-N11250-9227,Excluded,06/04/2011,-31.20
http://statistics.data.gov.uk/id/local-authority-district/23UB,Cheltenham Borough Council,446024,102963,COMPLETE CLIMATE SOLUTIONS LIMITED,C-PM0030-R043,Pitt.Pump Room-Rest room / Toilet Facili,06/04/2011,249.00
http://statistics.data.gov.uk/id/local-authority-district/23UB,Cheltenham Borough Council,445353,10220,COMPLETE CLIMATE SOLUTIONS LIMITED,C-N11250-9227,Excluded,06/04/2011,-540.00
http://statistics.data.gov.uk/id/local-authority-district/23UB,Cheltenham Borough Council,446025,10291,COMPLETE CLIMATE SOLUTIONS LIMITED,C-N11250-9227,Excluded,06/04/2011,-60.00
http://statistics.data.gov.uk/id/local-authority-district/23UB,Cheltenham Borough Council,446025,10291,COMPLETE CLIMATE SOLUTIONS LIMITED,C-PM0020-R046,Town Hall-Kitchen Refurbishments,06/04/2011,"1,509.80"
http://statistics.data.gov.uk/id/local-authority-district/23UB,Cheltenham Borough Council,446814,10266,COMPLETE CLIMATE SOLUTIONS LIMITED,C-D13100-1123,Muni Off Blgs-M&E Planned & Preventative,13/04/2011,"2,700.00"
http://statistics.data.gov.uk/id/local-authority-district/23UB,Cheltenham Borough Council,446814,10266,COMPLETE CLIMATE SOLUTIONS LIMITED,C-N11250-9227,Excluded,13/04/2011,-540.00
http://statistics.data.gov.uk/id/local-authority-district/23UB,Cheltenham Borough Council,446815,10267,COMPLETE CLIMATE SOLUTIONS LIMITED,C-D13100-1123,Muni Off Blgs-M&E Planned & Preventative,13/04/2011,"2,700.00"
http://statistics.data.gov.uk/id/local-authority-district/23UB,Cheltenham Borough Council,446815,10267,COMPLETE CLIMATE SOLUTIONS LIMITED,C-N11250-9227,Excluded,13/04/2011,-540.00
http://statistics.data.gov.uk/id/local-authority-district/23UB,Cheltenham Borough Council,446881,10268,COMPLETE CLIMATE SOLUTIONS LIMITED,C-D13100-1811,Muni Off Blgs-RM-Plan.& Prev.Mech.Ctrct,13/04/2011,948.02
http://statistics.data.gov.uk/id/local-authority-district/23UB,Cheltenham Borough Council,446881,10268,COMPLETE CLIMATE SOLUTIONS LIMITED,C-N11250-9227,Excluded,13/04/2011,-45.83
http://statistics.data.gov.uk/id/local-authority-district/23UB,Cheltenham Borough Council,446882,10269,COMPLETE CLIMATE SOLUTIONS LIMITED,C-L11500-1811,Rec Facilities-RM-Plan.& Prev.Mech.Ctrct,13/04/2011,581.80
http://statistics.data.gov.uk/id/local-authority-district/23UB,Cheltenham Borough Council,446882,10269,COMPLETE CLIMATE SOLUTIONS LIMITED,C-N11250-9227,Excluded,13/04/2011,-1.95
http://statistics.data.gov.uk/id/local-authority-district/23UB,Cheltenham Borough Council,446880,10270,COMPLETE CLIMATE SOLUTIONS LIMITED,C-D14100-1811,Depot Building-RM-Plan.& Prev.Mech.Ctrct,13/04/2011,102.38
http://statistics.data.gov.uk/id/local-authority-district/23UB,Cheltenham Borough Council,446880,10270,COMPLETE CLIMATE SOLUTIONS LIMITED,C-N11250-9227,Excluded,13/04/2011,-20.48
http://statistics.data.gov.uk/id/local-authority-district/23UB,Cheltenham Borough Council,446879,10271,COMPLETE CLIMATE SOLUTIONS LIMITED,C-D13550-1811,Area Off -E.Hse-RM-Plan.& Prev.Mech.Ctrc,13/04/2011,14.63
http://statistics.data.gov.uk/id/local-authority-district/23UB,Cheltenham Borough Council,446879,10271,COMPLETE CLIMATE SOLUTIONS LIMITED,C-N11250-9227,Excluded,13/04/2011,-2.93
http://statistics.data.gov.uk/id/local-authority-district/23UB,Cheltenham Borough Council,446878,10272,COMPLETE CLIMATE SOLUTIONS LIMITED,C-C22140-1811,Nursery-RM-Plan.& Prev.Mech.Ctrct,13/04/2011,14.63
http://statistics.data.gov.uk/id/local-authority-district/23UB,Cheltenham Borough Council,446878,10272,COMPLETE CLIMATE SOLUTIONS LIMITED,C-N11250-9227,Excluded,13/04/2011,-2.93
http://statistics.data.gov.uk/id/local-authority-district/23UB,Cheltenham Borough Council,446883,10273,COMPLETE CLIMATE SOLUTIONS LIMITED,C-L21200-1811,Pump Room-RM-Plan.& Prev.Mech.Ctrct,13/04/2011,9.75
http://statistics.data.gov.uk/id/local-authority-district/23UB,Cheltenham Borough Council,446883,10273,COMPLETE CLIMATE SOLUTIONS LIMITED,C-N11250-9227,Excluded,13/04/2011,-1.95
http://statistics.data.gov.uk/id/local-authority-district/23UB,Cheltenham Borough Council,446877,10276,COMPLETE CLIMATE SOLUTIONS LIMITED,C-D13100-1811,Muni Off Blgs-RM-Plan.& Prev.Mech.Ctrct,13/04/2011,14.62
http://statistics.data.gov.uk/id/local-authority-district/23UB,Cheltenham Borough Council,446877,10276,COMPLETE CLIMATE SOLUTIONS LIMITED,C-N11250-9227,Excluded,13/04/2011,-2.92
http://statistics.data.gov.uk/id/local-authority-district/23UB,Cheltenham Borough Council,446884,10278,COMPLETE CLIMATE SOLUTIONS LIMITED,C-L21100-1811,Town Hall-RM-Plan.& Prev.Mech.Ctrct,13/04/2011,148.37
http://statistics.data.gov.uk/id/local-authority-district/23UB,Cheltenham Borough Council,446884,10278,COMPLETE CLIMATE SOLUTIONS LIMITED,C-N11250-9227,Excluded,13/04/2011,-17.55
http://statistics.data.gov.uk/id/local-authority-district/23UB,Cheltenham Borough Council,446885,10279,COMPLETE CLIMATE SOLUTIONS LIMITED,C-L11500-1811,Rec Facilities-RM-Plan.& Prev.Mech.Ctrct,13/04/2011,423.68
http://statistics.data.gov.uk/id/local-authority-district/23UB,Cheltenham Borough Council,446885,10279,COMPLETE CLIMATE SOLUTIONS LIMITED,C-N11250-9227,Excluded,13/04/2011,-11.90
http://statistics.data.gov.uk/id/local-authority-district/23UB,Cheltenham Borough Council,446886,10281,COMPLETE CLIMATE SOLUTIONS LIMITED,C-L41100-1811,AG & M-RM-Plan.& Prev.Mech.Ctrct,13/04/2011,111.19
http://statistics.data.gov.uk/id/local-authority-district/23UB,Cheltenham Borough Council,446886,10281,COMPLETE CLIMATE SOLUTIONS LIMITED,C-N11250-9227,Excluded,13/04/2011,-13.65
http://statistics.data.gov.uk/id/local-authority-district/23UB,Cheltenham Borough Council,446876,10283,COMPLETE CLIMATE SOLUTIONS LIMITED,C-D14100-1811,Depot Building-RM-Plan.& Prev.Mech.Ctrct,13/04/2011,39.00
http://statistics.data.gov.uk/id/local-authority-district/23UB,Cheltenham Borough Council,446876,10283,COMPLETE CLIMATE SOLUTIONS LIMITED,C-N11250-9227,Excluded,13/04/2011,-7.80
http://statistics.data.gov.uk/id/local-authority-district/23UB,Cheltenham Borough Council,446875,10284,COMPLETE CLIMATE SOLUTIONS LIMITED,C-C22120-1811,Sports & Open S-RM-Plan.& Prev.Mech.Ctrc,13/04/2011,566.41
http://statistics.data.gov.uk/id/local-authority-district/23UB,Cheltenham Borough Council,446875,10284,COMPLETE CLIMATE SOLUTIONS LIMITED,C-N11250-9227,Excluded,13/04/2011,-17.55
http://statistics.data.gov.uk/id/local-authority-district/23UB,Cheltenham Borough Council,446874,10286,COMPLETE CLIMATE SOLUTIONS LIMITED,C-C22140-1811,Nursery-RM-Plan.& Prev.Mech.Ctrct,13/04/2011,146.25
http://statistics.data.gov.uk/id/local-authority-district/23UB,Cheltenham Borough Council,446874,10286,COMPLETE CLIMATE SOLUTIONS LIMITED,C-N11250-9227,Excluded,13/04/2011,-9.75
http://statistics.data.gov.uk/id/local-authority-district/23UB,Cheltenham Borough Council,446473,1559,COMMERCIAL MOWER SUPPLIES,C-C22120-3101,Spts/Open Space-Equipment purchases,13/04/2011,458.20
http://statistics.data.gov.uk/id/local-authority-district/23UB,Cheltenham Borough Council,446473,1559,COMMERCIAL MOWER SUPPLIES,C-C22120-3101,Spts/Open Space-Equipment purchases,13/04/2011,194.21
http://statistics.data.gov.uk/id/local-authority-district/23UB,Cheltenham Borough Council,446473,1559,COMMERCIAL MOWER SUPPLIES,C-C22120-3101,Spts/Open Space-Equipment purchases,13/04/2011,159.90
http://statistics.data.gov.uk/id/local-authority-district/23UB,Cheltenham Borough Council,446473,1559,COMMERCIAL MOWER SUPPLIES,C-C22120-3101,Spts/Open Space-Equipment purchases,13/04/2011,177.09
http://statistics.data.gov.uk/id/local-authority-district/23UB,Cheltenham Borough Council,446379,505020,COMENSURA LIMITED,C-C22110-0115,Parks & Gardens-Temporary Agency Staff,07/04/2011,279.20
http://statistics.data.gov.uk/id/local-authority-district/23UB,Cheltenham Borough Council,446379,505020,COMENSURA LIMITED,C-C22110-0115,Parks & Gardens-Temporary Agency Staff,07/04/2011,346.88
http://statistics.data.gov.uk/id/local-authority-district/23UB,Cheltenham Borough Council,446379,505020,COMENSURA LIMITED,C-C22110-0115,Parks & Gardens-Temporary Agency Staff,07/04/2011,137.48
http://statistics.data.gov.uk/id/local-authority-district/23UB,Cheltenham Borough Council,446379,505020,COMENSURA LIMITED,C-C22145-0115,L/Serv Misc Wk-Temporary Agency Staff,07/04/2011,94.00
http://statistics.data.gov.uk/id/local-authority-district/23UB,Cheltenham Borough Council,446379,505020,COMENSURA LIMITED,C-C23100-0115,Refuse Collection-Temporary Agency Staff,07/04/2011,313.02
http://statistics.data.gov.uk/id/local-authority-district/23UB,Cheltenham Borough Council,446379,505020,COMENSURA LIMITED,C-C23100-0115,Refuse Collection-Temporary Agency Staff,07/04/2011,109.98
http://statistics.data.gov.uk/id/local-authority-district/23UB,Cheltenham Borough Council,446379,505020,COMENSURA LIMITED,C-C23100-0115,Refuse Collection-Temporary Agency Staff,07/04/2011,313.02
http://statistics.data.gov.uk/id/local-authority-district/23UB,Cheltenham Borough Council,446379,505020,COMENSURA LIMITED,C-C23100-0115,Refuse Collection-Temporary Agency Staff,07/04/2011,27.49
http://statistics.data.gov.uk/id/local-authority-district/23UB,Cheltenham Borough Council,446379,505020,COMENSURA LIMITED,C-C23100-0115,Refuse Collection-Temporary Agency Staff,07/04/2011,95.17
http://statistics.data.gov.uk/id/local-authority-district/23UB,Cheltenham Borough Council,446379,505020,COMENSURA LIMITED,C-C23100-0115,Refuse Collection-Temporary Agency Staff,07/04/2011,485.20
http://statistics.data.gov.uk/id/local-authority-district/23UB,Cheltenham Borough Council,446379,505020,COMENSURA LIMITED,C-C23100-0115,Refuse Collection-Temporary Agency Staff,07/04/2011,497.32
http://statistics.data.gov.uk/id/local-authority-district/23UB,Cheltenham Borough Council,446379,505020,COMENSURA LIMITED,C-C23100-0115,Refuse Collection-Temporary Agency Staff,07/04/2011,353.21
http://statistics.data.gov.uk/id/local-authority-district/23UB,Cheltenham Borough Council,446379,505020,COMENSURA LIMITED,C-C23100-0115,Refuse Collection-Temporary Agency Staff,07/04/2011,346.50
http://statistics.data.gov.uk/id/local-authority-district/23UB,Cheltenham Borough Council,446379,505020,COMENSURA LIMITED,C-C23100-0115,Refuse Collection-Temporary Agency Staff,07/04/2011,313.02
http://statistics.data.gov.uk/id/local-authority-district/23UB,Cheltenham Borough Council,446379,505020,COMENSURA LIMITED,C-C23100-0115,Refuse Collection-Temporary Agency Staff,07/04/2011,368.01
http://statistics.data.gov.uk/id/local-authority-district/23UB,Cheltenham Borough Council,446379,505020,COMENSURA LIMITED,C-C23100-0115,Refuse Collection-Temporary Agency Staff,07/04/2011,106.14
http://statistics.data.gov.uk/id/local-authority-district/23UB,Cheltenham Borough Council,446379,505020,COMENSURA LIMITED,C-C23100-0115,Refuse Collection-Temporary Agency Staff,07/04/2011,194.08
http://statistics.data.gov.uk/id/local-authority-district/23UB,Cheltenham Borough Council,446379,505020,COMENSURA LIMITED,C-C23100-0115,Refuse Collection-Temporary Agency Staff,07/04/2011,268.60
http://statistics.data.gov.uk/id/local-authority-district/23UB,Cheltenham Borough Council,446379,505020,COMENSURA LIMITED,C-C23100-0115,Refuse Collection-Temporary Agency Staff,07/04/2011,260.14
http://statistics.data.gov.uk/id/local-authority-district/23UB,Cheltenham Borough Council,446379,505020,COMENSURA LIMITED,C-C23100-0115,Refuse Collection-Temporary Agency Staff,07/04/2011,54.99
http://statistics.data.gov.uk/id/local-authority-district/23UB,Cheltenham Borough Council,446379,505020,COMENSURA LIMITED,C-C23100-0115,Refuse Collection-Temporary Agency Staff,07/04/2011,101.52
http://statistics.data.gov.uk/id/local-authority-district/23UB,Cheltenham Borough Council,446379,505020,COMENSURA LIMITED,C-C23100-0115,Refuse Collection-Temporary Agency Staff,07/04/2011,260.14
http://statistics.data.gov.uk/id/local-authority-district/23UB,Cheltenham Borough Council,446379,505020,COMENSURA LIMITED,C-C23100-0115,Refuse Collection-Temporary Agency Staff,07/04/2011,54.99
http://statistics.data.gov.uk/id/local-authority-district/23UB,Cheltenham Borough Council,446379,505020,COMENSURA LIMITED,C-C23100-0115,Refuse Collection-Temporary Agency Staff,07/04/2011,97.04
http://statistics.data.gov.uk/id/local-authority-district/23UB,Cheltenham Borough Council,446379,505020,COMENSURA LIMITED,C-C23110-0115,Street Cleaning-Temporary Agency Staff,07/04/2011,253.80
http://statistics.data.gov.uk/id/local-authority-district/23UB,Cheltenham Borough Council,446379,505020,COMENSURA LIMITED,C-C23110-0115,Street Cleaning-Temporary Agency Staff,07/04/2011,313.02
http://statistics.data.gov.uk/id/local-authority-district/23UB,Cheltenham Borough Council,446379,505020,COMENSURA LIMITED,C-C23110-0115,Street Cleaning-Temporary Agency Staff,07/04/2011,313.02
http://statistics.data.gov.uk/id/local-authority-district/23UB,Cheltenham Borough Council,446379,505020,COMENSURA LIMITED,C-C23125-0115,Recyl Bring Schms-Temporary Agency Staff,07/04/2011,18.18
http://statistics.data.gov.uk/id/local-authority-district/23UB,Cheltenham Borough Council,446379,505020,COMENSURA LIMITED,C-C23125-0115,Recyl Bring Schms-Temporary Agency Staff,07/04/2011,388.16
http://statistics.data.gov.uk/id/local-authority-district/23UB,Cheltenham Borough Council,446379,505020,COMENSURA LIMITED,C-C23140-0115,Public Convnces-Temporary Agency Staff,07/04/2011,368.01
http://statistics.data.gov.uk/id/local-authority-district/23UB,Cheltenham Borough Council,446379,505020,COMENSURA LIMITED,C-C23160-0115,Env Maint Div-Temporary Agency Staff,07/04/2011,346.50
http://statistics.data.gov.uk/id/local-authority-district/23UB,Cheltenham Borough Council,446379,505020,COMENSURA LIMITED,C-C23160-0115,Env Maint Div-Temporary Agency Staff,07/04/2011,277.20
http://statistics.data.gov.uk/id/local-authority-district/23UB,Cheltenham Borough Council,446379,505020,COMENSURA LIMITED,C-C23160-0115,Env Maint Div-Temporary Agency Staff,07/04/2011,346.50
http://statistics.data.gov.uk/id/local-authority-district/23UB,Cheltenham Borough Council,446379,505020,COMENSURA LIMITED,C-C23160-0115,Env Maint Div-Temporary Agency Staff,07/04/2011,346.50
http://statistics.data.gov.uk/id/local-authority-district/23UB,Cheltenham Borough Council,446379,505020,COMENSURA LIMITED,C-C23180-0115,Rcycl Coltn Schms-Temporary Agency Staff,07/04/2011,111.44
http://statistics.data.gov.uk/id/local-authority-district/23UB,Cheltenham Borough Council,446379,505020,COMENSURA LIMITED,C-C23180-0115,Rcycl Coltn Schms-Temporary Agency Staff,07/04/2011,6.06
http://statistics.data.gov.uk/id/local-authority-district/23UB,Cheltenham Borough Council,446379,505020,COMENSURA LIMITED,C-C23180-0115,Rcycl Coltn Schms-Temporary Agency Staff,07/04/2011,308.79
http://statistics.data.gov.uk/id/local-authority-district/23UB,Cheltenham Borough Council,446379,505020,COMENSURA LIMITED,C-C23180-0115,Rcycl Coltn Schms-Temporary Agency Staff,07/04/2011,409.59
http://statistics.data.gov.uk/id/local-authority-district/23UB,Cheltenham Borough Council,446379,505020,COMENSURA LIMITED,C-C23180-0115,Rcycl Coltn Schms-Temporary Agency Staff,07/04/2011,-74.27
http://statistics.data.gov.uk/id/local-authority-district/23UB,Cheltenham Borough Council,446379,505020,COMENSURA LIMITED,C-C23180-0115,Rcycl Coltn Schms-Temporary Agency Staff,07/04/2011,308.79
http://statistics.data.gov.uk/id/local-authority-district/23UB,Cheltenham Borough Council,446379,505020,COMENSURA LIMITED,C-C23180-0115,Rcycl Coltn Schms-Temporary Agency Staff,07/04/2011,97.04
http://statistics.data.gov.uk/id/local-authority-district/23UB,Cheltenham Borough Council,446379,505020,COMENSURA LIMITED,C-C23180-0115,Rcycl Coltn Schms-Temporary Agency Staff,07/04/2011,152.28
http://statistics.data.gov.uk/id/local-authority-district/23UB,Cheltenham Borough Council,446379,505020,COMENSURA LIMITED,C-C23180-0115,Rcycl Coltn Schms-Temporary Agency Staff,07/04/2011,342.63
http://statistics.data.gov.uk/id/local-authority-district/23UB,Cheltenham Borough Council,446379,505020,COMENSURA LIMITED,C-C23180-0115,Rcycl Coltn Schms-Temporary Agency Staff,07/04/2011,336.29
http://statistics.data.gov.uk/id/local-authority-district/23UB,Cheltenham Borough Council,446379,505020,COMENSURA LIMITED,C-C23180-0115,Rcycl Coltn Schms-Temporary Agency Staff,07/04/2011,238.99
http://statistics.data.gov.uk/id/local-authority-district/23UB,Cheltenham Borough Council,446379,505020,COMENSURA LIMITED,C-C23180-0115,Rcycl Coltn Schms-Temporary Agency Staff,07/04/2011,253.80
http://statistics.data.gov.uk/id/local-authority-district/23UB,Cheltenham Borough Council,446379,505020,COMENSURA LIMITED,C-C23180-0115,Rcycl Coltn Schms-Temporary Agency Staff,07/04/2011,122.67
http://statistics.data.gov.uk/id/local-authority-district/23UB,Cheltenham Borough Council,446379,505020,COMENSURA LIMITED,C-C23180-0115,Rcycl Coltn Schms-Temporary Agency Staff,07/04/2011,131.13
http://statistics.data.gov.uk/id/local-authority-district/23UB,Cheltenham Borough Council,446379,505020,COMENSURA LIMITED,C-C23180-0115,Rcycl Coltn Schms-Temporary Agency Staff,07/04/2011,491.26
http://statistics.data.gov.uk/id/local-authority-district/23UB,Cheltenham Borough Council,446379,505020,COMENSURA LIMITED,C-C23180-0115,Rcycl Coltn Schms-Temporary Agency Staff,07/04/2011,262.26
http://statistics.data.gov.uk/id/local-authority-district/23UB,Cheltenham Borough Council,446379,505020,COMENSURA LIMITED,C-C23180-0115,Rcycl Coltn Schms-Temporary Agency Staff,07/04/2011,342.63
http://statistics.data.gov.uk/id/local-authority-district/23UB,Cheltenham Borough Council,446379,505020,COMENSURA LIMITED,C-C23180-0115,Rcycl Coltn Schms-Temporary Agency Staff,07/04/2011,424.40
http://statistics.data.gov.uk/id/local-authority-district/23UB,Cheltenham Borough Council,446379,505020,COMENSURA LIMITED,C-C23180-0115,Rcycl Coltn Schms-Temporary Agency Staff,07/04/2011,270.72
http://statistics.data.gov.uk/id/local-authority-district/23UB,Cheltenham Borough Council,446379,505020,COMENSURA LIMITED,C-C23180-0115,Rcycl Coltn Schms-Temporary Agency Staff,07/04/2011,329.94
http://statistics.data.gov.uk/id/local-authority-district/23UB,Cheltenham Borough Council,446379,505020,COMENSURA LIMITED,C-C23180-0115,Rcycl Coltn Schms-Temporary Agency Staff,07/04/2011,143.82
http://statistics.data.gov.uk/id/local-authority-district/23UB,Cheltenham Borough Council,446379,505020,COMENSURA LIMITED,C-C23180-0115,Rcycl Coltn Schms-Temporary Agency Staff,07/04/2011,44.42
http://statistics.data.gov.uk/id/local-authority-district/23UB,Cheltenham Borough Council,446379,505020,COMENSURA LIMITED,C-C23180-0115,Rcycl Coltn Schms-Temporary Agency Staff,07/04/2011,126.90
http://statistics.data.gov.uk/id/local-authority-district/23UB,Cheltenham Borough Council,446379,505020,COMENSURA LIMITED,C-C23180-0115,Rcycl Coltn Schms-Temporary Agency Staff,07/04/2011,401.85
http://statistics.data.gov.uk/id/local-authority-district/23UB,Cheltenham Borough Council,446379,505020,COMENSURA LIMITED,C-C23180-0115,Rcycl Coltn Schms-Temporary Agency Staff,07/04/2011,249.57
http://statistics.data.gov.uk/id/local-authority-district/23UB,Cheltenham Borough Council,446379,505020,COMENSURA LIMITED,C-C23180-0115,Rcycl Coltn Schms-Temporary Agency Staff,07/04/2011,245.34
http://statistics.data.gov.uk/id/local-authority-district/23UB,Cheltenham Borough Council,446379,505020,COMENSURA LIMITED,C-C23180-0115,Rcycl Coltn Schms-Temporary Agency Staff,07/04/2011,156.51
http://statistics.data.gov.uk/id/local-authority-district/23UB,Cheltenham Borough Council,446379,505020,COMENSURA LIMITED,C-C23180-0115,Rcycl Coltn Schms-Temporary Agency Staff,07/04/2011,289.12
http://statistics.data.gov.uk/id/local-authority-district/23UB,Cheltenham Borough Council,446379,505020,COMENSURA LIMITED,C-C23180-0115,Rcycl Coltn Schms-Temporary Agency Staff,07/04/2011,413.80
http://statistics.data.gov.uk/id/local-authority-district/23UB,Cheltenham Borough Council,446379,505020,COMENSURA LIMITED,C-C23180-0115,Rcycl Coltn Schms-Temporary Agency Staff,07/04/2011,413.80
http://statistics.data.gov.uk/id/local-authority-district/23UB,Cheltenham Borough Council,446379,505020,COMENSURA LIMITED,C-C23180-0115,Rcycl Coltn Schms-Temporary Agency Staff,07/04/2011,355.32
http://statistics.data.gov.uk/id/local-authority-district/23UB,Cheltenham Borough Council,446379,505020,COMENSURA LIMITED,C-C23180-0115,Rcycl Coltn Schms-Temporary Agency Staff,07/04/2011,236.88
http://statistics.data.gov.uk/id/local-authority-district/23UB,Cheltenham Borough Council,446379,505020,COMENSURA LIMITED,C-C23180-0115,Rcycl Coltn Schms-Temporary Agency Staff,07/04/2011,313.03
http://statistics.data.gov.uk/id/local-authority-district/23UB,Cheltenham Borough Council,446379,505020,COMENSURA LIMITED,C-C23180-0115,Rcycl Coltn Schms-Temporary Agency Staff,07/04/2011,509.28
http://statistics.data.gov.uk/id/local-authority-district/23UB,Cheltenham Borough Council,446379,505020,COMENSURA LIMITED,C-C23180-0115,Rcycl Coltn Schms-Temporary Agency Staff,07/04/2011,435.00
http://statistics.data.gov.uk/id/local-authority-district/23UB,Cheltenham Borough Council,446379,505020,COMENSURA LIMITED,C-C23180-0115,Rcycl Coltn Schms-Temporary Agency Staff,07/04/2011,416.44
http://statistics.data.gov.uk/id/local-authority-district/23UB,Cheltenham Borough Council,446379,505020,COMENSURA LIMITED,C-C23180-0115,Rcycl Coltn Schms-Temporary Agency Staff,07/04/2011,198.81
http://statistics.data.gov.uk/id/local-authority-district/23UB,Cheltenham Borough Council,446379,505020,COMENSURA LIMITED,C-C23180-0115,Rcycl Coltn Schms-Temporary Agency Staff,07/04/2011,484.80
http://statistics.data.gov.uk/id/local-authority-district/23UB,Cheltenham Borough Council,446379,505020,COMENSURA LIMITED,C-C23180-0115,Rcycl Coltn Schms-Temporary Agency Staff,07/04/2011,88.83
http://statistics.data.gov.uk/id/local-authority-district/23UB,Cheltenham Borough Council,446379,505020,COMENSURA LIMITED,C-C23180-0115,Rcycl Coltn Schms-Temporary Agency Staff,07/04/2011,-346.86
http://statistics.data.gov.uk/id/local-authority-district/23UB,Cheltenham Borough Council,446379,505020,COMENSURA LIMITED,C-C23180-0115,Rcycl Coltn Schms-Temporary Agency Staff,07/04/2011,459.50
http://statistics.data.gov.uk/id/local-authority-district/23UB,Cheltenham Borough Council,446379,505020,COMENSURA LIMITED,C-C23180-0115,Rcycl Coltn Schms-Temporary Agency Staff,07/04/2011,-8.46
http://statistics.data.gov.uk/id/local-authority-district/23UB,Cheltenham Borough Council,446379,505020,COMENSURA LIMITED,C-C23190-0115,Garden Collectn-Temporary Agency Staff,07/04/2011,317.25
http://statistics.data.gov.uk/id/local-authority-district/23UB,Cheltenham Borough Council,446379,505020,COMENSURA LIMITED,C-C23190-0115,Garden Collectn-Temporary Agency Staff,07/04/2011,497.33
http://statistics.data.gov.uk/id/local-authority-district/23UB,Cheltenham Borough Council,446379,505020,COMENSURA LIMITED,C-C23190-0115,Garden Collectn-Temporary Agency Staff,07/04/2011,212.20
http://statistics.data.gov.uk/id/local-authority-district/23UB,Cheltenham Borough Council,446379,505020,COMENSURA LIMITED,C-C23190-0115,Garden Collectn-Temporary Agency Staff,07/04/2011,118.44
http://statistics.data.gov.uk/id/local-authority-district/23UB,Cheltenham Borough Council,446379,505020,COMENSURA LIMITED,C-C23190-0115,Garden Collectn-Temporary Agency Staff,07/04/2011,363.79
http://statistics.data.gov.uk/id/local-authority-district/23UB,Cheltenham Borough Council,446379,505020,COMENSURA LIMITED,C-C23190-0115,Garden Collectn-Temporary Agency Staff,07/04/2011,245.34
http://statistics.data.gov.uk/id/local-authority-district/23UB,Cheltenham Borough Council,446379,505020,COMENSURA LIMITED,C-D13100-0115,Muni Off Blgs-Temporary Agency Staff,07/04/2011,84.60
http://statistics.data.gov.uk/id/local-authority-district/23UB,Cheltenham Borough Council,446379,505020,COMENSURA LIMITED,C-D13100-0115,Muni Off Blgs-Temporary Agency Staff,07/04/2011,84.60
http://statistics.data.gov.uk/id/local-authority-district/23UB,Cheltenham Borough Council,446379,505020,COMENSURA LIMITED,C-D13100-0115,Muni Off Blgs-Temporary Agency Staff,07/04/2011,118.44
http://statistics.data.gov.uk/id/local-authority-district/23UB,Cheltenham Borough Council,446379,505020,COMENSURA LIMITED,C-E63100-0115,Cemetery & Crem-Temporary Agency Staff,07/04/2011,313.02
http://statistics.data.gov.uk/id/local-authority-district/23UB,Cheltenham Borough Council,446379,505020,COMENSURA LIMITED,C-E63100-0115,Cemetery & Crem-Temporary Agency Staff,07/04/2011,278.72
http://statistics.data.gov.uk/id/local-authority-district/23UB,Cheltenham Borough Council,446379,505020,COMENSURA LIMITED,C-E75500-0115,Intgd Tran Div-Temporary Agency Staff,07/04/2011,500.99
http://statistics.data.gov.uk/id/local-authority-district/23UB,Cheltenham Borough Council,446379,505020,COMENSURA LIMITED,C-E75500-0115,Intgd Tran Div-Temporary Agency Staff,07/04/2011,259.77
http://statistics.data.gov.uk/id/local-authority-district/23UB,Cheltenham Borough Council,445968,2383,COMBUSTION SOLUTIONS,C-E63100-1215,Cemetery & Crem-Cremator servicing & rep,06/04/2011,588.00
http://statistics.data.gov.uk/id/local-authority-district/23UB,Cheltenham Borough Council,445968,2383,COMBUSTION SOLUTIONS,C-E63100-1215,Cemetery & Crem-Cremator servicing & rep,06/04/2011,30.00
http://statistics.data.gov.uk/id/local-authority-district/23UB,Cheltenham Borough Council,445968,2383,COMBUSTION SOLUTIONS,C-E63100-1215,Cemetery & Crem-Cremator servicing & rep,06/04/2011,570.00
http://statistics.data.gov.uk/id/local-authority-district/23UB,Cheltenham Borough Council,445969,2386,COMBUSTION SOLUTIONS,C-E63100-1215,Cemetery & Crem-Cremator servicing & rep,06/04/2011,"3,726.00"
http://statistics.data.gov.uk/id/local-authority-district/23UB,Cheltenham Borough Council,445931,48301,CONSTANTINE,C-L41100-2701,AG & M-Hired transport,06/04/2011,"1,000.00"
http://statistics.data.gov.uk/id/local-authority-district/23UB,Cheltenham Borough Council,445931,48301,CONSTANTINE,C-Z12440-AG91,AGM Exhibitions-Horse in Art,06/04/2011,"2,900.00"
http://statistics.data.gov.uk/id/local-authority-district/23UB,Cheltenham Borough Council,445931,48301,CONSTANTINE,C-Z12440-AG91,AGM Exhibitions-Horse in Art,06/04/2011,300.00
http://statistics.data.gov.uk/id/local-authority-district/23UB,Cheltenham Borough Council,445931,48301,CONSTANTINE,C-Z12440-AG91,AGM Exhibitions-Horse in Art,06/04/2011,65.00
http://statistics.data.gov.uk/id/local-authority-district/23UB,Cheltenham Borough Council,446747,11000462,CONTENUR UK LIMITED,C-C23180-3101,Rcycl Coltn Schms-Equipment purchases,13/04/2011,"9,437.50"
http://statistics.data.gov.uk/id/local-authority-district/23UB,Cheltenham Borough Council,446732,1141,COOMBS PROPERTY SERVICES LTD,C-HC4069-C302,Fire Protection-Building Contractor,13/04/2011,"1,826.00"
http://statistics.data.gov.uk/id/local-authority-district/23UB,Cheltenham Borough Council,445842,7669,CORINIUM CARPETS,C-HC4068-C302,Sheltered Hsg-Building Contractor,06/04/2011,465.00
http://statistics.data.gov.uk/id/local-authority-district/23UB,Cheltenham Borough Council,445841,7669,CORINIUM CARPETS,C-HC4068-C302,Sheltered Hsg-Building Contractor,06/04/2011,"1,505.00"
http://statistics.data.gov.uk/id/local-authority-district/23UB,Cheltenham Borough Council,445959,14391,CORY ENVIRONMENTAL LTD,C-C23100-3581,Refuse Collctn-Tipping charges,06/04/2011,"5,767.79"
http://statistics.data.gov.uk/id/local-authority-district/23UB,Cheltenham Borough Council,446534,14442,CORY ENVIRONMENTAL LTD,C-C23100-3581,Refuse Collctn-Tipping charges,13/04/2011,"5,219.47"
http://statistics.data.gov.uk/id/local-authority-district/23UB,Cheltenham Borough Council,447857,14496,CORY ENVIRONMENTAL LTD,C-C23100-3581,Refuse Collctn-Tipping charges,28/04/2011,"3,677.32"
http://statistics.data.gov.uk/id/local-authority-district/23UB,Cheltenham Borough Council,446863,P118,COTSWOLD ESTATES & GARDENS,C-LC6015-C405,LeckhamptonHill-Specialist Contractor,13/04/2011,"13,758.80"
http://statistics.data.gov.uk/id/local-authority-district/23UB,Cheltenham Borough Council,446863,P118,COTSWOLD ESTATES & GARDENS,C-LC6015-C405,LeckhamptonHill-Specialist Contractor,13/04/2011,"6,763.27"
http://statistics.data.gov.uk/id/local-authority-district/23UB,Cheltenham Borough Council,446863,P118,COTSWOLD ESTATES & GARDENS,C-LC6015-C405,LeckhamptonHill-Specialist Contractor,13/04/2011,"17,282.80"
http://statistics.data.gov.uk/id/local-authority-district/23UB,Cheltenham Borough Council,446011,917,COUNTY COMMUNITY PROJECTS,C-Z13500-3501,LAA - ASBO Rev-Hire of outside services,06/04/2011,"3,500.00"
http://statistics.data.gov.uk/id/local-authority-district/23UB,Cheltenham Borough Council,447341,941,COUNTY COMMUNITY PROJECTS,C-H22400-3887,Homelessness-Mediation Services,20/04/2011,"6,563.00"
http://statistics.data.gov.uk/id/local-authority-district/23UB,Cheltenham Borough Council,448012,882,COUNTY COMMUNITY PROJECTS,C-D21950-3192,Community Plan-youth officer,28/04/2011,"3,000.00"
http://statistics.data.gov.uk/id/local-authority-district/23UB,Cheltenham Borough Council,446854,SETTLEMENT,MRS R CREED T/A HOWLERS COMEDY CLUB,C-N13125-9205,ASH Ledger-Town Hall Invoices Paid,13/04/2011,-385.75
http://statistics.data.gov.uk/id/local-authority-district/23UB,Cheltenham Borough Council,446854,SETTLEMENT,MRS R CREED T/A HOWLERS COMEDY CLUB,C-Z12210-9138,Box Off A/C-TH Hirers Tkt Pd out,13/04/2011,"1,898.00"
http://statistics.data.gov.uk/id/local-authority-district/23UB,Cheltenham Borough Council,447727,787007,CRIMINAL RECORDS BUREAU,C-A21500-3501,Licensing-Hire of outside services,28/04/2011,"1,065.00"
http://statistics.data.gov.uk/id/local-authority-district/23UB,Cheltenham Borough Council,447727,787007,CRIMINAL RECORDS BUREAU,C-C22100-3501,Green Env Div-Hire of outside services,28/04/2011,36.00
http://statistics.data.gov.uk/id/local-authority-district/23UB,Cheltenham Borough Council,447727,787007,CRIMINAL RECORDS BUREAU,C-H22600-3501,Community Servs-Hire of outside services,28/04/2011,62.00
http://statistics.data.gov.uk/id/local-authority-district/23UB,Cheltenham Borough Council,447727,787007,CRIMINAL RECORDS BUREAU,C-L11500-3501,Rec Facilities-Hire of outside services,28/04/2011,62.00
http://statistics.data.gov.uk/id/local-authority-district/23UB,Cheltenham Borough Council,447727,787007,CRIMINAL RECORDS BUREAU,C-L41100-3501,AG & M-Hire of outside services,28/04/2011,72.00
http://statistics.data.gov.uk/id/local-authority-district/23UB,Cheltenham Borough Council,448022,9000053748,DAVIS LANGDON LLP,C-L41100-3816,AG & M-RIBA -  Fees,28/04/2011,"3,500.00"
http://statistics.data.gov.uk/id/local-authority-district/23UB,Cheltenham Borough Council,447721,110359,DEEPCLEAN HYGIENE SOLUTIONS LTD,C-L21100-3501,Town Hall-Hire of outside services,28/04/2011,588.00
http://statistics.data.gov.uk/id/local-authority-district/23UB,Cheltenham Borough Council,447722,110366,DEEPCLEAN HYGIENE SOLUTIONS LTD,C-L21200-3501,Pump Room-Hire of outside services,28/04/2011,"1,372.00"
http://statistics.data.gov.uk/id/local-authority-district/23UB,Cheltenham Borough Council,446836,7401825429,DELL COMPUTER CORPORATION LTD,C-GOERP-3661,GO ERP System-Hardware Peripherals     ,13/04/2011,450.52
http://statistics.data.gov.uk/id/local-authority-district/23UB,Cheltenham Borough Council,446852,7401826018,DELL COMPUTER CORPORATION LTD,C-D11820-3660,IT Infrastructu-Hardware PC & Servers,13/04/2011,99.00
http://statistics.data.gov.uk/id/local-authority-district/23UB,Cheltenham Borough Council,446835,7401826090,DELL COMPUTER CORPORATION LTD,C-GOERP-3661,GO ERP System-Hardware Peripherals     ,13/04/2011,742.36
http://statistics.data.gov.uk/id/local-authority-district/23UB,Cheltenham Borough Council,446838,7401830118,DELL COMPUTER CORPORATION LTD,C-D11820-3660,IT Infrastructu-Hardware PC & Servers,13/04/2011,756.54
http://statistics.data.gov.uk/id/local-authority-district/23UB,Cheltenham Borough Council,446838,7401830118,DELL COMPUTER CORPORATION LTD,C-D11820-3660,IT Infrastructu-Hardware PC & Servers,13/04/2011,"3,289.20"
http://statistics.data.gov.uk/id/local-authority-district/23UB,Cheltenham Borough Council,446269,186672,DENNIS EAGLE,C-NBS000-BI54,B/S-Leasing,06/04/2011,"154,405.00"
http://statistics.data.gov.uk/id/local-authority-district/23UB,Cheltenham Borough Council,446270,186674,DENNIS EAGLE,C-NBS000-BI54,B/S-Leasing,06/04/2011,"154,405.00"
http://statistics.data.gov.uk/id/local-authority-district/23UB,Cheltenham Borough Council,446271,186676,DENNIS EAGLE,C-NBS000-BI54,B/S-Leasing,06/04/2011,"154,405.00"
http://statistics.data.gov.uk/id/local-authority-district/23UB,Cheltenham Borough Council,446272,186677,DENNIS EAGLE,C-NBS000-BI54,B/S-Leasing,06/04/2011,"154,405.00"
http://statistics.data.gov.uk/id/local-authority-district/23UB,Cheltenham Borough Council,446576,DE10536370,DENNIS EAGLE,C-C24100-3582,Fleet Maint-DSO Invoices,13/04/2011,769.04
http://statistics.data.gov.uk/id/local-authority-district/23UB,Cheltenham Borough Council,446604,DE10546274,DENNIS EAGLE,C-C24100-3582,Fleet Maint-DSO Invoices,13/04/2011,65.47
http://statistics.data.gov.uk/id/local-authority-district/23UB,Cheltenham Borough Council,446596,DE10546547,DENNIS EAGLE,C-C24100-3582,Fleet Maint-DSO Invoices,13/04/2011,130.96
http://statistics.data.gov.uk/id/local-authority-district/23UB,Cheltenham Borough Council,447463,513124,DESIGNA UK LIMITED,C-E21100-3103,Car Prks-Off St-Equipment repairs & main,20/04/2011,"4,613.75"
http://statistics.data.gov.uk/id/local-authority-district/23UB,Cheltenham Borough Council,447452,PROFORMA,DISTRICT SURVEYORS LTD,C-B52300-3890,Bldg Control-Subscriptions - general,20/04/2011,"2,343.22"
http://statistics.data.gov.uk/id/local-authority-district/23UB,Cheltenham Borough Council,447282,202348,DOMESTIC AND GENERAL INSULATION LTD,C-HC4076-C302,Loft/Cavity Ins-Building Contractor,20/04/2011,199.00
http://statistics.data.gov.uk/id/local-authority-district/23UB,Cheltenham Borough Council,447283,202349,DOMESTIC AND GENERAL INSULATION LTD,C-HC4076-C302,Loft/Cavity Ins-Building Contractor,20/04/2011,199.00
http://statistics.data.gov.uk/id/local-authority-district/23UB,Cheltenham Borough Council,447285,202351,DOMESTIC AND GENERAL INSULATION LTD,C-HC4076-C302,Loft/Cavity Ins-Building Contractor,20/04/2011,199.00
http://statistics.data.gov.uk/id/local-authority-district/23UB,Cheltenham Borough Council,447286,202352,DOMESTIC AND GENERAL INSULATION LTD,C-HC4076-C302,Loft/Cavity Ins-Building Contractor,20/04/2011,199.00
http://statistics.data.gov.uk/id/local-authority-district/23UB,Cheltenham Borough Council,447288,202353,DOMESTIC AND GENERAL INSULATION LTD,C-HC4076-C302,Loft/Cavity Ins-Building Contractor,20/04/2011,245.00
http://statistics.data.gov.uk/id/local-authority-district/23UB,Cheltenham Borough Council,447289,202356,DOMESTIC AND GENERAL INSULATION LTD,C-HC4076-C302,Loft/Cavity Ins-Building Contractor,20/04/2011,245.00
http://statistics.data.gov.uk/id/local-authority-district/23UB,Cheltenham Borough Council,447284,202357,DOMESTIC AND GENERAL INSULATION LTD,C-HC4076-C302,Loft/Cavity Ins-Building Contractor,20/04/2011,245.00
http://statistics.data.gov.uk/id/local-authority-district/23UB,Cheltenham Borough Council,447287,202360,DOMESTIC AND GENERAL INSULATION LTD,C-HC4076-C302,Loft/Cavity Ins-Building Contractor,20/04/2011,225.00
http://statistics.data.gov.uk/id/local-authority-district/23UB,Cheltenham Borough Council,447771,197721,DOMESTIC AND GENERAL INSULATION LTD,C-HC4076-C302,Loft/Cavity Ins-Building Contractor,28/04/2011,199.00
http://statistics.data.gov.uk/id/local-authority-district/23UB,Cheltenham Borough Council,447772,197739,DOMESTIC AND GENERAL INSULATION LTD,C-HC4076-C302,Loft/Cavity Ins-Building Contractor,28/04/2011,245.00
http://statistics.data.gov.uk/id/local-authority-district/23UB,Cheltenham Borough Council,447769,197741,DOMESTIC AND GENERAL INSULATION LTD,C-HC4076-C302,Loft/Cavity Ins-Building Contractor,28/04/2011,199.00
http://statistics.data.gov.uk/id/local-authority-district/23UB,Cheltenham Borough Council,447741,200552,DOMESTIC AND GENERAL INSULATION LTD,C-HC4076-C302,Loft/Cavity Ins-Building Contractor,28/04/2011,225.00
http://statistics.data.gov.uk/id/local-authority-district/23UB,Cheltenham Borough Council,447768,200914,DOMESTIC AND GENERAL INSULATION LTD,C-HC4076-C302,Loft/Cavity Ins-Building Contractor,28/04/2011,225.00
http://statistics.data.gov.uk/id/local-authority-district/23UB,Cheltenham Borough Council,447767,200915,DOMESTIC AND GENERAL INSULATION LTD,C-HC4076-C302,Loft/Cavity Ins-Building Contractor,28/04/2011,199.00
http://statistics.data.gov.uk/id/local-authority-district/23UB,Cheltenham Borough Council,447765,200916,DOMESTIC AND GENERAL INSULATION LTD,C-HC4076-C302,Loft/Cavity Ins-Building Contractor,28/04/2011,199.00
http://statistics.data.gov.uk/id/local-authority-district/23UB,Cheltenham Borough Council,447770,200917,DOMESTIC AND GENERAL INSULATION LTD,C-HC4076-C302,Loft/Cavity Ins-Building Contractor,28/04/2011,199.00
http://statistics.data.gov.uk/id/local-authority-district/23UB,Cheltenham Borough Council,447766,200919,DOMESTIC AND GENERAL INSULATION LTD,C-HC4076-C302,Loft/Cavity Ins-Building Contractor,28/04/2011,225.00
http://statistics.data.gov.uk/id/local-authority-district/23UB,Cheltenham Borough Council,448010,200549,DOMESTIC AND GENERAL INSULATION LTD,C-HC4076-C302,Loft/Cavity Ins-Building Contractor,28/04/2011,199.00
http://statistics.data.gov.uk/id/local-authority-district/23UB,Cheltenham Borough Council,445851,50311,DORCHESTER HOUSE TRUST,C-H22400-5204,Homelessness-Provision of accommo(B&B),06/04/2011,701.35
http://statistics.data.gov.uk/id/local-authority-district/23UB,Cheltenham Borough Council,445939,769159,DYFED STEELS LTD,C-C22110-1301,Parks & Gardens-Routine grounds maint,06/04/2011,"1,620.00"
http://statistics.data.gov.uk/id/local-authority-district/23UB,Cheltenham Borough Council,446009,4347,EMMDEE BUILDING SERVICES,C-C22120-1808,Sports & Open S-RM-Routine works,06/04/2011,400.00
http://statistics.data.gov.uk/id/local-authority-district/23UB,Cheltenham Borough Council,446002,8347,EMMDEE BUILDING SERVICES,C-C22120-1801,Sports & Open S-RM-Electrical repairs,06/04/2011,50.93
http://statistics.data.gov.uk/id/local-authority-district/23UB,Cheltenham Borough Council,445835,8349,EMMDEE BUILDING SERVICES,C-D13100-1801,Muni Off Blgs-RM-Electrical repairs,06/04/2011,45.00
http://statistics.data.gov.uk/id/local-authority-district/23UB,Cheltenham Borough Council,446032,8357,EMMDEE BUILDING SERVICES,C-D14100-1801,Depot Building-RM-Electrical repairs,06/04/2011,107.21
http://statistics.data.gov.uk/id/local-authority-district/23UB,Cheltenham Borough Council,446003,8358,EMMDEE BUILDING SERVICES,C-C22120-1801,Sports & Open S-RM-Electrical repairs,06/04/2011,40.72
http://statistics.data.gov.uk/id/local-authority-district/23UB,Cheltenham Borough Council,445834,8359,EMMDEE BUILDING SERVICES,C-L11500-1801,Rec Facilities-RM-Electrical repairs,06/04/2011,193.22
http://statistics.data.gov.uk/id/local-authority-district/23UB,Cheltenham Borough Council,446005,8386,EMMDEE BUILDING SERVICES,C-D30200-1124,Misc Props & Ld-Berkeley Mews  Repairs,06/04/2011,16.87
http://statistics.data.gov.uk/id/local-authority-district/23UB,Cheltenham Borough Council,446004,8387,EMMDEE BUILDING SERVICES,C-D14100-1801,Depot Building-RM-Electrical repairs,06/04/2011,33.75
http://statistics.data.gov.uk/id/local-authority-district/23UB,Cheltenham Borough Council,446006,8388,EMMDEE BUILDING SERVICES,C-D13100-1801,Muni Off Blgs-RM-Electrical repairs,06/04/2011,56.25
http://statistics.data.gov.uk/id/local-authority-district/23UB,Cheltenham Borough Council,446007,8406,EMMDEE BUILDING SERVICES,C-E63100-1801,Cemetery & Crem-RM-Electrical repairs,06/04/2011,33.75
http://statistics.data.gov.uk/id/local-authority-district/23UB,Cheltenham Borough Council,446033,8410,EMMDEE BUILDING SERVICES,C-C23140-1801,Public Convnces-RM-Electrical repairs,06/04/2011,26.85
http://statistics.data.gov.uk/id/local-authority-district/23UB,Cheltenham Borough Council,446008,8411,EMMDEE BUILDING SERVICES,C-D13100-1801,Muni Off Blgs-RM-Electrical repairs,06/04/2011,33.75
http://statistics.data.gov.uk/id/local-authority-district/23UB,Cheltenham Borough Council,447255,301267/3/2011,ENER-G,C-L11500-1402,Rec Facilities-Electricity,20/04/2011,"2,724.59"
http://statistics.data.gov.uk/id/local-authority-district/23UB,Cheltenham Borough Council,447259,WHFA/2150/01,ENVEX CONTRACTORS LTD,C-D21250-3973,Civil Emergency-EA FDGIA allocation,21/04/2011,"126,395.39"
http://statistics.data.gov.uk/id/local-authority-district/23UB,Cheltenham Borough Council,447896,H1460,ENVIRONMENTAL MANAGEMENT SOLUTIONS LTD,C-HC4064-C302,Asbestos Manage-Building Contractor,28/04/2011,"31,245.53"
http://statistics.data.gov.uk/id/local-authority-district/23UB,Cheltenham Borough Council,446709,1566,ERADICURE LIMITED,C-H4211G-1104,Gen Wks 2211-Council House repairs,13/04/2011,"1,040.00"
http://statistics.data.gov.uk/id/local-authority-district/23UB,Cheltenham Borough Council,446743,1561,ERADICURE LIMITED,C-H4204G-1104,Gen Wks 2204-Council House repairs,13/04/2011,"4,070.00"
http://statistics.data.gov.uk/id/local-authority-district/23UB,Cheltenham Borough Council,446744,3654,ESI LIMITED,C-E61600-3173,Contaminatd Lnd-Exp-Sandy Lane Playg Fld,13/04/2011,"3,793.00"
http://statistics.data.gov.uk/id/local-authority-district/23UB,Cheltenham Borough Council,446745,3655,ESI LIMITED,C-E61600-3174,Contaminatd Lnd-Exp-Church Piece Plyg Fl,13/04/2011,"1,900.00"
http://statistics.data.gov.uk/id/local-authority-district/23UB,Cheltenham Borough Council,447022,15152,THE EVANS JONES PARTNERSHIP,C-L41100-3816,AG & M-RIBA -  Fees,15/04/2011,"1,800.00"
http://statistics.data.gov.uk/id/local-authority-district/23UB,Cheltenham Borough Council,445843,IEX3000899537,EXPERIAN LTD,C-H22400-3833,Homelessness-Credit Referencing,06/04/2011,872.00
http://statistics.data.gov.uk/id/local-authority-district/23UB,Cheltenham Borough Council,446994,124900I,EXPERIAN Q A S LTD,C-GCERP-350A,Redacted,15/04/2011,"1,500.00"
http://statistics.data.gov.uk/id/local-authority-district/23UB,Cheltenham Borough Council,446994,124900I,EXPERIAN Q A S LTD,C-GCERP-3623,Redacted,15/04/2011,"1,700.00"
http://statistics.data.gov.uk/id/local-authority-district/23UB,Cheltenham Borough Council,446994,124900I,EXPERIAN Q A S LTD,C-GOERP-3501,Redacted,15/04/2011,"1,200.00"
http://statistics.data.gov.uk/id/local-authority-district/23UB,Cheltenham Borough Council,446994,124900I,EXPERIAN Q A S LTD,C-GOERP-3623,Redacted,15/04/2011,"1,760.00"
http://statistics.data.gov.uk/id/local-authority-district/23UB,Cheltenham Borough Council,446862,98530,FERRET INFORMATION SYSTEMS,C-H22125-3623,Neighd Regen Di-Cmpter-sftwre lic purch,13/04/2011,513.00
http://statistics.data.gov.uk/id/local-authority-district/23UB,Cheltenham Borough Council,445839,4744,FERNMONT LIMITED,C-HC4066-C302,Misc Works-Building Contractor,06/04/2011,"1,822.06"
http://statistics.data.gov.uk/id/local-authority-district/23UB,Cheltenham Borough Council,447763,4741,FERNMONT LIMITED,C-H45205-1104,Ext Repairs & R-Council House repairs,28/04/2011,"1,997.63"
http://statistics.data.gov.uk/id/local-authority-district/23UB,Cheltenham Borough Council,447762,4742,FERNMONT LIMITED,C-H45205-1104,Ext Repairs & R-Council House repairs,28/04/2011,"1,752.68"
http://statistics.data.gov.uk/id/local-authority-district/23UB,Cheltenham Borough Council,447764,4743,FERNMONT LIMITED,C-H45205-1104,Ext Repairs & R-Council House repairs,28/04/2011,"1,726.00"
http://statistics.data.gov.uk/id/local-authority-district/23UB,Cheltenham Borough Council,447761,4782,FERNMONT LIMITED,C-H45205-1104,Ext Repairs & R-Council House repairs,28/04/2011,"1,822.06"
http://statistics.data.gov.uk/id/local-authority-district/23UB,Cheltenham Borough Council,447760,4783,FERNMONT LIMITED,C-H45205-1104,Ext Repairs & R-Council House repairs,28/04/2011,634.00
http://statistics.data.gov.uk/id/local-authority-district/23UB,Cheltenham Borough Council,446860,SETTLEMENT,FLAME PROMOTIONS,C-N13125-9205,ASH Ledger-Town Hall Invoices Paid,13/04/2011,-614.00
http://statistics.data.gov.uk/id/local-authority-district/23UB,Cheltenham Borough Council,446860,SETTLEMENT,FLAME PROMOTIONS,C-Z12210-9138,Box Off A/C-TH Hirers Tkt Pd out,13/04/2011,"1,912.50"
http://statistics.data.gov.uk/id/local-authority-district/23UB,Cheltenham Borough Council,446476,S1119097,FLEET LINE MARKERS LTD,C-C22120-3121,Spts/Open Space-Materials-Contract,13/04/2011,877.50
http://statistics.data.gov.uk/id/local-authority-district/23UB,Cheltenham Borough Council,446484,S1119144,FLEET LINE MARKERS LTD,C-C22110-3101,Parks & Gardens-Equipment purchases,13/04/2011,300.00
http://statistics.data.gov.uk/id/local-authority-district/23UB,Cheltenham Borough Council,446484,S1119144,FLEET LINE MARKERS LTD,C-C22110-3105,Parks & Gardens-Plant/tools(& Hire),13/04/2011,400.00
http://statistics.data.gov.uk/id/local-authority-district/23UB,Cheltenham Borough Council,446484,S1119144,FLEET LINE MARKERS LTD,C-C22120-3105,Spts/Open Space-Plant/tools(& Hire),13/04/2011,184.52
http://statistics.data.gov.uk/id/local-authority-district/23UB,Cheltenham Borough Council,446447,V1467,FLYING ENTERTAINMENT LIMITED,C-0T11K1-3568,Solid Silver 60-Artist Fees         ,13/04/2011,"2,177.97"
http://statistics.data.gov.uk/id/local-authority-district/23UB,Cheltenham Borough Council,446446,V1465,FLYING ENTERTAINMENT LIMITED,C-0T06K1-3568,Joe Brown-Artist Fees                  ,13/04/2011,"1,766.06"
http://statistics.data.gov.uk/id/local-authority-district/23UB,Cheltenham Borough Council,446010,GRANT CLAIM FO,FRIENDS OF NAUNTON PARK,C-Z13300-3501,LAA - BSC Rev-Hire of outside services,06/04/2011,500.00
http://statistics.data.gov.uk/id/local-authority-district/23UB,Cheltenham Borough Council,447472,12049,FRITZ FRYER ANTIQUE LIGHTING,C-L21100-3103,Town Hall-Equipment repairs & maint,20/04/2011,262.00
http://statistics.data.gov.uk/id/local-authority-district/23UB,Cheltenham Borough Council,447472,12049,FRITZ FRYER ANTIQUE LIGHTING,C-L21100-3103,Town Hall-Equipment repairs & maint,20/04/2011,140.00
http://statistics.data.gov.uk/id/local-authority-district/23UB,Cheltenham Borough Council,447472,12049,FRITZ FRYER ANTIQUE LIGHTING,C-L21100-3103,Town Hall-Equipment repairs & maint,20/04/2011,150.00
http://statistics.data.gov.uk/id/local-authority-district/23UB,Cheltenham Borough Council,447027,Redacted,V FRY AND SONS,C-HC7400-C801,H&S Grant-Grants,15/04/2011,"23,922.98"
http://statistics.data.gov.uk/id/local-authority-district/23UB,Cheltenham Borough Council,447744,499,FURNISHED HOMES,C-H22400-1125,Homelessness-Refurbishments,28/04/2011,"1,267.00"
http://statistics.data.gov.uk/id/local-authority-district/23UB,Cheltenham Borough Council,447240,5180,FUTRA LTD,C-C24150-3170,Fleet Managemnt-Fuel system maintenance,20/04/2011,904.00
http://statistics.data.gov.uk/id/local-authority-district/23UB,Cheltenham Borough Council,445922,91,GASKINS,C-C22120-1314,Spts/Open Space-Reinstatement (Trees),06/04/2011,288.00
http://statistics.data.gov.uk/id/local-authority-district/23UB,Cheltenham Borough Council,445923,92,GASKINS,C-C22120-1301,Spts/Open Space-Routine grounds maint,06/04/2011,"1,400.00"
http://statistics.data.gov.uk/id/local-authority-district/23UB,Cheltenham Borough Council,447426,541702,GLOBAL RADIO SERVICES LTD,C-L11500-3510,Rec Facilities-Promotion & Marketing,20/04/2011,300.00
http://statistics.data.gov.uk/id/local-authority-district/23UB,Cheltenham Borough Council,447425,541703,GLOBAL RADIO SERVICES LTD,C-L11500-3510,Rec Facilities-Promotion & Marketing,20/04/2011,300.00
http://statistics.data.gov.uk/id/local-authority-district/23UB,Cheltenham Borough Council,447415,SINV-036860,GELPACK EXCELSIOR LTD,C-N42250-3112,DSO Stores - Stock purchases,20/04/2011,"1,785.60"
http://statistics.data.gov.uk/id/local-authority-district/23UB,Cheltenham Borough Council,445983,133/2010,GET IT SORTED LIMITED,C-C23180-3920,Rcycl Cltn Schm-Advertising,06/04/2011,900.00
http://statistics.data.gov.uk/id/local-authority-district/23UB,Cheltenham Borough Council,446794,20044,LLOYDS TSB COMMERCIAL LTD,C-E21100-3501,Car Prks-Off St-Hire of outside services,13/04/2011,"2,604.00"
http://statistics.data.gov.uk/id/local-authority-district/23UB,Cheltenham Borough Council,446794,20044,LLOYDS TSB COMMERCIAL LTD,C-E21100-3501,Car Prks-Off St-Hire of outside services,13/04/2011,449.50
http://statistics.data.gov.uk/id/local-authority-district/23UB,Cheltenham Borough Council,446794,20044,LLOYDS TSB COMMERCIAL LTD,C-E21100-3501,Car Prks-Off St-Hire of outside services,13/04/2011,449.50
http://statistics.data.gov.uk/id/local-authority-district/23UB,Cheltenham Borough Council,446794,20044,LLOYDS TSB COMMERCIAL LTD,C-E21100-3501,Car Prks-Off St-Hire of outside services,13/04/2011,449.50
http://statistics.data.gov.uk/id/local-authority-district/23UB,Cheltenham Borough Council,446969,18532,LLOYDS TSB COMMERCIAL LTD,C-E21100-3501,Car Prks-Off St-Hire of outside services,15/04/2011,35.00
http://statistics.data.gov.uk/id/local-authority-district/23UB,Cheltenham Borough Council,446969,18532,LLOYDS TSB COMMERCIAL LTD,C-E21100-3501,Car Prks-Off St-Hire of outside services,15/04/2011,70.00
http://statistics.data.gov.uk/id/local-authority-district/23UB,Cheltenham Borough Council,446969,18532,LLOYDS TSB COMMERCIAL LTD,C-E21100-3501,Car Prks-Off St-Hire of outside services,15/04/2011,105.00
http://statistics.data.gov.uk/id/local-authority-district/23UB,Cheltenham Borough Council,446963,19197,LLOYDS TSB COMMERCIAL LTD,C-E21100-3501,Car Prks-Off St-Hire of outside services,15/04/2011,997.50
http://statistics.data.gov.uk/id/local-authority-district/23UB,Cheltenham Borough Council,446963,19197,LLOYDS TSB COMMERCIAL LTD,C-E21100-3501,Car Prks-Off St-Hire of outside services,15/04/2011,972.27
http://statistics.data.gov.uk/id/local-authority-district/23UB,Cheltenham Borough Council,446963,19197,LLOYDS TSB COMMERCIAL LTD,C-E21100-3501,Car Prks-Off St-Hire of outside services,15/04/2011,624.75
http://statistics.data.gov.uk/id/local-authority-district/23UB,Cheltenham Borough Council,446964,19618,LLOYDS TSB COMMERCIAL LTD,C-E21100-3501,Car Prks-Off St-Hire of outside services,15/04/2011,"2,352.00"
http://statistics.data.gov.uk/id/local-authority-district/23UB,Cheltenham Borough Council,446964,19618,LLOYDS TSB COMMERCIAL LTD,C-E21100-3501,Car Prks-Off St-Hire of outside services,15/04/2011,406.00
http://statistics.data.gov.uk/id/local-authority-district/23UB,Cheltenham Borough Council,446964,19618,LLOYDS TSB COMMERCIAL LTD,C-E21100-3501,Car Prks-Off St-Hire of outside services,15/04/2011,406.00
http://statistics.data.gov.uk/id/local-authority-district/23UB,Cheltenham Borough Council,446964,19618,LLOYDS TSB COMMERCIAL LTD,C-E21100-3501,Car Prks-Off St-Hire of outside services,15/04/2011,14.50
http://statistics.data.gov.uk/id/local-authority-district/23UB,Cheltenham Borough Council,446964,19618,LLOYDS TSB COMMERCIAL LTD,C-E21100-3501,Car Prks-Off St-Hire of outside services,15/04/2011,406.00
http://statistics.data.gov.uk/id/local-authority-district/23UB,Cheltenham Borough Council,446968,19745,LLOYDS TSB COMMERCIAL LTD,C-E21100-3501,Car Prks-Off St-Hire of outside services,15/04/2011,35.00
http://statistics.data.gov.uk/id/local-authority-district/23UB,Cheltenham Borough Council,446966,19761,LLOYDS TSB COMMERCIAL LTD,C-E21100-3501,Car Prks-Off St-Hire of outside services,15/04/2011,35.00
http://statistics.data.gov.uk/id/local-authority-district/23UB,Cheltenham Borough Council,446965,19772,LLOYDS TSB COMMERCIAL LTD,C-E21100-3501,Car Prks-Off St-Hire of outside services,15/04/2011,35.00
http://statistics.data.gov.uk/id/local-authority-district/23UB,Cheltenham Borough Council,446967,19942,LLOYDS TSB COMMERCIAL LTD,C-E21100-3501,Car Prks-Off St-Hire of outside services,15/04/2011,35.00
http://statistics.data.gov.uk/id/local-authority-district/23UB,Cheltenham Borough Council,445906,22828,GLIDE MEDIA MARKETING,C-L31100-3602,TIC-Postages - frkng machine,06/04/2011,97.20
http://statistics.data.gov.uk/id/local-authority-district/23UB,Cheltenham Borough Council,445907,22829,GLIDE MEDIA MARKETING,C-L31100-3602,TIC-Postages - frkng machine,06/04/2011,301.50
http://statistics.data.gov.uk/id/local-authority-district/23UB,Cheltenham Borough Council,445908,22830,GLIDE MEDIA MARKETING,C-L31100-3602,TIC-Postages - frkng machine,06/04/2011,405.00
http://statistics.data.gov.uk/id/local-authority-district/23UB,Cheltenham Borough Council,445915,22900,GLIDE MEDIA MARKETING,C-L31100-3510,TIC-Promotion & Marketing,06/04/2011,90.20
http://statistics.data.gov.uk/id/local-authority-district/23UB,Cheltenham Borough Council,445827,LICENCE,GLOS COUNTY COUNCIL,C-L21100-3255,Town Hall-Wedding Licence expenditure   ,01/04/2011,"2,500.00"
http://statistics.data.gov.uk/id/local-authority-district/23UB,Cheltenham Borough Council,446826,10894377,GLOUCESTER CITY COUNCIL,C-D12440-3501,Coun Tax overhe-Hire of outside services,13/04/2011,"1,488.00"
http://statistics.data.gov.uk/id/local-authority-district/23UB,Cheltenham Borough Council,446356,1800180314,GLOUCESTERSHIRE COUNTY COUNCIL,C-D32400-4126,Elderly Trspt-Paymts to Bus Cos-Full Far,07/04/2011,"70,272.81"
http://statistics.data.gov.uk/id/local-authority-district/23UB,Cheltenham Borough Council,446525,1800180218,GLOUCESTERSHIRE COUNTY COUNCIL,C-D32400-3501,Elderly Trspt-Hire of outside services,13/04/2011,"1,542.08"
http://statistics.data.gov.uk/id/local-authority-district/23UB,Cheltenham Borough Council,446557,SAFEGUARDINE,GLOUCESTERSHIRE COUNTY COUNCIL,C-H22600-0204,Community Servs-Training fees/exp (Prof),13/04/2011,100.00
http://statistics.data.gov.uk/id/local-authority-district/23UB,Cheltenham Borough Council,446961,1800176285,GLOUCESTERSHIRE COUNTY COUNCIL,C-E36200-4528,On-St Car Prkng-Net income paid to GCC,15/04/2011,"76,720.19"
http://statistics.data.gov.uk/id/local-authority-district/23UB,Cheltenham Borough Council,446962,1800176659,GLOUCESTERSHIRE COUNTY COUNCIL,C-E36200-4528,On-St Car Prkng-Net income paid to GCC,15/04/2011,"83,352.93"
http://statistics.data.gov.uk/id/local-authority-district/23UB,Cheltenham Borough Council,447214,1800180710,GLOUCESTERSHIRE COUNTY COUNCIL,C-D32400-3501,Elderly Trspt-Hire of outside services,20/04/2011,"4,265.51"
http://statistics.data.gov.uk/id/local-authority-district/23UB,Cheltenham Borough Council,447450,1800180728,GLOUCESTERSHIRE COUNTY COUNCIL,C-D21250-3925,Civil Emergency-Civil Emergency planning,20/04/2011,"2,000.00"
http://statistics.data.gov.uk/id/local-authority-district/23UB,Cheltenham Borough Council,447871,1800180555,GLOUCESTERSHIRE COUNTY COUNCIL,C-E36200-4528,On-St Car Prkng-Net income paid to GCC,28/04/2011,"100,268.30"
http://statistics.data.gov.uk/id/local-authority-district/23UB,Cheltenham Borough Council,446072,102753 GHA,GLOUCESTERSHIRE HOUSING ASSOCIATION LTD,C-HC9200-C801,L.A.S.H.G.-Grants,06/04/2011,"12,000.00"
http://statistics.data.gov.uk/id/local-authority-district/23UB,Cheltenham Borough Council,446358,1011277,GLOUCESTERSHIRE DANCE,C-L23500-3156,Arts Grant/Enab-Arts Development,07/04/2011,"1,000.00"
http://statistics.data.gov.uk/id/local-authority-district/23UB,Cheltenham Borough Council,446751,1002,GLOUCESTER SKI & SNOWBOARD CENTRE,C-L16100-3237,Holiday Rec-Disadvantaged subsidy grant,13/04/2011,"1,820.00"
http://statistics.data.gov.uk/id/local-authority-district/23UB,Cheltenham Borough Council,447823,45569,GOOCH GROUP LTD,C-D14100-3501,Depot Building-Hire of outside services,28/04/2011,134.16
http://statistics.data.gov.uk/id/local-authority-district/23UB,Cheltenham Borough Council,447988,13948,GOOCH GROUP LTD,C-H33700-1161,Estate Services-Whaddon,28/04/2011,336.77
http://statistics.data.gov.uk/id/local-authority-district/23UB,Cheltenham Borough Council,447830,45891,GOOCH GROUP LTD,C-H33700-1712,Estate Services-Estate cleaning-reactive,28/04/2011,555.00
http://statistics.data.gov.uk/id/local-authority-district/23UB,Cheltenham Borough Council,448023,45900,GOOCH GROUP LTD,C-L41100-1703,AG & M-Window cleaning,28/04/2011,117.00
http://statistics.data.gov.uk/id/local-authority-district/23UB,Cheltenham Borough Council,447892,45932,GOOCH GROUP LTD,C-D14100-3501,Depot Building-Hire of outside services,28/04/2011,40.00
http://statistics.data.gov.uk/id/local-authority-district/23UB,Cheltenham Borough Council,447081,5999,G P AERIALS LTD,C-H46550-1104,TV Aerials-Council House repairs,20/04/2011,49.00
http://statistics.data.gov.uk/id/local-authority-district/23UB,Cheltenham Borough Council,447069,6000,G P AERIALS LTD,C-H46550-1104,TV Aerials-Council House repairs,20/04/2011,63.00
http://statistics.data.gov.uk/id/local-authority-district/23UB,Cheltenham Borough Council,447067,6002,G P AERIALS LTD,C-HC4074-C302,Communal Aerial-Building Contractor,20/04/2011,49.00
http://statistics.data.gov.uk/id/local-authority-district/23UB,Cheltenham Borough Council,447068,6008,G P AERIALS LTD,C-H46550-1104,TV Aerials-Council House repairs,20/04/2011,74.00
http://statistics.data.gov.uk/id/local-authority-district/23UB,Cheltenham Borough Council,447071,6009,G P AERIALS LTD,C-HC4055-C302,Neighhd Works-Building Contractor,20/04/2011,74.00
http://statistics.data.gov.uk/id/local-authority-district/23UB,Cheltenham Borough Council,447066,6010,G P AERIALS LTD,C-HC4074-C302,Communal Aerial-Building Contractor,20/04/2011,61.50
http://statistics.data.gov.uk/id/local-authority-district/23UB,Cheltenham Borough Council,447070,6017,G P AERIALS LTD,C-HC4055-C302,Neighhd Works-Building Contractor,20/04/2011,139.00
http://statistics.data.gov.uk/id/local-authority-district/23UB,Cheltenham Borough Council,447064,6023,G P AERIALS LTD,C-H46550-1104,TV Aerials-Council House repairs,20/04/2011,61.00
http://statistics.data.gov.uk/id/local-authority-district/23UB,Cheltenham Borough Council,447065,6024,G P AERIALS LTD,C-H46550-1104,TV Aerials-Council House repairs,20/04/2011,61.00
http://statistics.data.gov.uk/id/local-authority-district/23UB,Cheltenham Borough Council,447063,6039,G P AERIALS LTD,C-HC4053-C302,Internal Imp-Building Contractor,20/04/2011,105.00
http://statistics.data.gov.uk/id/local-authority-district/23UB,Cheltenham Borough Council,447062,6041,G P AERIALS LTD,C-HC4053-C302,Internal Imp-Building Contractor,20/04/2011,79.00
http://statistics.data.gov.uk/id/local-authority-district/23UB,Cheltenham Borough Council,446359,IN5049,GRANDKNACK T/A AMERSHAM SIGN DESIGN,C-L41100-3252,AG & M-Off the wall grant exp ,07/04/2011,45.00
http://statistics.data.gov.uk/id/local-authority-district/23UB,Cheltenham Borough Council,446359,IN5049,GRANDKNACK T/A AMERSHAM SIGN DESIGN,C-L41100-8702,AG & M-Community Outreach - Fees,07/04/2011,730.00
http://statistics.data.gov.uk/id/local-authority-district/23UB,Cheltenham Borough Council,446720,5540,GREENLINE CONTRACTS.,C-C23180-2701,Rcycl Cltn Schm-Hired transport,13/04/2011,793.59
http://statistics.data.gov.uk/id/local-authority-district/23UB,Cheltenham Borough Council,446721,5572,GREENLINE CONTRACTS.,C-C24100-2702,Fleet Maint-Additional vehicle hire,13/04/2011,260.03
http://statistics.data.gov.uk/id/local-authority-district/23UB,Cheltenham Borough Council,446228,172,GREENWAY PARTNERSHIP LIMITED,C-L11500-1809,Rec Facilities-RM-sanitary works,06/04/2011,110.00
http://statistics.data.gov.uk/id/local-authority-district/23UB,Cheltenham Borough Council,446229,173,GREENWAY PARTNERSHIP LIMITED,C-L41100-1809,AG & M-RM-sanitary works,06/04/2011,162.50
http://statistics.data.gov.uk/id/local-authority-district/23UB,Cheltenham Borough Council,446232,174,GREENWAY PARTNERSHIP LIMITED,C-D13100-1808,Muni Off Blgs-RM-Routine works,06/04/2011,542.00
http://statistics.data.gov.uk/id/local-authority-district/23UB,Cheltenham Borough Council,446034,178,GREENWAY PARTNERSHIP LIMITED,C-E63100-1809,Cemetery & Crem-RM-sanitary works,06/04/2011,310.00
http://statistics.data.gov.uk/id/local-authority-district/23UB,Cheltenham Borough Council,446225,179,GREENWAY PARTNERSHIP LIMITED,C-C22100-1809,Green Envir Div-RM-sanitary works     ,06/04/2011,67.50
http://statistics.data.gov.uk/id/local-authority-district/23UB,Cheltenham Borough Council,446016,180,GREENWAY PARTNERSHIP LIMITED,C-C23140-1809,Public Convnces-RM-sanitary works,06/04/2011,676.00
http://statistics.data.gov.uk/id/local-authority-district/23UB,Cheltenham Borough Council,446018,181,GREENWAY PARTNERSHIP LIMITED,C-D13100-1809,Muni Off Blgs-RM-sanitary works,06/04/2011,828.25
http://statistics.data.gov.uk/id/local-authority-district/23UB,Cheltenham Borough Council,446036,182,GREENWAY PARTNERSHIP LIMITED,C-D13550-1809,Area Off -E.Hse-RM-sanitary works,06/04/2011,90.00
http://statistics.data.gov.uk/id/local-authority-district/23UB,Cheltenham Borough Council,446035,183,GREENWAY PARTNERSHIP LIMITED,C-D14100-1809,Depot Building-RM-sanitary works,06/04/2011,528.75
http://statistics.data.gov.uk/id/local-authority-district/23UB,Cheltenham Borough Council,446224,184,GREENWAY PARTNERSHIP LIMITED,C-H13100-1809,Cap Fin Costs-RM-sanitary works      ,06/04/2011,78.75
http://statistics.data.gov.uk/id/local-authority-district/23UB,Cheltenham Borough Council,446020,168,GREENWAY PARTNERSHIP LIMITED,C-PM0020-R046,Town Hall-Kitchen Refurbishments,06/04/2011,"2,156.00"
http://statistics.data.gov.uk/id/local-authority-district/23UB,Cheltenham Borough Council,446023,185,GREENWAY PARTNERSHIP LIMITED,C-PM0020-R046,Town Hall-Kitchen Refurbishments,06/04/2011,"1,475.00"
http://statistics.data.gov.uk/id/local-authority-district/23UB,Cheltenham Borough Council,446022,186,GREENWAY PARTNERSHIP LIMITED,C-PM0092-R022,Central Nursery-Electrical Works,06/04/2011,"3,470.00"
http://statistics.data.gov.uk/id/local-authority-district/23UB,Cheltenham Borough Council,446021,187,GREENWAY PARTNERSHIP LIMITED,C-PM0092-R009,Central Nursery-Drainage,06/04/2011,545.00
http://statistics.data.gov.uk/id/local-authority-district/23UB,Cheltenham Borough Council,446230,188,GREENWAY PARTNERSHIP LIMITED,C-D13100-1809,Muni Off Blgs-RM-sanitary works,06/04/2011,195.00
http://statistics.data.gov.uk/id/local-authority-district/23UB,Cheltenham Borough Council,446017,189,GREENWAY PARTNERSHIP LIMITED,C-D14100-1801,Depot Building-RM-Electrical repairs,06/04/2011,"1,166.00"
http://statistics.data.gov.uk/id/local-authority-district/23UB,Cheltenham Borough Council,446019,190,GREENWAY PARTNERSHIP LIMITED,C-D21800-3185,Chelt.Strat P/S-Carbon reduction,06/04/2011,813.00
http://statistics.data.gov.uk/id/local-authority-district/23UB,Cheltenham Borough Council,446231,193,GREENWAY PARTNERSHIP LIMITED,C-E63100-1809,Cemetery & Crem-RM-sanitary works,06/04/2011,930.00
http://statistics.data.gov.uk/id/local-authority-district/23UB,Cheltenham Borough Council,446227,194,GREENWAY PARTNERSHIP LIMITED,C-PM0131-R003,Regent Arc. CP-External Re-decoration,06/04/2011,"1,545.25"
http://statistics.data.gov.uk/id/local-authority-district/23UB,Cheltenham Borough Council,446226,195,GREENWAY PARTNERSHIP LIMITED,C-PM0090-R001,Misc.Properties-Roof Repairs,06/04/2011,910.00
http://statistics.data.gov.uk/id/local-authority-district/23UB,Cheltenham Borough Council,446532,170,GREENWAY PARTNERSHIP LIMITED,C-L21100-3501,Town Hall-Hire of outside services,13/04/2011,"1,618.00"
http://statistics.data.gov.uk/id/local-authority-district/23UB,Cheltenham Borough Council,446528,172,GREENWAY PARTNERSHIP LIMITED,C-L21200-3501,Pump Room-Hire of outside services,13/04/2011,293.75
http://statistics.data.gov.uk/id/local-authority-district/23UB,Cheltenham Borough Council,446731,176,GREENWAY PARTNERSHIP LIMITED,C-D30200-1809,Misc Props & Ld-RM-sanitary works,13/04/2011,67.50
http://statistics.data.gov.uk/id/local-authority-district/23UB,Cheltenham Borough Council,446866,177,GREENWAY PARTNERSHIP LIMITED,C-D30200-1124,Misc Props & Ld-Berkeley Mews  Repairs,13/04/2011,56.25
http://statistics.data.gov.uk/id/local-authority-district/23UB,Cheltenham Borough Council,446490,196,GREENWAY PARTNERSHIP LIMITED,C-C23140-3501,Public Convnces-Hire of outside services,13/04/2011,"1,393.53"
http://statistics.data.gov.uk/id/local-authority-district/23UB,Cheltenham Borough Council,447023,C3996-APP03A,GRIMSHAW KINNEAR LTD,C-D30200-1101,Misc Props & Ld-General building repairs,15/04/2011,"7,500.00"
http://statistics.data.gov.uk/id/local-authority-district/23UB,Cheltenham Borough Council,447023,C3996-APP03A,GRIMSHAW KINNEAR LTD,C-LC6023-C401,Gardners Lane-Civil Engineering Cntrctr         ,15/04/2011,"61,171.79"
http://statistics.data.gov.uk/id/local-authority-district/23UB,Cheltenham Borough Council,448006,90040,GRIMSHAW KINNEAR LTD,C-D14100-1101,Depot Building-General building repairs,28/04/2011,"7,696.43"
http://statistics.data.gov.uk/id/local-authority-district/23UB,Cheltenham Borough Council,447025,7016975,GVA GRIMLEY LLP,C-B51160-350A,Civic Pride- Fees,15/04/2011,"3,500.00"
http://statistics.data.gov.uk/id/local-authority-district/23UB,Cheltenham Borough Council,446817,W42052,HALCROW CONSULTING ENGINEERS,C-D21250-3973,Civil Emergency-EA FDGIA allocation,13/04/2011,"4,742.35"
http://statistics.data.gov.uk/id/local-authority-district/23UB,Cheltenham Borough Council,446818,W42053,HALCROW CONSULTING ENGINEERS,C-D21250-3973,Civil Emergency-EA FDGIA allocation,13/04/2011,"9,645.85"
http://statistics.data.gov.uk/id/local-authority-district/23UB,Cheltenham Borough Council,446282,6470,HALAROSE LIMITED,C-D21300-3623,District Elects-Cmpter-sftwre lic purch,06/04/2011,295.34
http://statistics.data.gov.uk/id/local-authority-district/23UB,Cheltenham Borough Council,446282,6470,HALAROSE LIMITED,C-D21400-3623,Electoral Regn-Cmpter-sftwre lic purch,06/04/2011,590.66
http://statistics.data.gov.uk/id/local-authority-district/23UB,Cheltenham Borough Council,447332,5107,HALSALL  CONSTRUCTION LIMITED,C-HC4060-C302,Garage Imps-Building Contractor,20/04/2011,"16,106.69"
http://statistics.data.gov.uk/id/local-authority-district/23UB,Cheltenham Borough Council,447489,H1455,HALSALL  CONSTRUCTION LIMITED,C-HC4055-C302,Neighhd Works-Building Contractor,20/04/2011,"4,729.31"
http://statistics.data.gov.uk/id/local-authority-district/23UB,Cheltenham Borough Council,446746,0435/10,HANDSHAKE LIMITED,C-0T24M1-3568,Roy Chubby Brow-Artist Fees,13/04/2011,"1,825.11"
http://statistics.data.gov.uk/id/local-authority-district/23UB,Cheltenham Borough Council,446735,42610,HANDSHAKE LIMITED,C-0T24M1-3510,Roy Chubby Brow-Promotion & Marketing,13/04/2011,130.00
http://statistics.data.gov.uk/id/local-authority-district/23UB,Cheltenham Borough Council,445949,Redacted,HANOVER HOUSING ASSOCIATION,C-HC4100-C801,Dis.Adapt.HRA-Grants,06/04/2011,"4,674.38"
http://statistics.data.gov.uk/id/local-authority-district/23UB,Cheltenham Borough Council,445948,Redacted,HANOVER HOUSING ASSOCIATION,C-HC4100-C801,Dis.Adapt.HRA-Grants,06/04/2011,"1,518.75"
http://statistics.data.gov.uk/id/local-authority-district/23UB,Cheltenham Borough Council,445950,Redacted,HANOVER HOUSING ASSOCIATION,C-HC7440-C801,DFG.96.Act-Grants,06/04/2011,"5,749.88"
http://statistics.data.gov.uk/id/local-authority-district/23UB,Cheltenham Borough Council,445951,Redacted,HANOVER HOUSING ASSOCIATION,C-HC7440-C801,DFG.96.Act-Grants,06/04/2011,"4,905.00"
http://statistics.data.gov.uk/id/local-authority-district/23UB,Cheltenham Borough Council,446856,Redacted,HANOVER HOUSING ASSOCIATION,C-HC4100-C801,Dis.Adapt.HRA-Grants,13/04/2011,"5,996.25"
http://statistics.data.gov.uk/id/local-authority-district/23UB,Cheltenham Borough Council,446858,Redacted,HANOVER HOUSING ASSOCIATION,C-HC4100-C801,Dis.Adapt.HRA-Grants,13/04/2011,"6,573.38"
http://statistics.data.gov.uk/id/local-authority-district/23UB,Cheltenham Borough Council,446857,Redacted,HANOVER HOUSING ASSOCIATION,C-HC7440-C801,DFG.96.Act-Grants,13/04/2011,"7,384.50"
http://statistics.data.gov.uk/id/local-authority-district/23UB,Cheltenham Borough Council,446855,Redacted,HANOVER HOUSING ASSOCIATION,C-HC7440-C801,DFG.96.Act-Grants,13/04/2011,"3,139.89"
http://statistics.data.gov.uk/id/local-authority-district/23UB,Cheltenham Borough Council,446936,Redacted,HANOVER HOUSING ASSOCIATION,C-HC4100-C801,Dis.Adapt.HRA-Grants,15/04/2011,"1,518.75"
http://statistics.data.gov.uk/id/local-authority-district/23UB,Cheltenham Borough Council,446937,Redacted,HANOVER HOUSING ASSOCIATION,C-HC4100-C801,Dis.Adapt.HRA-Grants,15/04/2011,"5,349.38"
http://statistics.data.gov.uk/id/local-authority-district/23UB,Cheltenham Borough Council,446934,Redacted,HANOVER HOUSING ASSOCIATION,C-HC4100-C801,Dis.Adapt.HRA-Grants,15/04/2011,"2,159.38"
http://statistics.data.gov.uk/id/local-authority-district/23UB,Cheltenham Borough Council,446935,Redacted,HANOVER HOUSING ASSOCIATION,C-HC7440-C801,DFG.96.Act-Grants,15/04/2011,"4,106.25"
http://statistics.data.gov.uk/id/local-authority-district/23UB,Cheltenham Borough Council,447029,Redacted,HANOVER HOUSING ASSOCIATION,C-HC7400-C801,H&S Grant-Grants,15/04/2011,"2,491.98"
http://statistics.data.gov.uk/id/local-authority-district/23UB,Cheltenham Borough Council,447388,Redacted,HANOVER HOUSING ASSOCIATION,C-HC4100-C801,Dis.Adapt.HRA-Grants,21/04/2011,"8,472.38"
http://statistics.data.gov.uk/id/local-authority-district/23UB,Cheltenham Borough Council,447387,Redacted,HANOVER HOUSING ASSOCIATION,C-HC7440-C801,DFG.96.Act-Grants,21/04/2011,"2,804.44"
http://statistics.data.gov.uk/id/local-authority-district/23UB,Cheltenham Borough Council,447386,Redacted,HANOVER HOUSING ASSOCIATION,C-HC4100-C801,Dis.Adapt.HRA-Grants,21/04/2011,"26,938.36"
http://statistics.data.gov.uk/id/local-authority-district/23UB,Cheltenham Borough Council,447484,Redacted,HANOVER HOUSING ASSOCIATION,C-HC7440-C801,DFG.96.Act-Grants,21/04/2011,651.75
http://statistics.data.gov.uk/id/local-authority-district/23UB,Cheltenham Borough Council,447484,Redacted,HANOVER HOUSING ASSOCIATION,C-HC7440-C801,DFG.96.Act-Grants,21/04/2011,"2,227.31"
http://statistics.data.gov.uk/id/local-authority-district/23UB,Cheltenham Borough Council,447483,Redacted,HANOVER HOUSING ASSOCIATION,C-HC4100-C801,Dis.Adapt.HRA-Grants,21/04/2011,"5,735.25"
http://statistics.data.gov.uk/id/local-authority-district/23UB,Cheltenham Borough Council,447481,Redacted,HANOVER HOUSING ASSOCIATION,C-HC4100-C801,Dis.Adapt.HRA-Grants,21/04/2011,"4,254.14"
http://statistics.data.gov.uk/id/local-authority-district/23UB,Cheltenham Borough Council,447482,Redacted,HANOVER HOUSING ASSOCIATION,C-HC4100-C801,Dis.Adapt.HRA-Grants,21/04/2011,"19,954.13"
http://statistics.data.gov.uk/id/local-authority-district/23UB,Cheltenham Borough Council,445837,0134/11,GRAHAM HARPER ASSOCIATES,C-D21250-3971,Civil Emergency-STW Comm fund - CBC,06/04/2011,"1,080.00"
http://statistics.data.gov.uk/id/local-authority-district/23UB,Cheltenham Borough Council,446711,7604274,HASKONING UK LIMITED,C-HC4053-C302,Internal Imp-Building Contractor,13/04/2011,"1,500.00"
http://statistics.data.gov.uk/id/local-authority-district/23UB,Cheltenham Borough Council,446556,HEREFORDSHIRE,HEREFORDSHIRE HOUSING LIMITED,C-H22500-3501,Community Alarm-Hire of outside services,13/04/2011,"8,677.24"
http://statistics.data.gov.uk/id/local-authority-district/23UB,Cheltenham Borough Council,446556,HEREFORDSHIRE,HEREFORDSHIRE HOUSING LIMITED,C-H22500-3501,Community Alarm-Hire of outside services,13/04/2011,"1,895.14"
http://statistics.data.gov.uk/id/local-authority-district/23UB,Cheltenham Borough Council,446717,HEREFORD HOUS,HEREFORDSHIRE HOUSING LIMITED,C-C22100-0204,Green Env Div-Training fees/exp (Prof),13/04/2011,26.00
http://statistics.data.gov.uk/id/local-authority-district/23UB,Cheltenham Borough Council,446717,HEREFORD HOUS,HEREFORDSHIRE HOUSING LIMITED,C-D12430-3501,Housing & CT Be-Hire of outside services,13/04/2011,91.00
http://statistics.data.gov.uk/id/local-authority-district/23UB,Cheltenham Borough Council,446717,HEREFORD HOUS,HEREFORDSHIRE HOUSING LIMITED,C-D39120-3501,SLA- R.Equality-Hire of outside services ,13/04/2011,13.00
http://statistics.data.gov.uk/id/local-authority-district/23UB,Cheltenham Borough Council,446717,HEREFORD HOUS,HEREFORDSHIRE HOUSING LIMITED,C-H22400-3501,Homelessness-Hire of outside services,13/04/2011,143.00
http://statistics.data.gov.uk/id/local-authority-district/23UB,Cheltenham Borough Council,446717,HEREFORD HOUS,HEREFORDSHIRE HOUSING LIMITED,C-H22600-3501,Community Servs-Hire of outside services,13/04/2011,78.00
http://statistics.data.gov.uk/id/local-authority-district/23UB,Cheltenham Borough Council,446013,31/03/2011,HESTERS WAY NEIGHBOURHOOD PROJECT,C-Z13500-3501,LAA - ASBO Rev-Hire of outside services,06/04/2011,750.00
http://statistics.data.gov.uk/id/local-authority-district/23UB,Cheltenham Borough Council,446867,6695253,HEWLETT PACKARD LIMITED,C-DC3211-C101,WorkingFlexibly-Project Est for this Yea,13/04/2011,"2,354.94"
http://statistics.data.gov.uk/id/local-authority-district/23UB,Cheltenham Borough Council,447458,6706819,HEWLETT PACKARD LIMITED,C-D11820-3660,IT Infrastructu-Hardware PC & Servers,20/04/2011,"2,690.00"
http://statistics.data.gov.uk/id/local-authority-district/23UB,Cheltenham Borough Council,446283,11030666,HITEC (LABORATORIES ) LIMITED,C-D11700-3623,Pol & Info Mgmt-Cmpter-sftwre lic purch,06/04/2011,"4,025.00"
http://statistics.data.gov.uk/id/local-authority-district/23UB,Cheltenham Borough Council,446295,GRANT PAYMEN,HOLST BIRTHPLACE TRUST,C-L23500-3808,Arts Grant/Enab-Holst Birthplace Trust,06/04/2011,"3,000.00"
http://statistics.data.gov.uk/id/local-authority-district/23UB,Cheltenham Borough Council,446474,20,HOME NURSERIES,C-PM0092-R163,Central Nursery-Equipment,13/04/2011,"1,100.00"
http://statistics.data.gov.uk/id/local-authority-district/23UB,Cheltenham Borough Council,446460,4823,ICON NET LIMITED,C-Z13300-3501,LAA - BSC Rev-Hire of outside services,13/04/2011,977.00
http://statistics.data.gov.uk/id/local-authority-district/23UB,Cheltenham Borough Council,446460,4823,ICON NET LIMITED,C-Z13300-3501,LAA - BSC Rev-Hire of outside services,13/04/2011,600.00
http://statistics.data.gov.uk/id/local-authority-district/23UB,Cheltenham Borough Council,446460,4823,ICON NET LIMITED,C-Z13500-3501,LAA - ASBO Rev-Hire of outside services,13/04/2011,120.00
http://statistics.data.gov.uk/id/local-authority-district/23UB,Cheltenham Borough Council,446460,4823,ICON NET LIMITED,C-Z13500-3501,LAA - ASBO Rev-Hire of outside services,13/04/2011,"1,573.00"
http://statistics.data.gov.uk/id/local-authority-district/23UB,Cheltenham Borough Council,447468,4829,ICON NET LIMITED,C-L41100-3920,AG & M-Advertising,20/04/2011,"1,295.00"
http://statistics.data.gov.uk/id/local-authority-district/23UB,Cheltenham Borough Council,446887,4299,IMASS GROUP,C-D12300-3250,Personnel and P-Occupational Health,13/04/2011,"1,326.44"
http://statistics.data.gov.uk/id/local-authority-district/23UB,Cheltenham Borough Council,447728,4503,IMASS GROUP,C-D12300-3250,Personnel and P-Occupational Health,28/04/2011,566.80
http://statistics.data.gov.uk/id/local-authority-district/23UB,Cheltenham Borough Council,446338,83317,IMPACT MARKETING AND PUBLCITY LTD,C-L11500-3510,Rec Facilities-Promotion & Marketing,06/04/2011,695.00
http://statistics.data.gov.uk/id/local-authority-district/23UB,Cheltenham Borough Council,446288,27700944 ICO ENT,INFORMATION COMMISSIONER,C-D21300-3501,District Elects-Hire of outside services,06/04/2011,500.00
http://statistics.data.gov.uk/id/local-authority-district/23UB,Cheltenham Borough Council,446289,27700989 ICO ENT,INFORMATION COMMISSIONER,C-D12600-3501,Service Develop-Hire of outside services,06/04/2011,500.00
http://statistics.data.gov.uk/id/local-authority-district/23UB,Cheltenham Borough Council,447454,3046316,IPF LIMITED,C-D12430-3890,Housing & CT Be-Subscriptions - general,20/04/2011,"1,983.00"
http://statistics.data.gov.uk/id/local-authority-district/23UB,Cheltenham Borough Council,447454,3046316,IPF LIMITED,C-D12440-3890,Coun Tax overhe-Subscriptions - general,20/04/2011,992.00
http://statistics.data.gov.uk/id/local-authority-district/23UB,Cheltenham Borough Council,445978,13,P C IRRIGATION,C-N11250-9227,Excluded,06/04/2011,-150.00
http://statistics.data.gov.uk/id/local-authority-district/23UB,Cheltenham Borough Council,445978,13,P C IRRIGATION,C-PM0092-R163,Central Nursery-Equipment,06/04/2011,750.00
http://statistics.data.gov.uk/id/local-authority-district/23UB,Cheltenham Borough Council,445978,13,P C IRRIGATION,C-PM0092-R163,Central Nursery-Equipment,06/04/2011,19.22
http://statistics.data.gov.uk/id/local-authority-district/23UB,Cheltenham Borough Council,445978,13,P C IRRIGATION,C-PM0092-R163,Central Nursery-Equipment,06/04/2011,17.50
http://statistics.data.gov.uk/id/local-authority-district/23UB,Cheltenham Borough Council,445978,13,P C IRRIGATION,C-PM0092-R163,Central Nursery-Equipment,06/04/2011,40.00
http://statistics.data.gov.uk/id/local-authority-district/23UB,Cheltenham Borough Council,445976,17,P C IRRIGATION,C-C22105-3101,Hsg Forecourts-Equipment purchases,06/04/2011,800.00
http://statistics.data.gov.uk/id/local-authority-district/23UB,Cheltenham Borough Council,445976,17,P C IRRIGATION,C-C22110-3101,Parks & Gardens-Equipment purchases,06/04/2011,300.00
http://statistics.data.gov.uk/id/local-authority-district/23UB,Cheltenham Borough Council,446486,12,P C IRRIGATION,C-N11250-9227,Excluded,13/04/2011,-16.00
http://statistics.data.gov.uk/id/local-authority-district/23UB,Cheltenham Borough Council,446486,12,P C IRRIGATION,C-PM0092-R022,Central Nursery-Electrical Works,13/04/2011,652.00
http://statistics.data.gov.uk/id/local-authority-district/23UB,Cheltenham Borough Council,446487,14,P C IRRIGATION,C-N11250-9227,Excluded,13/04/2011,-40.00
http://statistics.data.gov.uk/id/local-authority-district/23UB,Cheltenham Borough Council,446487,14,P C IRRIGATION,C-PM0092-R022,Central Nursery-Electrical Works,13/04/2011,504.15
http://statistics.data.gov.uk/id/local-authority-district/23UB,Cheltenham Borough Council,445937,1053,D A JONES,C-LC6006-C401,Play Area Maint-Civil Engineering Cntrct,06/04/2011,135.00
http://statistics.data.gov.uk/id/local-authority-district/23UB,Cheltenham Borough Council,445937,1053,D A JONES,C-LC6006-C401,Play Area Maint-Civil Engineering Cntrct,06/04/2011,93.39
http://statistics.data.gov.uk/id/local-authority-district/23UB,Cheltenham Borough Council,445937,1053,D A JONES,C-N11250-9227,Excluded,06/04/2011,-27.00
http://statistics.data.gov.uk/id/local-authority-district/23UB,Cheltenham Borough Council,445940,1055,D A JONES,C-C22190-1301,Allotments-Routine grounds maint,06/04/2011,650.00
http://statistics.data.gov.uk/id/local-authority-district/23UB,Cheltenham Borough Council,445940,1055,D A JONES,C-N11250-9227,Excluded,06/04/2011,-34.00
http://statistics.data.gov.uk/id/local-authority-district/23UB,Cheltenham Borough Council,445934,1056,D A JONES,C-C22120-1119,Spts/Open Space-Playground Maint,06/04/2011,"1,084.20"
http://statistics.data.gov.uk/id/local-authority-district/23UB,Cheltenham Borough Council,445934,1056,D A JONES,C-N11250-9227,Excluded,06/04/2011,-180.00
http://statistics.data.gov.uk/id/local-authority-district/23UB,Cheltenham Borough Council,446014,1058,D A JONES,C-N11250-9227,Excluded,06/04/2011,-20.00
http://statistics.data.gov.uk/id/local-authority-district/23UB,Cheltenham Borough Council,446014,1058,D A JONES,C-Z13500-3501,LAA - ASBO Rev-Hire of outside services,06/04/2011,100.00
http://statistics.data.gov.uk/id/local-authority-district/23UB,Cheltenham Borough Council,447876,1063,D A JONES,C-C22190-1301,Allotments-Routine grounds maint,28/04/2011,700.00
http://statistics.data.gov.uk/id/local-authority-district/23UB,Cheltenham Borough Council,447876,1063,D A JONES,C-N11250-9227,Excluded,28/04/2011,-84.14
http://statistics.data.gov.uk/id/local-authority-district/23UB,Cheltenham Borough Council,447883,1062,D A JONES,C-C22120-3104,Spts/Open Space-Sports & play equipment,28/04/2011,450.00
http://statistics.data.gov.uk/id/local-authority-district/23UB,Cheltenham Borough Council,447883,1062,D A JONES,C-N11250-9227,Excluded,28/04/2011,-90.00
http://statistics.data.gov.uk/id/local-authority-district/23UB,Cheltenham Borough Council,447881,1064,D A JONES,C-C22110-3152,Parks & Gardens-Commemorative Seats,28/04/2011,50.00
http://statistics.data.gov.uk/id/local-authority-district/23UB,Cheltenham Borough Council,447881,1064,D A JONES,C-N11250-9227,Excluded,28/04/2011,-8.31
http://statistics.data.gov.uk/id/local-authority-district/23UB,Cheltenham Borough Council,447882,1065,D A JONES,C-C22190-1301,Allotments-Routine grounds maint,28/04/2011,910.00
http://statistics.data.gov.uk/id/local-authority-district/23UB,Cheltenham Borough Council,447882,1065,D A JONES,C-N11250-9227,Excluded,28/04/2011,-143.29
http://statistics.data.gov.uk/id/local-authority-district/23UB,Cheltenham Borough Council,448219,H1463,P H JONES LIMITED,C-H46100-1104,Cen.Heat.Serv-Council House repairs,29/04/2011,"85,223.23"
http://statistics.data.gov.uk/id/local-authority-district/23UB,Cheltenham Borough Council,448219,H1463,P H JONES LIMITED,C-H46100-1104,Cen.Heat.Serv-Council House repairs,29/04/2011,"5,627.94"
http://statistics.data.gov.uk/id/local-authority-district/23UB,Cheltenham Borough Council,448219,H1463,P H JONES LIMITED,C-H46100-1104,Cen.Heat.Serv-Council House repairs,29/04/2011,"2,966.00"
http://statistics.data.gov.uk/id/local-authority-district/23UB,Cheltenham Borough Council,446239,933,K B BUILDING SERVICES UK LIMITED,C-HC4050-C302,Major Voids-Building Contractor,06/04/2011,"3,147.00"
http://statistics.data.gov.uk/id/local-authority-district/23UB,Cheltenham Borough Council,446239,933,K B BUILDING SERVICES UK LIMITED,C-N11250-9227,Excluded,06/04/2011,-254.40
http://statistics.data.gov.uk/id/local-authority-district/23UB,Cheltenham Borough Council,446240,934,K B BUILDING SERVICES UK LIMITED,C-HC4050-C302,Major Voids-Building Contractor,06/04/2011,"1,760.00"
http://statistics.data.gov.uk/id/local-authority-district/23UB,Cheltenham Borough Council,446240,934,K B BUILDING SERVICES UK LIMITED,C-N11250-9227,Excluded,06/04/2011,-292.80
http://statistics.data.gov.uk/id/local-authority-district/23UB,Cheltenham Borough Council,445960,945,K B BUILDING SERVICES UK LIMITED,C-C23110-3501,Street Cleaning-Hire of outside services,06/04/2011,489.00
http://statistics.data.gov.uk/id/local-authority-district/23UB,Cheltenham Borough Council,445960,945,K B BUILDING SERVICES UK LIMITED,C-C23110-3501,Street Cleaning-Hire of outside services,06/04/2011,21.00
http://statistics.data.gov.uk/id/local-authority-district/23UB,Cheltenham Borough Council,445960,945,K B BUILDING SERVICES UK LIMITED,C-N11250-9227,Excluded,06/04/2011,-97.80
http://statistics.data.gov.uk/id/local-authority-district/23UB,Cheltenham Borough Council,445859,944,K B BUILDING SERVICES UK LIMITED,C-H4208G-1104,Gen Wks 2208-Council House repairs,06/04/2011,"1,800.00"
http://statistics.data.gov.uk/id/local-authority-district/23UB,Cheltenham Borough Council,445859,944,K B BUILDING SERVICES UK LIMITED,C-N11250-9227,Excluded,06/04/2011,-184.80
http://statistics.data.gov.uk/id/local-authority-district/23UB,Cheltenham Borough Council,446712,948,K B BUILDING SERVICES UK LIMITED,C-H4206G-1104,Gen Wks 2206-Council House repairs,13/04/2011,"1,338.00"
http://statistics.data.gov.uk/id/local-authority-district/23UB,Cheltenham Borough Council,446712,948,K B BUILDING SERVICES UK LIMITED,C-N11250-9227,Excluded,13/04/2011,-216.00
http://statistics.data.gov.uk/id/local-authority-district/23UB,Cheltenham Borough Council,446977,883,K B BUILDING SERVICES UK LIMITED,C-E22150-3110,CBC Highway Wk-Materials,15/04/2011,"1,280.00"
http://statistics.data.gov.uk/id/local-authority-district/23UB,Cheltenham Borough Council,446977,883,K B BUILDING SERVICES UK LIMITED,C-N11250-9227,Excluded,15/04/2011,-187.00
http://statistics.data.gov.uk/id/local-authority-district/23UB,Cheltenham Borough Council,446978,885,K B BUILDING SERVICES UK LIMITED,C-E22150-3110,CBC Highway Wk-Materials,15/04/2011,95.00
http://statistics.data.gov.uk/id/local-authority-district/23UB,Cheltenham Borough Council,446978,885,K B BUILDING SERVICES UK LIMITED,C-N11250-9227,Excluded,15/04/2011,-16.00
http://statistics.data.gov.uk/id/local-authority-district/23UB,Cheltenham Borough Council,446979,914,K B BUILDING SERVICES UK LIMITED,C-E22150-3110,CBC Highway Wk-Materials,15/04/2011,"2,070.00"
http://statistics.data.gov.uk/id/local-authority-district/23UB,Cheltenham Borough Council,446979,914,K B BUILDING SERVICES UK LIMITED,C-N11250-9227,Excluded,15/04/2011,-352.00
http://statistics.data.gov.uk/id/local-authority-district/23UB,Cheltenham Borough Council,447057,941,K B BUILDING SERVICES UK LIMITED,C-HC4050-C302,Major Voids-Building Contractor,20/04/2011,"3,400.00"
http://statistics.data.gov.uk/id/local-authority-district/23UB,Cheltenham Borough Council,447057,941,K B BUILDING SERVICES UK LIMITED,C-N11250-9227,Excluded,20/04/2011,-566.40
http://statistics.data.gov.uk/id/local-authority-district/23UB,Cheltenham Borough Council,447746,943,K B BUILDING SERVICES UK LIMITED,C-H4213G-1104,Gen Wks 2213-Council House repairs,28/04/2011,977.00
http://statistics.data.gov.uk/id/local-authority-district/23UB,Cheltenham Borough Council,447746,943,K B BUILDING SERVICES UK LIMITED,C-N11250-9227,Excluded,28/04/2011,-158.20
http://statistics.data.gov.uk/id/local-authority-district/23UB,Cheltenham Borough Council,447058,1435,KERRY PLUMBING LIMITED,C-HC4065-C302,Lev Acs Showers-Building Contractor,20/04/2011,"4,240.00"
http://statistics.data.gov.uk/id/local-authority-district/23UB,Cheltenham Borough Council,447058,1435,KERRY PLUMBING LIMITED,C-N11250-9227,Excluded,20/04/2011,-400.00
http://statistics.data.gov.uk/id/local-authority-district/23UB,Cheltenham Borough Council,446931,CERT H01447 INS,KITSONS ENVIRONMENTAL EUROPE LIMITED,C-HC4064-C302,Asbestos Manage-Building Contractor,15/04/2011,"8,475.12"
http://statistics.data.gov.uk/id/local-authority-district/23UB,Cheltenham Borough Council,446458,5500347365,KPMG LLP,C-D21200-3507,Corp Mgt-Audit Commission fees,13/04/2011,"29,747.25"
http://statistics.data.gov.uk/id/local-authority-district/23UB,Cheltenham Borough Council,445850,356,G GARDINER T/A LABURNUM LODGE,C-H22400-5204,Homelessness-Provision of accommo(B&B),06/04/2011,270.30
http://statistics.data.gov.uk/id/local-authority-district/23UB,Cheltenham Borough Council,445849,357,G GARDINER T/A LABURNUM LODGE,C-H22400-5204,Homelessness-Provision of accommo(B&B),06/04/2011,270.30
http://statistics.data.gov.uk/id/local-authority-district/23UB,Cheltenham Borough Council,447887,CD20110000169A,LAPPSET PLAYWORLD UK LTD,C-C22120-1119,Spts/Open Space-Playground Maint,28/04/2011,"1,500.00"
http://statistics.data.gov.uk/id/local-authority-district/23UB,Cheltenham Borough Council,447888,CD20110000169B,LAPPSET PLAYWORLD UK LTD,C-C22120-1301,Spts/Open Space-Routine grounds maint,28/04/2011,"1,610.00"
http://statistics.data.gov.uk/id/local-authority-district/23UB,Cheltenham Borough Council,446489,2036,DAVID LATHAM STEEL TRADING,C-C22120-1301,Spts/Open Space-Routine grounds maint,13/04/2011,"2,088.84"
http://statistics.data.gov.uk/id/local-authority-district/23UB,Cheltenham Borough Council,448055,522463,LEACH COLOUR LIMITED,C-L41100-3599,AG & M-Special Project,28/04/2011,100.00
http://statistics.data.gov.uk/id/local-authority-district/23UB,Cheltenham Borough Council,448055,522463,LEACH COLOUR LIMITED,C-L41100-3599,AG & M-Special Project,28/04/2011,762.00
http://statistics.data.gov.uk/id/local-authority-district/23UB,Cheltenham Borough Council,448055,522463,LEACH COLOUR LIMITED,C-L41100-3599,AG & M-Special Project,28/04/2011,75.00
http://statistics.data.gov.uk/id/local-authority-district/23UB,Cheltenham Borough Council,447433,560870,J P LENNARD LTD,C-L11500-3101,Rec Facilities-Equipment purchases,20/04/2011,153.00
http://statistics.data.gov.uk/id/local-authority-district/23UB,Cheltenham Borough Council,447433,560870,J P LENNARD LTD,C-L11500-3101,Rec Facilities-Equipment purchases,20/04/2011,17.30
http://statistics.data.gov.uk/id/local-authority-district/23UB,Cheltenham Borough Council,447433,560870,J P LENNARD LTD,C-L11500-3101,Rec Facilities-Equipment purchases,20/04/2011,278.00
http://statistics.data.gov.uk/id/local-authority-district/23UB,Cheltenham Borough Council,447430,561055,J P LENNARD LTD,C-L11500-3111,Rec Facilities-Goods purch for resale,20/04/2011,16.30
http://statistics.data.gov.uk/id/local-authority-district/23UB,Cheltenham Borough Council,447430,561055,J P LENNARD LTD,C-L11500-3111,Rec Facilities-Goods purch for resale,20/04/2011,49.90
http://statistics.data.gov.uk/id/local-authority-district/23UB,Cheltenham Borough Council,447430,561055,J P LENNARD LTD,C-L11500-3111,Rec Facilities-Goods purch for resale,20/04/2011,140.00
http://statistics.data.gov.uk/id/local-authority-district/23UB,Cheltenham Borough Council,447431,561056,J P LENNARD LTD,C-L11500-3101,Rec Facilities-Equipment purchases,20/04/2011,41.04
http://statistics.data.gov.uk/id/local-authority-district/23UB,Cheltenham Borough Council,447294,NLP 64898,NATHANIEL  LICHFIELD AND PARTNERS,C-B51145-3501,Joint Core Stra-Hire of outside services,20/04/2011,"2,768.77"
http://statistics.data.gov.uk/id/local-authority-district/23UB,Cheltenham Borough Council,446590,40118534,LOCAL GOVERNMENT ASSOCIATION,C-D21220-3891,Corp Subscrptns-Local Govt Association,13/04/2011,"11,600.00"
http://statistics.data.gov.uk/id/local-authority-district/23UB,Cheltenham Borough Council,446255,L366,MR M J LOVERIDGE,C-H46300-1104,Comm.Light.Mtce-Council House repairs,06/04/2011,32.51
http://statistics.data.gov.uk/id/local-authority-district/23UB,Cheltenham Borough Council,446090,L405,MR M J LOVERIDGE,C-H46300-1104,Comm.Light.Mtce-Council House repairs,06/04/2011,32.36
http://statistics.data.gov.uk/id/local-authority-district/23UB,Cheltenham Borough Council,446089,L406,MR M J LOVERIDGE,C-H46300-1104,Comm.Light.Mtce-Council House repairs,06/04/2011,32.36
http://statistics.data.gov.uk/id/local-authority-district/23UB,Cheltenham Borough Council,446087,L407,MR M J LOVERIDGE,C-H46300-1104,Comm.Light.Mtce-Council House repairs,06/04/2011,36.90
http://statistics.data.gov.uk/id/local-authority-district/23UB,Cheltenham Borough Council,446123,L408,MR M J LOVERIDGE,C-H46300-1104,Comm.Light.Mtce-Council House repairs,06/04/2011,36.90
http://statistics.data.gov.uk/id/local-authority-district/23UB,Cheltenham Borough Council,446122,L409,MR M J LOVERIDGE,C-H46300-1104,Comm.Light.Mtce-Council House repairs,06/04/2011,32.51
http://statistics.data.gov.uk/id/local-authority-district/23UB,Cheltenham Borough Council,446121,L410,MR M J LOVERIDGE,C-H46300-1104,Comm.Light.Mtce-Council House repairs,06/04/2011,32.51
http://statistics.data.gov.uk/id/local-authority-district/23UB,Cheltenham Borough Council,446120,L411,MR M J LOVERIDGE,C-H46300-1104,Comm.Light.Mtce-Council House repairs,06/04/2011,32.51
http://statistics.data.gov.uk/id/local-authority-district/23UB,Cheltenham Borough Council,446119,L412,MR M J LOVERIDGE,C-H46300-1104,Comm.Light.Mtce-Council House repairs,06/04/2011,32.51
http://statistics.data.gov.uk/id/local-authority-district/23UB,Cheltenham Borough Council,446118,L413,MR M J LOVERIDGE,C-H46300-1104,Comm.Light.Mtce-Council House repairs,06/04/2011,32.51
http://statistics.data.gov.uk/id/local-authority-district/23UB,Cheltenham Borough Council,446117,L414,MR M J LOVERIDGE,C-H46300-1104,Comm.Light.Mtce-Council House repairs,06/04/2011,32.51
http://statistics.data.gov.uk/id/local-authority-district/23UB,Cheltenham Borough Council,446116,L415,MR M J LOVERIDGE,C-H46300-1104,Comm.Light.Mtce-Council House repairs,06/04/2011,32.51
http://statistics.data.gov.uk/id/local-authority-district/23UB,Cheltenham Borough Council,446115,L416,MR M J LOVERIDGE,C-H46300-1104,Comm.Light.Mtce-Council House repairs,06/04/2011,32.51
http://statistics.data.gov.uk/id/local-authority-district/23UB,Cheltenham Borough Council,446126,L417,MR M J LOVERIDGE,C-H46300-1104,Comm.Light.Mtce-Council House repairs,06/04/2011,45.68
http://statistics.data.gov.uk/id/local-authority-district/23UB,Cheltenham Borough Council,446125,L418,MR M J LOVERIDGE,C-H46300-1104,Comm.Light.Mtce-Council House repairs,06/04/2011,50.07
http://statistics.data.gov.uk/id/local-authority-district/23UB,Cheltenham Borough Council,446124,L419,MR M J LOVERIDGE,C-H46300-1104,Comm.Light.Mtce-Council House repairs,06/04/2011,50.07
http://statistics.data.gov.uk/id/local-authority-district/23UB,Cheltenham Borough Council,446088,L420,MR M J LOVERIDGE,C-H46300-1104,Comm.Light.Mtce-Council House repairs,06/04/2011,58.85
http://statistics.data.gov.uk/id/local-authority-district/23UB,Cheltenham Borough Council,446253,L421,MR M J LOVERIDGE,C-H46300-1104,Comm.Light.Mtce-Council House repairs,06/04/2011,133.16
http://statistics.data.gov.uk/id/local-authority-district/23UB,Cheltenham Borough Council,446086,L422,MR M J LOVERIDGE,C-H46300-1104,Comm.Light.Mtce-Council House repairs,06/04/2011,140.10
http://statistics.data.gov.uk/id/local-authority-district/23UB,Cheltenham Borough Council,446254,L423,MR M J LOVERIDGE,C-H46300-1104,Comm.Light.Mtce-Council House repairs,06/04/2011,156.59
http://statistics.data.gov.uk/id/local-authority-district/23UB,Cheltenham Borough Council,446084,L242,MR M J LOVERIDGE,C-H46300-1104,Comm.Light.Mtce-Council House repairs,06/04/2011,32.36
http://statistics.data.gov.uk/id/local-authority-district/23UB,Cheltenham Borough Council,446128,L425,MR M J LOVERIDGE,C-H46300-1104,Comm.Light.Mtce-Council House repairs,06/04/2011,32.36
http://statistics.data.gov.uk/id/local-authority-district/23UB,Cheltenham Borough Council,446078,L426,MR M J LOVERIDGE,C-H46300-1104,Comm.Light.Mtce-Council House repairs,06/04/2011,32.36
http://statistics.data.gov.uk/id/local-authority-district/23UB,Cheltenham Borough Council,446127,L427,MR M J LOVERIDGE,C-H46300-1104,Comm.Light.Mtce-Council House repairs,06/04/2011,32.36
http://statistics.data.gov.uk/id/local-authority-district/23UB,Cheltenham Borough Council,446249,L428,MR M J LOVERIDGE,C-H46300-1104,Comm.Light.Mtce-Council House repairs,06/04/2011,32.36
http://statistics.data.gov.uk/id/local-authority-district/23UB,Cheltenham Borough Council,446250,L429,MR M J LOVERIDGE,C-H46300-1104,Comm.Light.Mtce-Council House repairs,06/04/2011,32.51
http://statistics.data.gov.uk/id/local-authority-district/23UB,Cheltenham Borough Council,446251,L430,MR M J LOVERIDGE,C-H44600-1104,J D Court-Council House repairs,06/04/2011,32.51
http://statistics.data.gov.uk/id/local-authority-district/23UB,Cheltenham Borough Council,446252,L431,MR M J LOVERIDGE,C-H46300-1104,Comm.Light.Mtce-Council House repairs,06/04/2011,32.51
http://statistics.data.gov.uk/id/local-authority-district/23UB,Cheltenham Borough Council,446092,L432,MR M J LOVERIDGE,C-H46300-1104,Comm.Light.Mtce-Council House repairs,06/04/2011,32.51
http://statistics.data.gov.uk/id/local-authority-district/23UB,Cheltenham Borough Council,446093,L433,MR M J LOVERIDGE,C-H46300-1104,Comm.Light.Mtce-Council House repairs,06/04/2011,32.51
http://statistics.data.gov.uk/id/local-authority-district/23UB,Cheltenham Borough Council,446094,L434,MR M J LOVERIDGE,C-H46300-1104,Comm.Light.Mtce-Council House repairs,06/04/2011,32.51
http://statistics.data.gov.uk/id/local-authority-district/23UB,Cheltenham Borough Council,446085,L435,MR M J LOVERIDGE,C-H46300-1104,Comm.Light.Mtce-Council House repairs,06/04/2011,32.51
http://statistics.data.gov.uk/id/local-authority-district/23UB,Cheltenham Borough Council,446079,L436,MR M J LOVERIDGE,C-H46300-1104,Comm.Light.Mtce-Council House repairs,06/04/2011,36.90
http://statistics.data.gov.uk/id/local-authority-district/23UB,Cheltenham Borough Council,446081,L437,MR M J LOVERIDGE,C-H46300-1104,Comm.Light.Mtce-Council House repairs,06/04/2011,45.68
http://statistics.data.gov.uk/id/local-authority-district/23UB,Cheltenham Borough Council,446091,L438,MR M J LOVERIDGE,C-H46300-1104,Comm.Light.Mtce-Council House repairs,06/04/2011,64.72
http://statistics.data.gov.uk/id/local-authority-district/23UB,Cheltenham Borough Council,446080,L439,MR M J LOVERIDGE,C-H46300-1104,Comm.Light.Mtce-Council House repairs,06/04/2011,96.41
http://statistics.data.gov.uk/id/local-authority-district/23UB,Cheltenham Borough Council,446082,L440,MR M J LOVERIDGE,C-H46300-1104,Comm.Light.Mtce-Council House repairs,06/04/2011,96.41
http://statistics.data.gov.uk/id/local-authority-district/23UB,Cheltenham Borough Council,446083,L441,MR M J LOVERIDGE,C-H46300-1104,Comm.Light.Mtce-Council House repairs,06/04/2011,124.38
http://statistics.data.gov.uk/id/local-authority-district/23UB,Cheltenham Borough Council,446095,L442,MR M J LOVERIDGE,C-H46300-1104,Comm.Light.Mtce-Council House repairs,06/04/2011,32.36
http://statistics.data.gov.uk/id/local-authority-district/23UB,Cheltenham Borough Council,446097,L443,MR M J LOVERIDGE,C-H46300-1104,Comm.Light.Mtce-Council House repairs,06/04/2011,32.36
http://statistics.data.gov.uk/id/local-authority-district/23UB,Cheltenham Borough Council,446096,L444,MR M J LOVERIDGE,C-H46300-1104,Comm.Light.Mtce-Council House repairs,06/04/2011,32.36
http://statistics.data.gov.uk/id/local-authority-district/23UB,Cheltenham Borough Council,446100,L445,MR M J LOVERIDGE,C-H46300-1104,Comm.Light.Mtce-Council House repairs,06/04/2011,36.90
http://statistics.data.gov.uk/id/local-authority-district/23UB,Cheltenham Borough Council,446098,L446,MR M J LOVERIDGE,C-H46300-1104,Comm.Light.Mtce-Council House repairs,06/04/2011,36.90
http://statistics.data.gov.uk/id/local-authority-district/23UB,Cheltenham Borough Council,446099,L447,MR M J LOVERIDGE,C-H46300-1104,Comm.Light.Mtce-Council House repairs,06/04/2011,36.90
http://statistics.data.gov.uk/id/local-authority-district/23UB,Cheltenham Borough Council,446107,L448,MR M J LOVERIDGE,C-H46300-1104,Comm.Light.Mtce-Council House repairs,06/04/2011,32.51
http://statistics.data.gov.uk/id/local-authority-district/23UB,Cheltenham Borough Council,446106,L449,MR M J LOVERIDGE,C-H46300-1104,Comm.Light.Mtce-Council House repairs,06/04/2011,32.51
http://statistics.data.gov.uk/id/local-authority-district/23UB,Cheltenham Borough Council,446105,L450,MR M J LOVERIDGE,C-H46300-1104,Comm.Light.Mtce-Council House repairs,06/04/2011,32.51
http://statistics.data.gov.uk/id/local-authority-district/23UB,Cheltenham Borough Council,446104,L451,MR M J LOVERIDGE,C-H46300-1104,Comm.Light.Mtce-Council House repairs,06/04/2011,32.51
http://statistics.data.gov.uk/id/local-authority-district/23UB,Cheltenham Borough Council,446103,L452,MR M J LOVERIDGE,C-H46300-1104,Comm.Light.Mtce-Council House repairs,06/04/2011,32.51
http://statistics.data.gov.uk/id/local-authority-district/23UB,Cheltenham Borough Council,446102,L453,MR M J LOVERIDGE,C-H46300-1104,Comm.Light.Mtce-Council House repairs,06/04/2011,32.51
http://statistics.data.gov.uk/id/local-authority-district/23UB,Cheltenham Borough Council,446101,L454,MR M J LOVERIDGE,C-H46300-1104,Comm.Light.Mtce-Council House repairs,06/04/2011,32.51
http://statistics.data.gov.uk/id/local-authority-district/23UB,Cheltenham Borough Council,446112,L455,MR M J LOVERIDGE,C-H46300-1104,Comm.Light.Mtce-Council House repairs,06/04/2011,54.46
http://statistics.data.gov.uk/id/local-authority-district/23UB,Cheltenham Borough Council,446109,L456,MR M J LOVERIDGE,C-H46300-1104,Comm.Light.Mtce-Council House repairs,06/04/2011,75.90
http://statistics.data.gov.uk/id/local-authority-district/23UB,Cheltenham Borough Council,446111,L457,MR M J LOVERIDGE,C-H46300-1104,Comm.Light.Mtce-Council House repairs,06/04/2011,92.02
http://statistics.data.gov.uk/id/local-authority-district/23UB,Cheltenham Borough Council,446108,L458,MR M J LOVERIDGE,C-H46300-1104,Comm.Light.Mtce-Council House repairs,06/04/2011,92.02
http://statistics.data.gov.uk/id/local-authority-district/23UB,Cheltenham Borough Council,446110,L459,MR M J LOVERIDGE,C-H46300-1104,Comm.Light.Mtce-Council House repairs,06/04/2011,100.80
http://statistics.data.gov.uk/id/local-authority-district/23UB,Cheltenham Borough Council,446114,L460,MR M J LOVERIDGE,C-H46300-1104,Comm.Light.Mtce-Council House repairs,06/04/2011,113.97
http://statistics.data.gov.uk/id/local-authority-district/23UB,Cheltenham Borough Council,446113,L462,MR M J LOVERIDGE,C-H46300-1104,Comm.Light.Mtce-Council House repairs,06/04/2011,151.68
http://statistics.data.gov.uk/id/local-authority-district/23UB,Cheltenham Borough Council,447754,476,MR M J LOVERIDGE,C-H46300-1104,Comm.Light.Mtce-Council House repairs,28/04/2011,36.90
http://statistics.data.gov.uk/id/local-authority-district/23UB,Cheltenham Borough Council,447790,479,MR M J LOVERIDGE,C-H46300-1104,Comm.Light.Mtce-Council House repairs,28/04/2011,41.29
http://statistics.data.gov.uk/id/local-authority-district/23UB,Cheltenham Borough Council,447782,487,MR M J LOVERIDGE,C-H46300-1104,Comm.Light.Mtce-Council House repairs,28/04/2011,32.51
http://statistics.data.gov.uk/id/local-authority-district/23UB,Cheltenham Borough Council,447777,491,MR M J LOVERIDGE,C-H46300-1104,Comm.Light.Mtce-Council House repairs,28/04/2011,45.68
http://statistics.data.gov.uk/id/local-authority-district/23UB,Cheltenham Borough Council,447799,L467,MR M J LOVERIDGE,C-H46300-1104,Comm.Light.Mtce-Council House repairs,28/04/2011,32.36
http://statistics.data.gov.uk/id/local-authority-district/23UB,Cheltenham Borough Council,447798,L468,MR M J LOVERIDGE,C-H46300-1104,Comm.Light.Mtce-Council House repairs,28/04/2011,32.36
http://statistics.data.gov.uk/id/local-authority-district/23UB,Cheltenham Borough Council,447797,L469,MR M J LOVERIDGE,C-H46300-1104,Comm.Light.Mtce-Council House repairs,28/04/2011,32.36
http://statistics.data.gov.uk/id/local-authority-district/23UB,Cheltenham Borough Council,447795,L471,MR M J LOVERIDGE,C-H46300-1104,Comm.Light.Mtce-Council House repairs,28/04/2011,32.51
http://statistics.data.gov.uk/id/local-authority-district/23UB,Cheltenham Borough Council,447794,L472,MR M J LOVERIDGE,C-H46300-1104,Comm.Light.Mtce-Council House repairs,28/04/2011,32.51
http://statistics.data.gov.uk/id/local-authority-district/23UB,Cheltenham Borough Council,447792,L473,MR M J LOVERIDGE,C-H46300-1104,Comm.Light.Mtce-Council House repairs,28/04/2011,32.51
http://statistics.data.gov.uk/id/local-authority-district/23UB,Cheltenham Borough Council,447793,L474,MR M J LOVERIDGE,C-H46300-1104,Comm.Light.Mtce-Council House repairs,28/04/2011,32.51
http://statistics.data.gov.uk/id/local-authority-district/23UB,Cheltenham Borough Council,447800,L475,MR M J LOVERIDGE,C-H46300-1104,Comm.Light.Mtce-Council House repairs,28/04/2011,36.90
http://statistics.data.gov.uk/id/local-authority-district/23UB,Cheltenham Borough Council,447755,L477,MR M J LOVERIDGE,C-H46300-1104,Comm.Light.Mtce-Council House repairs,28/04/2011,36.90
http://statistics.data.gov.uk/id/local-authority-district/23UB,Cheltenham Borough Council,447791,L478,MR M J LOVERIDGE,C-H46300-1104,Comm.Light.Mtce-Council House repairs,28/04/2011,36.90
http://statistics.data.gov.uk/id/local-authority-district/23UB,Cheltenham Borough Council,447796,L479,MR M J LOVERIDGE,C-H46300-1104,Comm.Light.Mtce-Council House repairs,28/04/2011,32.51
http://statistics.data.gov.uk/id/local-authority-district/23UB,Cheltenham Borough Council,447789,L480,MR M J LOVERIDGE,C-H46300-1104,Comm.Light.Mtce-Council House repairs,28/04/2011,45.68
http://statistics.data.gov.uk/id/local-authority-district/23UB,Cheltenham Borough Council,447788,L481,MR M J LOVERIDGE,C-H46300-1104,Comm.Light.Mtce-Council House repairs,28/04/2011,80.29
http://statistics.data.gov.uk/id/local-authority-district/23UB,Cheltenham Borough Council,447787,L482,MR M J LOVERIDGE,C-H46300-1104,Comm.Light.Mtce-Council House repairs,28/04/2011,128.77
http://statistics.data.gov.uk/id/local-authority-district/23UB,Cheltenham Borough Council,447786,L483,MR M J LOVERIDGE,C-H46300-1104,Comm.Light.Mtce-Council House repairs,28/04/2011,32.36
http://statistics.data.gov.uk/id/local-authority-district/23UB,Cheltenham Borough Council,447785,L484,MR M J LOVERIDGE,C-H46300-1104,Comm.Light.Mtce-Council House repairs,28/04/2011,32.51
http://statistics.data.gov.uk/id/local-authority-district/23UB,Cheltenham Borough Council,447784,L485,MR M J LOVERIDGE,C-H46300-1104,Comm.Light.Mtce-Council House repairs,28/04/2011,32.51
http://statistics.data.gov.uk/id/local-authority-district/23UB,Cheltenham Borough Council,447783,L486,MR M J LOVERIDGE,C-H46300-1104,Comm.Light.Mtce-Council House repairs,28/04/2011,32.51
http://statistics.data.gov.uk/id/local-authority-district/23UB,Cheltenham Borough Council,447781,L488,MR M J LOVERIDGE,C-H46300-1104,Comm.Light.Mtce-Council House repairs,28/04/2011,36.90
http://statistics.data.gov.uk/id/local-authority-district/23UB,Cheltenham Borough Council,447780,L489,MR M J LOVERIDGE,C-H46300-1104,Comm.Light.Mtce-Council House repairs,28/04/2011,36.90
http://statistics.data.gov.uk/id/local-authority-district/23UB,Cheltenham Borough Council,447778,L490,MR M J LOVERIDGE,C-H46300-1104,Comm.Light.Mtce-Council House repairs,28/04/2011,41.29
http://statistics.data.gov.uk/id/local-authority-district/23UB,Cheltenham Borough Council,447753,L492,MR M J LOVERIDGE,C-H46300-1104,Comm.Light.Mtce-Council House repairs,28/04/2011,45.68
http://statistics.data.gov.uk/id/local-authority-district/23UB,Cheltenham Borough Council,447776,L493,MR M J LOVERIDGE,C-H46300-1104,Comm.Light.Mtce-Council House repairs,28/04/2011,75.90
http://statistics.data.gov.uk/id/local-authority-district/23UB,Cheltenham Borough Council,447752,L494,MR M J LOVERIDGE,C-H46300-1104,Comm.Light.Mtce-Council House repairs,28/04/2011,105.19
http://statistics.data.gov.uk/id/local-authority-district/23UB,Cheltenham Borough Council,447775,L495,MR M J LOVERIDGE,C-H44752-1104,Dis Adapts-Tech-Council House repairs,28/04/2011,96.00
http://statistics.data.gov.uk/id/local-authority-district/23UB,Cheltenham Borough Council,447725,DH 10/11 LOVELL,LOVELL PARTNERSHIPS LTD,C-HC4053-C302,Internal Imp-Building Contractor,28/04/2011,"87,627.60"
http://statistics.data.gov.uk/id/local-authority-district/23UB,Cheltenham Borough Council,448148,Redacted,MACK RESIDENTIAL LETTINGS,C-H22400-3828,Homelessness-Prevention Fund,28/04/2011,600.00
http://statistics.data.gov.uk/id/local-authority-district/23UB,Cheltenham Borough Council,446752,23136,MARCHANTS COACHES,C-L16100-3237,Holiday Rec-Disadvantaged subsidy grant,13/04/2011,720.00
http://statistics.data.gov.uk/id/local-authority-district/23UB,Cheltenham Borough Council,447361,85,MISS A MARAFFI,C-H22400-5204,Homelessness-Provision of accommo(B&B),20/04/2011,240.00
http://statistics.data.gov.uk/id/local-authority-district/23UB,Cheltenham Borough Council,447362,86,MISS A MARAFFI,C-H22400-5204,Homelessness-Provision of accommo(B&B),20/04/2011,240.00
http://statistics.data.gov.uk/id/local-authority-district/23UB,Cheltenham Borough Council,447358,89,MISS A MARAFFI,C-H22400-5204,Homelessness-Provision of accommo(B&B),20/04/2011,480.00
http://statistics.data.gov.uk/id/local-authority-district/23UB,Cheltenham Borough Council,447363,90,MISS A MARAFFI,C-H22400-5204,Homelessness-Provision of accommo(B&B),20/04/2011,480.00
http://statistics.data.gov.uk/id/local-authority-district/23UB,Cheltenham Borough Council,447357,92,MISS A MARAFFI,C-H22400-5204,Homelessness-Provision of accommo(B&B),20/04/2011,480.00
http://statistics.data.gov.uk/id/local-authority-district/23UB,Cheltenham Borough Council,447359,93,MISS A MARAFFI,C-H22400-5204,Homelessness-Provision of accommo(B&B),20/04/2011,240.00
http://statistics.data.gov.uk/id/local-authority-district/23UB,Cheltenham Borough Council,447360,84,MISS A MARAFFI,C-H22400-5204,Homelessness-Provision of accommo(B&B),20/04/2011,290.00
http://statistics.data.gov.uk/id/local-authority-district/23UB,Cheltenham Borough Council,446766,2011L/59,MARK 11 CONSTRUCTION LIMITED,C-L41100-3599,AG & M-Special Project,13/04/2011,"3,431.00"
http://statistics.data.gov.uk/id/local-authority-district/23UB,Cheltenham Borough Council,447006,2011L/56,MARK 11 CONSTRUCTION LIMITED,C-L41100-3599,AG & M-Special Project,15/04/2011,"5,943.00"
http://statistics.data.gov.uk/id/local-authority-district/23UB,Cheltenham Borough Council,447006,2011L/56,MARK 11 CONSTRUCTION LIMITED,C-L41100-3599,AG & M-Special Project,15/04/2011,"3,877.00"
http://statistics.data.gov.uk/id/local-authority-district/23UB,Cheltenham Borough Council,447007,2011L/57,MARK 11 CONSTRUCTION LIMITED,C-L41100-3599,AG & M-Special Project,15/04/2011,"4,634.00"
http://statistics.data.gov.uk/id/local-authority-district/23UB,Cheltenham Borough Council,447007,2011L/57,MARK 11 CONSTRUCTION LIMITED,C-L41100-3599,AG & M-Special Project,15/04/2011,"5,216.00"
http://statistics.data.gov.uk/id/local-authority-district/23UB,Cheltenham Borough Council,447008,2011L/58,MARK 11 CONSTRUCTION LIMITED,C-L41100-3599,AG & M-Special Project,15/04/2011,"2,148.00"
http://statistics.data.gov.uk/id/local-authority-district/23UB,Cheltenham Borough Council,447008,2011L/58,MARK 11 CONSTRUCTION LIMITED,C-L41100-3599,AG & M-Special Project,15/04/2011,"1,527.00"
http://statistics.data.gov.uk/id/local-authority-district/23UB,Cheltenham Borough Council,447009,2011L/60,MARK 11 CONSTRUCTION LIMITED,C-L41100-3599,AG & M-Special Project,15/04/2011,"1,098.00"
http://statistics.data.gov.uk/id/local-authority-district/23UB,Cheltenham Borough Council,447009,2011L/60,MARK 11 CONSTRUCTION LIMITED,C-L41100-3599,AG & M-Special Project,15/04/2011,"5,433.00"
http://statistics.data.gov.uk/id/local-authority-district/23UB,Cheltenham Borough Council,447009,2011L/60,MARK 11 CONSTRUCTION LIMITED,C-L41100-3599,AG & M-Special Project,15/04/2011,"3,079.00"
http://statistics.data.gov.uk/id/local-authority-district/23UB,Cheltenham Borough Council,447014,2011L/68,MARK 11 CONSTRUCTION LIMITED,C-L41100-3599,AG & M-Special Project,15/04/2011,769.00
http://statistics.data.gov.uk/id/local-authority-district/23UB,Cheltenham Borough Council,447014,2011L/68,MARK 11 CONSTRUCTION LIMITED,C-L41100-3599,AG & M-Special Project,15/04/2011,194.00
http://statistics.data.gov.uk/id/local-authority-district/23UB,Cheltenham Borough Council,447014,2011L/68,MARK 11 CONSTRUCTION LIMITED,C-L41100-3599,AG & M-Special Project,15/04/2011,235.00
http://statistics.data.gov.uk/id/local-authority-district/23UB,Cheltenham Borough Council,447014,2011L/68,MARK 11 CONSTRUCTION LIMITED,C-L41100-3599,AG & M-Special Project,15/04/2011,150.00
http://statistics.data.gov.uk/id/local-authority-district/23UB,Cheltenham Borough Council,448131,H1454,MANSELL CONSTRUCTION SERVICES LTD,C-HC4081-C302,Wrks Bldg Fabri-Building Contractor,28/04/2011,"9,101.94"
http://statistics.data.gov.uk/id/local-authority-district/23UB,Cheltenham Borough Council,448130,H1452,MANSELL CONSTRUCTION SERVICES LTD,C-HC4081-C302,Wrks Bldg Fabri-Building Contractor,28/04/2011,"157,261.96"
http://statistics.data.gov.uk/id/local-authority-district/23UB,Cheltenham Borough Council,448129,H1453,MANSELL CONSTRUCTION SERVICES LTD,C-HC4081-C302,Wrks Bldg Fabri-Building Contractor,28/04/2011,"6,138.84"
http://statistics.data.gov.uk/id/local-authority-district/23UB,Cheltenham Borough Council,446759,17,MARCUS HAWTIN BUILDERS LTD,C-B51120-3504,Devpment Cntrl-Legal exp & court costs,13/04/2011,700.00
http://statistics.data.gov.uk/id/local-authority-district/23UB,Cheltenham Borough Council,447010,8842,MASSIE ELECTRICS,C-L41100-3599,AG & M-Special Project,15/04/2011,326.00
http://statistics.data.gov.uk/id/local-authority-district/23UB,Cheltenham Borough Council,447010,8842,MASSIE ELECTRICS,C-L41100-3599,AG & M-Special Project,15/04/2011,440.00
http://statistics.data.gov.uk/id/local-authority-district/23UB,Cheltenham Borough Council,447010,8842,MASSIE ELECTRICS,C-L41100-3599,AG & M-Special Project,15/04/2011,"1,250.00"
http://statistics.data.gov.uk/id/local-authority-district/23UB,Cheltenham Borough Council,447010,8842,MASSIE ELECTRICS,C-L41100-3599,AG & M-Special Project,15/04/2011,460.00
http://statistics.data.gov.uk/id/local-authority-district/23UB,Cheltenham Borough Council,447209,8856,MASSIE ELECTRICS,C-L41100-1110,AG & M-Electrical repairs,20/04/2011,75.00
http://statistics.data.gov.uk/id/local-authority-district/23UB,Cheltenham Borough Council,447226,8857,MASSIE ELECTRICS,C-H22225-3501,Housing Standards-Hire of o/side service,20/04/2011,120.00
http://statistics.data.gov.uk/id/local-authority-district/23UB,Cheltenham Borough Council,447207,8858,MASSIE ELECTRICS,C-C22120-3110,Spts/Open Space-Materials,20/04/2011,550.00
http://statistics.data.gov.uk/id/local-authority-district/23UB,Cheltenham Borough Council,446953,16,MARK MASTERS,C-L11500-3522,Rec Facilities-Coaching scheme,15/04/2011,42.00
http://statistics.data.gov.uk/id/local-authority-district/23UB,Cheltenham Borough Council,446953,16,MARK MASTERS,C-L11500-3522,Rec Facilities-Coaching scheme,15/04/2011,126.00
http://statistics.data.gov.uk/id/local-authority-district/23UB,Cheltenham Borough Council,446953,16,MARK MASTERS,C-L11500-3522,Rec Facilities-Coaching scheme,15/04/2011,189.00
http://statistics.data.gov.uk/id/local-authority-district/23UB,Cheltenham Borough Council,446953,16,MARK MASTERS,C-L11500-3522,Rec Facilities-Coaching scheme,15/04/2011,399.00
http://statistics.data.gov.uk/id/local-authority-district/23UB,Cheltenham Borough Council,446953,16,MARK MASTERS,C-L11500-3522,Rec Facilities-Coaching scheme,15/04/2011,168.00
http://statistics.data.gov.uk/id/local-authority-district/23UB,Cheltenham Borough Council,446953,16,MARK MASTERS,C-L11500-3522,Rec Facilities-Coaching scheme,15/04/2011,125.00
http://statistics.data.gov.uk/id/local-authority-district/23UB,Cheltenham Borough Council,445935,127785,MATTA PRODUCTS UK LIMITED,C-LC6006-C401,Play Area Maint-Civil Engineering Cntrct,06/04/2011,"2,041.97"
http://statistics.data.gov.uk/id/local-authority-district/23UB,Cheltenham Borough Council,445936,127952,MATTA PRODUCTS UK LIMITED,C-LC6006-C401,Play Area Maint-Civil Engineering Cntrct,06/04/2011,"10,018.53"
http://statistics.data.gov.uk/id/local-authority-district/23UB,Cheltenham Borough Council,445938,127955,MATTA PRODUCTS UK LIMITED,C-LC6006-C401,Play Area Maint-Civil Engineering Cntrct,06/04/2011,"6,622.16"
http://statistics.data.gov.uk/id/local-authority-district/23UB,Cheltenham Borough Council,447205,128134,MATTA PRODUCTS UK LIMITED,C-C22120-1119,Spts/Open Space-Playground Maint,20/04/2011,"4,284.80"
http://statistics.data.gov.uk/id/local-authority-district/23UB,Cheltenham Borough Council,447206,128177,MATTA PRODUCTS UK LIMITED,C-LC6006-C401,Play Area Maint-Civil Engineering Cntrct,20/04/2011,"3,411.90"
http://statistics.data.gov.uk/id/local-authority-district/23UB,Cheltenham Borough Council,447206,128177,MATTA PRODUCTS UK LIMITED,C-LC6006-C401,Play Area Maint-Civil Engineering Cntrct,20/04/2011,"1,371.45"
http://statistics.data.gov.uk/id/local-authority-district/23UB,Cheltenham Borough Council,447206,128177,MATTA PRODUCTS UK LIMITED,C-LC6006-C401,Play Area Maint-Civil Engineering Cntrct,20/04/2011,"1,538.70"
http://statistics.data.gov.uk/id/local-authority-district/23UB,Cheltenham Borough Council,447206,128177,MATTA PRODUCTS UK LIMITED,C-LC6006-C401,Play Area Maint-Civil Engineering Cntrct,20/04/2011,"2,809.80"
http://statistics.data.gov.uk/id/local-authority-district/23UB,Cheltenham Borough Council,447270,3619,PHIL MCINTYRE ENTERTAINMENTS LTD,C-0T21M1-3568,Ed Byrne-Artist Fees              ,20/04/2011,"10,950.31"
http://statistics.data.gov.uk/id/local-authority-district/23UB,Cheltenham Borough Council,447270,3619,PHIL MCINTYRE ENTERTAINMENTS LTD,C-Z12210-9271,Box Off A/C-CBC Invoices Paid,20/04/2011,"-1,500.00"
http://statistics.data.gov.uk/id/local-authority-district/23UB,Cheltenham Borough Council,447330,Redacted,Redacted,C-C23160-3934,Env Maint Divn-TP Gen-Imprest/Excess,20/04/2011,"1,250.00"
http://statistics.data.gov.uk/id/local-authority-district/23UB,Cheltenham Borough Council,446485,120378,MEDWAY GALVANISING (MONOHINGE),C-C22120-3104,Spts/Open Space-Sports & play equipment,13/04/2011,738.00
http://statistics.data.gov.uk/id/local-authority-district/23UB,Cheltenham Borough Council,446485,120378,MEDWAY GALVANISING (MONOHINGE),C-C22120-3104,Spts/Open Space-Sports & play equipment,13/04/2011,67.98
http://statistics.data.gov.uk/id/local-authority-district/23UB,Cheltenham Borough Council,,,,,,,
http://statistics.data.gov.uk/id/local-authority-district/23UB,Cheltenham Borough Council,446158,2221,MG WINDOWS CHELTENHAM LIMITED,C-H44350-1104,Window Repairs-Council House repairs,06/04/2011,83.91
http://statistics.data.gov.uk/id/local-authority-district/23UB,Cheltenham Borough Council,446157,2236,MG WINDOWS CHELTENHAM LIMITED,C-H44350-1104,Window Repairs-Council House repairs,06/04/2011,102.46
http://statistics.data.gov.uk/id/local-authority-district/23UB,Cheltenham Borough Council,446155,2239,MG WINDOWS CHELTENHAM LIMITED,C-H44350-1104,Window Repairs-Council House repairs,06/04/2011,69.15
http://statistics.data.gov.uk/id/local-authority-district/23UB,Cheltenham Borough Council,446156,2244,MG WINDOWS CHELTENHAM LIMITED,C-H44350-1104,Window Repairs-Council House repairs,06/04/2011,98.00
http://statistics.data.gov.uk/id/local-authority-district/23UB,Cheltenham Borough Council,446160,2237,MG WINDOWS CHELTENHAM LIMITED,C-HC4075-C302,Window Renewals-Building Contractor,06/04/2011,831.00
http://statistics.data.gov.uk/id/local-authority-district/23UB,Cheltenham Borough Council,446159,2283,MG WINDOWS CHELTENHAM LIMITED,C-H44350-1104,Window Repairs-Council House repairs,06/04/2011,60.74
http://statistics.data.gov.uk/id/local-authority-district/23UB,Cheltenham Borough Council,446154,2285,MG WINDOWS CHELTENHAM LIMITED,C-H44350-1104,Window Repairs-Council House repairs,06/04/2011,99.16
http://statistics.data.gov.uk/id/local-authority-district/23UB,Cheltenham Borough Council,445833,2343,MG WINDOWS CHELTENHAM LIMITED,C-H44350-1104,Window Repairs-Council House repairs,06/04/2011,85.70
http://statistics.data.gov.uk/id/local-authority-district/23UB,Cheltenham Borough Council,446417,2268,MG WINDOWS CHELTENHAM LIMITED,C-H44350-1104,Window Repairs-Council House repairs,07/04/2011,251.90
http://statistics.data.gov.uk/id/local-authority-district/23UB,Cheltenham Borough Council,446416,2284,MG WINDOWS CHELTENHAM LIMITED,C-H44350-1104,Window Repairs-Council House repairs,07/04/2011,108.16
http://statistics.data.gov.uk/id/local-authority-district/23UB,Cheltenham Borough Council,446415,2289,MG WINDOWS CHELTENHAM LIMITED,C-H44350-1104,Window Repairs-Council House repairs,07/04/2011,256.09
http://statistics.data.gov.uk/id/local-authority-district/23UB,Cheltenham Borough Council,446425,2413,MG WINDOWS CHELTENHAM LIMITED,C-H44350-1104,Window Repairs-Council House repairs,07/04/2011,57.20
http://statistics.data.gov.uk/id/local-authority-district/23UB,Cheltenham Borough Council,446419,2414,MG WINDOWS CHELTENHAM LIMITED,C-H44350-1104,Window Repairs-Council House repairs,07/04/2011,33.88
http://statistics.data.gov.uk/id/local-authority-district/23UB,Cheltenham Borough Council,446401,2415,MG WINDOWS CHELTENHAM LIMITED,C-H44350-1104,Window Repairs-Council House repairs,07/04/2011,20.00
http://statistics.data.gov.uk/id/local-authority-district/23UB,Cheltenham Borough Council,446423,2416,MG WINDOWS CHELTENHAM LIMITED,C-H44350-1104,Window Repairs-Council House repairs,07/04/2011,39.80
http://statistics.data.gov.uk/id/local-authority-district/23UB,Cheltenham Borough Council,446403,2417,MG WINDOWS CHELTENHAM LIMITED,C-H44350-1104,Window Repairs-Council House repairs,07/04/2011,100.40
http://statistics.data.gov.uk/id/local-authority-district/23UB,Cheltenham Borough Council,446430,2420,MG WINDOWS CHELTENHAM LIMITED,C-H44350-1104,Window Repairs-Council House repairs,07/04/2011,144.88
http://statistics.data.gov.uk/id/local-authority-district/23UB,Cheltenham Borough Council,446413,2421,MG WINDOWS CHELTENHAM LIMITED,C-H44350-1104,Window Repairs-Council House repairs,07/04/2011,155.83
http://statistics.data.gov.uk/id/local-authority-district/23UB,Cheltenham Borough Council,446414,2422,MG WINDOWS CHELTENHAM LIMITED,C-H44350-1104,Window Repairs-Council House repairs,07/04/2011,159.25
http://statistics.data.gov.uk/id/local-authority-district/23UB,Cheltenham Borough Council,446431,2424,MG WINDOWS CHELTENHAM LIMITED,C-H44350-1104,Window Repairs-Council House repairs,07/04/2011,24.00
http://statistics.data.gov.uk/id/local-authority-district/23UB,Cheltenham Borough Council,446420,2426,MG WINDOWS CHELTENHAM LIMITED,C-H44350-1104,Window Repairs-Council House repairs,07/04/2011,71.95
http://statistics.data.gov.uk/id/local-authority-district/23UB,Cheltenham Borough Council,446421,2427,MG WINDOWS CHELTENHAM LIMITED,C-H44350-1104,Window Repairs-Council House repairs,07/04/2011,82.06
http://statistics.data.gov.uk/id/local-authority-district/23UB,Cheltenham Borough Council,446409,2428,MG WINDOWS CHELTENHAM LIMITED,C-H44350-1104,Window Repairs-Council House repairs,07/04/2011,190.96
http://statistics.data.gov.uk/id/local-authority-district/23UB,Cheltenham Borough Council,446407,2429,MG WINDOWS CHELTENHAM LIMITED,C-H44350-1104,Window Repairs-Council House repairs,07/04/2011,26.61
http://statistics.data.gov.uk/id/local-authority-district/23UB,Cheltenham Borough Council,446439,2430,MG WINDOWS CHELTENHAM LIMITED,C-H44350-1104,Window Repairs-Council House repairs,07/04/2011,36.19
http://statistics.data.gov.uk/id/local-authority-district/23UB,Cheltenham Borough Council,446418,2431,MG WINDOWS CHELTENHAM LIMITED,C-H44350-1104,Window Repairs-Council House repairs,07/04/2011,41.48
